Workbook

Sheet титульный
B1: школа | C1: ученик | D1: город | E1: 2007
B2: лицей | C2: ученица | D2: деревня | E2: 2008
B3: гимназия | D3: село | E3: 2009
D4: хутор | E4: 2010
D5: посёлок | E5: 2011
D6: посёлок городского типа | E6: 2012
E7: 2013
E8: 2014
E9: 2015
E10: 2016
E11: 2017
E12: 2018
E13: 2019
E14: 2020
E15: 2021
E16: 2022
E17: 2023
E18: 2024
E19: 2025
E20: 2026
E21: 2027
E22: 2028
E23: 2029
E24: 2030
E25: 2031
A45: ='Информация о школе'!D10 -> Муниципальное бюджетное общеобразовательное учреждение
A46: ='Информация о школе'!D11 -> Средняя общеобразовательная школа №11
B53: ЭЛЕКТРОННОЕ
D55: ПОРТФОЛИО
A57: ученица | D57: ='Личные данные'!D10 -> Антонова Светлана Степановна
B58: школа | D58: ='Информация о школе'!D12 -> МБОУ "СОШ№11"
A59: город | D59: ='Информация о школе'!D14 -> Ангарск
C63: за период с | E63: 2007
C64: по | E64: 2018
A67: Автор: заместитель директора по УВР Лобанов Алексей Александрович
A68: МБОУ "СОШ№11"
A69: г. Ангарск
C70: aalobanov@mail.ru
C71: www.aalobanov.ucoz.ru
B74: Для изменения учебного года щёлкнуть левой клавишей
B75: по году и выбрать из списка новый год
C79: ВЕРСИЯ 2.16

Sheet Информационный
A1: ИНФОРМАЦИОННЫЙ
A6: Форма участия | G6: Коэффициент | R6: Число учебных недель | Y6: 34
A7: Активная | G7: 1
A8: Пассивная | G8: 0.5
A10: Форма участия | G10: Коэффициент | R10: Форма публикации | X10: Коэффициент
A11: Очная | G11: 1 | R11: Бумажная | X11: 1
A12: Дистанционная | G12: 0.5 | R12: Электронная | X12: 0.5
A13: Показатель | F13: Предметные конкурсы, олимпиады, игры | I13: Публикации | J13: Благодарности и награды | K13: Социальные практики | L13: Роль в самоуправлении | Q13: Творческие конкурсы | T13: Исследовательская деятельность | W13: Обязательные курсы и по выбору | X13: Дополнительное образование | Y13: Показатель
A14: Уровень | F14: победитель | G14: призёр | H14: участник | Q14: победитель | R14: лауреат | S14: участник | T14: победитель | U14: лауреат | V14: участник | Y14: Уровень
A15: школьный | F15: =H16-1 -> 3 | G15: =F15-1 -> 2 | H15: 1 | I15: =I16-1 -> 1 | J15: 1 | K15: =K16-2 -> 2 | L15: =L16-1 -> 1 | M15: другое | Q15: =S16-1 -> 3 | R15: =Q15-1 -> 2 | S15: 1 | T15: =V16-1 -> 3 | U15: =T15-1 -> 2 | V15: 1 | W15: =W16-1 -> 1 | X15: 1 | Y15: 1 час
A16: муниципальный | F16: =H17-1 -> 6 | G16: 5 | H16: 4 | I16: 2 | J16: 2 | K16: =K17-2 -> 4 | L16: =L17-1 -> 2 | M16: помощник | Q16: =S17-1 -> 6 | R16: 5 | S16: 4 | T16: =V17-1 -> 6 | U16: 5 | V16: 4 | W16: 2 | X16: 2 | Y16: 2 часа
A17: региональный | F17: =H18-1 -> 9 | G17: 8 | H17: 7 | I17: 3 | J17: 3 | K17: =K18-2 -> 6 | L17: =L18-1 -> 3 | M17: редколлегия | Q17: =S18-1 -> 9 | R17: 8 | S17: 7 | T17: =V18-1 -> 9 | U17: 8 | V17: 7 | W17: 3 | X17: 3 | Y17: 3 часа
A18: федеральный | F18: =H19-1 -> 12 | G18: 11 | H18: 10 | I18: 4 | J18: 4 | K18: =K19-2 -> 8 | L18: =L19-1 -> 4 | M18: министр | Q18: =S19-1 -> 12 | R18: 11 | S18: 10 | T18: =V19-1 -> 12 | U18: 11 | V18: 10 | W18: =W19-1 -> 4 | X18: =X19-1 -> 4 | Y18: 4 часа
A19: международный | F19: 15 | G19: 14 | H19: 13 | I19: 5 | J19: 5 | K19: 10 | L19: 5 | M19: президент | Q19: 15 | R19: 14 | S19: 13 | T19: 15 | U19: 14 | V19: 13 | W19: 5 | X19: 5 | Y19: 5 и более
A20: Всеобуч | F20: =H18 -> 10
A21: Введите в строке международный уровень макимальный вес балла
A22: Введите коэффициенты для расчёта баллов
A23: Введите роли (уровни) в самоуправлении класса
A24: Введите число учебных недель
A25: Название профилей обучения
A26: 1 | B26: Универсальный | S26: ВНИМАНИЕ!
A27: 2 | B27: Физико-математический | S27: Начните работу в портфолио с заполнения информации на вкладках:
A28: 3 | B28: Физико-математический
A29: 4 | B29: Физико-химический | S29: Информация о школе
A30: 5 | B30: Химико-биологический | S30: Личные данные
A31: 6 | B31: Биолого-географический
A32: 7 | B32: Социально-экономический
A33: 8 | B33: Социально-гуманитарный
A34: 9 | B34: Филологический
A35: 10 | B35: Информационно-технологический
A36: 11 | B36: Агротехнологический
A37: 12 | B37: Индустриально-технологический
A38: 13 | B38: Художественно-эстетический
A39: 14 | B39: Педагогический (психолого-педагогический)
A40: 15 | B40: Математический
A41: Электронное портфолио учащегося

Sheet Содержание
A1: СОДЕРЖАНИЕ
A3: №п\п | B3: Наименование листа
A4: 1 | B4: Информация о школе
A5: 2 | B5: Личные данные
A6: 3 | B6: Автобиография
A7: 4 | B7: Жизненные планы
A8: 5 | B8: Учебная деятельность
A9: 6 | B9: Научно-иследовательская деятельность
A10: 7 | B10: Предметные конкурсы, игры, олимпиады
A11: 8 | B11: Публикации
A12: 9 | B12: Награды
A13: 10 | B13: Социальные практики
A14: 11 | B14: Самоуправление
A15: 12 | B15: Творческие конкурсы и выступления
A16: 13 | B16: Курсы по выбору
A17: 14 | B17: Дополнительное образование
A18: 15 | B18: Резюме
A19: 16 | B19: Отзывы
A20: 17 | B20: Характеристика
A21: 18 | B21: Сводная ведомость образовательного рейтинга
A22: 19 | B22: Приложение
A23: 17
A24: 18
A25: 19
A26: 20
A27: 21
A28: 22
A29: 23
A30: 24
A31: 16 | B31: Приложение

Sheet Информация о школе
C1: I
C2: II
C3: III
C4: IV
C5: участие
C6: лауреат
A8: ИНФОРМАЦИЯ О ШКОЛЕ
A9: =титульный!B53 -> ЭЛЕКТРОННОЕ | C9: =титульный!D55 -> ПОРТФОЛИО | D9: =титульный!D58 -> МБОУ "СОШ№11"
A10: Тип учреждения | D10: Муниципальное бюджетное общеобразовательное учреждение
A11: Вид учреждения | D11: Средняя общеобразовательная школа №11
A12: Сокращённое наименонвание учреждение | D12: МБОУ "СОШ№11"
A13: Фактический адрес | D13: Иркутская область
A14: город | D14: Ангарск
A15: учлица (квартал) | D15: Горького
A16: дом | D16: 10
A17: телефон | D17: 52-23-90
A18: E-mail | D18: sh10ang@mail.ru
A19: Сайт | D19: sh10ang.ru
A20: Директор | D20: Демидова Татьяна Анатольевна
A21: Завуч | D21: Лобанов Алексей Александрович
A22: Классный руководитель | D22: Главаля Ирина Геннадьевна
A23: Фотография школы

Sheet Личные данные
C1: I
C2: II
C3: III
C4: IV
C5: участие
C6: лауреат
A8: ЛИЧНЫЕ ДАННЫЕ
A9: =титульный!B53 -> ЭЛЕКТРОННОЕ | C9: =титульный!D55 -> ПОРТФОЛИО | D9: =титульный!D58 -> МБОУ "СОШ№11"
A10: Фамилия Имя Отчество | D10: Антонова Светлана Степановна
A11: Адрес | D11: Ангарск, 271-ХХХ-ХХ
A12: Телефон | D12: 8-3955-ХХ-ХХ-ХХ
A13: Сотовый телефон | D13: 8-924-6-ХХ-ХХ-ХХ
A14: Е-mail | D14: valeria00@mail.ru
A15: Учебное заведение | D15: "Средняя общеобразовательная школа №11"
A16: Год поступления в школу | D16: 2007
A17: Обучается в классе на момент рассмотрения портфолио | D17: 9"А"
A18: Итоги обучения на конец учебного года | D18: отличница
A19: Состоит в учениченских (молодёжных) движениях | D19: нет
A20: ФОТОГРАФИЯ

Sheet Автобиография
C1: I | F1: школьный
C2: II | F2: муниципальный
C3: III | F3: региональный
C4: IV | F4: всероссийский
C5: участие | F5: международный
C6: лауреат
A8: АВТОБИОГРАФИЯ
A9: ='Личные данные'!A9:B9 -> ЭЛЕКТРОННОЕ | C9: ='Личные данные'!C9 -> ПОРТФОЛИО | E9: =титульный!D57 -> Антонова Светлана Степановна | G9: =титульный!D58 -> МБОУ "СОШ№11"
A11: Я Лобанова Валерия Алексеевна родилась в городе Ангарске ХХиюля 20ХХ года. По знаку зодиака я лев родившийся в год золотого дракона. До школы я пробовала себя в занятиях бальными танцами. С 2006 года занимаюсь в школе искуств №4. В 2007 году поступила в 1 "В" клас сМОУ "СОШ№11" .
G27: =NOW() -> 2019-08-24T15:19:23.810
D28: Данные афтобиографии заверяю
F29: ='Личные данные'!D10 -> Антонова Светлана Степановна

Sheet Жизненные планы
A1: кк | C1: I | D1: школьный | F1: благодарность
C2: II | D2: муниципальный | F2: грамота
C3: III | D3: региональный | F3: медаль
C4: IV | D4: федеральный | F4: значок
C5: участие | D5: международный | F5: благодарственное письмо
C6: лауреат | F6: почётная грамота
A8: ЖИЗНЕННЫЕ ПЛАНЫ
A9: ='Личные данные'!A9:B9 -> ЭЛЕКТРОННОЕ | C9: ='Личные данные'!C9 -> ПОРТФОЛИО | E9: =титульный!D57 -> Антонова Светлана Степановна | G9: =титульный!$D$58 -> МБОУ "СОШ№11"
A10: №п\п | B10: Содержание деятельности | E10: Срок выполнения | G10: Что собираюсь для этого делать
A14: 1 | B14: Закончить начальную школу на отллично | E14: 2011 год | G14: Хоршо учиться, много читать.
A15: 2 | B15: Поступить в танцевальную школу | E15: 2011 год | G15: Записаться в студию танцев
A16: 3
A17: 4
A18: 5
A19: 6
A20: 7
A21: 8
A22: 9
A23: 10
A24: =NOW() -> 2019-08-24T15:19:23.810 | E24: ='Личные данные'!D10 -> Антонова Светлана Степановна

Sheet Учебная деятельность
C1: I
C2: II
C3: III
C4: IV
C5: участие
C6: лауреат
A8: УЧЕБНАЯ ДЕЯТЕЛЬНОСТЬ
A9: ='Личные данные'!A9:B9 -> ЭЛЕКТРОННОЕ | C9: ='Личные данные'!C9 -> ПОРТФОЛИО | G9: =титульный!D57 -> Антонова Светлана Степановна | L9: =титульный!D58 -> МБОУ "СОШ№11"
A10: №п\п | B10: предмет | C10: 1 класс | D10: 2 класс | E10: 3 класс | F10: 4 класс | G10: 5 класс | H10: 6 класс | I10: 7 класс | J10: 8 класс | K10: 9 класс | L10: 10 класс | M10: 11 класс | N10: Средний по предмету
A14: 1 | B14: Русский язык | D14: 5 | E14: 5 | F14: 5 | G14: 5 | H14: 5 | I14: 5 | J14: 5 | K14: 5 | N14: =IF(SUM(C14:M14)=0,"",AVERAGEIF(C14:M14,">0",C14:M14)) -> 5
A15: 2 | B15: Литература | D15: 5 | E15: 5 | F15: 5 | G15: 5 | H15: 5 | I15: 5 | J15: 5 | K15: 5 | N15: =IF(SUM(C15:M15)=0,"",AVERAGEIF(C15:M15,">0",C15:M15)) -> 5
A16: 3 | B16: Иностранный язык | C16: Х | D16: 5 | E16: 5 | F16: 5 | G16: 5 | H16: 5 | I16: 5 | J16: 5 | K16: 5 | N16: =IF(SUM(C16:M16)=0,"",AVERAGEIF(C16:M16,">0",C16:M16)) -> 5
A17: 4 | B17: История | C17: Х | D17: Х | E17: Х | F17: Х | G17: 5 | H17: 5 | I17: 5 | J17: 5 | K17: 5 | N17: =IF(SUM(C17:M17)=0,"",AVERAGEIF(C17:M17,">0",C17:M17)) -> 5
A18: 5 | B18: Обществоведение | C18: Х | D18: Х | E18: Х | F18: Х | G18: 5 | H18: 5 | I18: 5 | J18: 5 | K18: 5 | N18: =IF(SUM(C18:M18)=0,"",AVERAGEIF(C18:M18,">0",C18:M18)) -> 5
A20: 6 | B20: Математика | D20: 5 | E20: 5 | F20: 5 | G20: 5 | H20: 5 | I20: Х | J20: Х | K20: Х | L20: Х | M20: Х | N20: =IF(SUM(C20:M20)=0,"",AVERAGEIF(C20:M20,">0",C20:M20)) -> 5
A21: 7 | B21: Алгебра | C21: Х | D21: Х | E21: Х | F21: Х | G21: Х | H21: Х | I21: 5 | J21: 5 | K21: 5 | N21: 5
A22: 8 | B22: геометрия | C22: Х | D22: Х | E22: Х | F22: Х | G22: Х | H22: Х | I22: 5 | J22: 5 | K22: 5 | N22: 5
A23: 9 | B23: Информатика | D23: 5 | E23: 5 | F23: 5 | G23: 5 | H23: 5 | I23: 5 | J23: 5 | K23: 5 | N23: 5
A24: 10 | B24: Физика | C24: Х | D24: Х | E24: Х | F24: Х | G24: Х | H24: Х | I24: 5 | J24: 5 | K24: 5 | N24: 5
A25: 11 | B25: химия | C25: Х | D25: Х | E25: Х | F25: Х | G25: Х | H25: Х | I25: Х | J25: 5 | K25: 5 | N25: 5
A26: 12 | B26: (Природоведение ) география | D26: 5 | E26: 5 | F26: 5 | G26: 5 | H26: 5 | I26: 5 | J26: 5 | K26: 5 | N26: 5
A27: 13 | B27: Биология | C27: Х | D27: Х | E27: Х | F27: Х | G27: 5 | H27: 5 | I27: 5 | J27: 5 | K27: 5 | N27: 5
A29: 14 | B29: Физкультура | D29: 5 | E29: 5 | F29: 5 | G29: 5 | H29: 5 | I29: 5 | J29: 5 | K29: 5 | N29: =IF(SUM(C29:M29)=0,"",AVERAGEIF(C29:M29,">0",C29:M29)) -> 5
A30: 15 | B30: Технология | D30: 5 | E30: 5 | F30: 5 | G30: 5 | H30: 5 | I30: 5 | J30: 5 | K30: 5 | N30: 5
A31: 16 | B31: Изобразительное искусство | D31: 5 | E31: 5 | F31: 5 | G31: 5 | H31: 5 | N31: 5
A32: 17 | B32: Музыка | D32: 5 | E32: 5 | F32: 5 | G32: 5 | H32: 5 | N32: 5
A33: 18 | B33: МХК
A34: 19 | B34: Черчение | C34: Х | D34: Х | E34: Х | F34: Х | G34: Х | H34: Х | I34: Х | J34: 5 | K34: 5 | N34: 5
A35: 20 | B35: ОБЖ (ОВС) | C35: Х | D35: Х | E35: Х | F35: Х | G35: 5 | H35: 5 | I35: 5 | J35: 5 | K35: 5 | N35: 5
A36: 21
A37: 22
A39: 23 | B39: Пропущено уроков | C39: 12 | D39: 21 | I39: 34 | N39: =SUM(C39:M39) -> 67
A40: 24 | B40: их них по болезни | N40: =SUM(C40:M40) -> 0
A41: 25 | B41: Средний балл по итогам года | C41: =IF(SUM(C14:C18,C20:C27,C29:C37)=0,"",AVERAGEIF(C14:C37,">0")) ->  | D41: 5 | E41: 5 | F41: 5 | G41: 5 | H41: 5 | I41: 5 | J41: 5 | K41: 5 | N41: =AVERAGEIF(N14:N37,">0") -> 5
A42: =NOW() -> 2019-08-24T15:19:23.810 | C42: ='Информация о школе'!A22 -> Классный руководитель | H42: ='Информация о школе'!D22 -> Главаля Ирина Геннадьевна

Sheet НИД
C1: победитель | F1: школьный | I1: О
C2: призёр | F2: муниципальный | I2: Д
C3: участник | F3: региональный
F4: федеральный
F5: международный
A6: ИССЛЕДОВАТЕЛЬСКАЯ (ПРОЕКТНАЯ) ДЕЯТЕЛЬНОСТЬ
A7: ='Личные данные'!$A$9 -> ЭЛЕКТРОННОЕ | C7: ='Личные данные'!$C$9 -> ПОРТФОЛИО | E7: =титульный!$D$57 -> Антонова Светлана Степановна | H7: =титульный!$D$58 -> МБОУ "СОШ№11"
A8: №п\п | B8: Название проекта | D8: Результат | E8: Уровень | G8: Форма участия | H8: класс | I8: Балл | J8: Номер в приложении
L11: Результат | M11: уровень | N11: Форма
A12: 1 | B12: Тангарм. Семь хитроумных фигур | D12: призёр | E12: муниципальный | G12: О | H12: 1 | I12: =L12*M12*N12 -> 5.6 | J12: 6. | K12: =IF(B12<>0,A12," ") -> 1 | L12: =IF(D12=$C$1,Информационный!$Q$19,IF(D12=$C$2,Информационный!$R$19,IF(НИД!D12=НИД!$C$3,Информационный!$S$19,0))) -> 14 | M12: =IF(E12=$F$5,1,IF(E12=$F$4,0.8,IF(E12=$F$3,0.6,IF(E12=$F$2,0.4,IF(E12=$F$1,0.2,0))))) -> 0.4 | N12: =IF(G12=$I$1,Информационный!$G$11,IF(G12=$I$2,Информационный!$G$12,0)) -> 1
A13: 2 | B13: Первые шаги | D13: участник | E13: региональный | G13: Д | H13: 4 | I13: =L13*M13*N13 -> 3.9 | J13: 6. | K13: =IF(B13<>0,A13," ") -> 2 | L13: =IF(D13=$C$1,Информационный!$Q$19,IF(D13=$C$2,Информационный!$R$19,IF(НИД!D13=НИД!$C$3,Информационный!$S$19,0))) -> 13 | M13: =IF(E13=$F$5,1,IF(E13=$F$4,0.8,IF(E13=$F$3,0.6,IF(E13=$F$2,0.4,IF(E13=$F$1,0.2,0))))) -> 0.6 | N13: =IF(G13=$I$1,Информационный!$G$11,IF(G13=$I$2,Информационный!$G$12,0)) -> 0.5
A14: 3 | I14: 0 | J14: 6. | L14: =IF(D14=$C$1,Информационный!$Q$19,IF(D14=$C$2,Информационный!$R$19,IF(НИД!D14=НИД!$C$3,Информационный!$S$19,0))) -> 0 | M14: 0 | N14: =IF(G14=$I$1,Информационный!$G$11,IF(G14=$I$2,Информационный!$G$12,0)) -> 0
A15: 4 | I15: 0 | J15: 6. | L15: =IF(D15=$C$1,Информационный!$Q$19,IF(D15=$C$2,Информационный!$R$19,IF(НИД!D15=НИД!$C$3,Информационный!$S$19,0))) -> 0 | M15: 0 | N15: =IF(G15=$I$1,Информационный!$G$11,IF(G15=$I$2,Информационный!$G$12,0)) -> 0
A16: 5 | I16: 0 | J16: 6. | L16: =IF(D16=$C$1,Информационный!$Q$19,IF(D16=$C$2,Информационный!$R$19,IF(НИД!D16=НИД!$C$3,Информационный!$S$19,0))) -> 0 | M16: 0 | N16: =IF(G16=$I$1,Информационный!$G$11,IF(G16=$I$2,Информационный!$G$12,0)) -> 0
A17: 6 | I17: 0 | J17: 6. | L17: =IF(D17=$C$1,Информационный!$Q$19,IF(D17=$C$2,Информационный!$R$19,IF(НИД!D17=НИД!$C$3,Информационный!$S$19,0))) -> 0 | M17: 0 | N17: =IF(G17=$I$1,Информационный!$G$11,IF(G17=$I$2,Информационный!$G$12,0)) -> 0
A18: 7 | I18: 0 | J18: 6. | L18: =IF(D18=$C$1,Информационный!$Q$19,IF(D18=$C$2,Информационный!$R$19,IF(НИД!D18=НИД!$C$3,Информационный!$S$19,0))) -> 0 | M18: 0 | N18: =IF(G18=$I$1,Информационный!$G$11,IF(G18=$I$2,Информационный!$G$12,0)) -> 0
A19: 8 | I19: 0 | J19: 6. | L19: =IF(D19=$C$1,Информационный!$Q$19,IF(D19=$C$2,Информационный!$R$19,IF(НИД!D19=НИД!$C$3,Информационный!$S$19,0))) -> 0 | M19: 0 | N19: =IF(G19=$I$1,Информационный!$G$11,IF(G19=$I$2,Информационный!$G$12,0)) -> 0
A20: 9 | I20: 0 | J20: 6. | L20: =IF(D20=$C$1,Информационный!$Q$19,IF(D20=$C$2,Информационный!$R$19,IF(НИД!D20=НИД!$C$3,Информационный!$S$19,0))) -> 0 | M20: 0 | N20: =IF(G20=$I$1,Информационный!$G$11,IF(G20=$I$2,Информационный!$G$12,0)) -> 0
A21: 10 | I21: 0 | J21: 6. | L21: =IF(D21=$C$1,Информационный!$Q$19,IF(D21=$C$2,Информационный!$R$19,IF(НИД!D21=НИД!$C$3,Информационный!$S$19,0))) -> 0 | M21: 0 | N21: =IF(G21=$I$1,Информационный!$G$11,IF(G21=$I$2,Информационный!$G$12,0)) -> 0
A22: 11 | I22: 0 | J22: 6. | L22: =IF(D22=$C$1,Информационный!$Q$19,IF(D22=$C$2,Информационный!$R$19,IF(НИД!D22=НИД!$C$3,Информационный!$S$19,0))) -> 0 | M22: 0 | N22: =IF(G22=$I$1,Информационный!$G$11,IF(G22=$I$2,Информационный!$G$12,0)) -> 0
A23: 12 | I23: 0 | J23: 6. | L23: =IF(D23=$C$1,Информационный!$Q$19,IF(D23=$C$2,Информационный!$R$19,IF(НИД!D23=НИД!$C$3,Информационный!$S$19,0))) -> 0 | M23: 0 | N23: =IF(G23=$I$1,Информационный!$G$11,IF(G23=$I$2,Информационный!$G$12,0)) -> 0
A24: 13 | I24: 0 | J24: 6. | L24: =IF(D24=$C$1,Информационный!$Q$19,IF(D24=$C$2,Информационный!$R$19,IF(НИД!D24=НИД!$C$3,Информационный!$S$19,0))) -> 0 | M24: 0 | N24: =IF(G24=$I$1,Информационный!$G$11,IF(G24=$I$2,Информационный!$G$12,0)) -> 0
A25: 14 | I25: 0 | J25: 6. | L25: =IF(D25=$C$1,Информационный!$Q$19,IF(D25=$C$2,Информационный!$R$19,IF(НИД!D25=НИД!$C$3,Информационный!$S$19,0))) -> 0 | M25: 0 | N25: =IF(G25=$I$1,Информационный!$G$11,IF(G25=$I$2,Информационный!$G$12,0)) -> 0
A26: 15 | I26: 0 | J26: 6. | L26: =IF(D26=$C$1,Информационный!$Q$19,IF(D26=$C$2,Информационный!$R$19,IF(НИД!D26=НИД!$C$3,Информационный!$S$19,0))) -> 0 | M26: 0 | N26: =IF(G26=$I$1,Информационный!$G$11,IF(G26=$I$2,Информационный!$G$12,0)) -> 0
A27: 16 | I27: 0 | J27: 6. | L27: =IF(D27=$C$1,Информационный!$Q$19,IF(D27=$C$2,Информационный!$R$19,IF(НИД!D27=НИД!$C$3,Информационный!$S$19,0))) -> 0 | M27: 0 | N27: =IF(G27=$I$1,Информационный!$G$11,IF(G27=$I$2,Информационный!$G$12,0)) -> 0
D28: Уровень проектной деятельности | E28: =COUNTIF($E$12:$E$27,"школьный") -> 0 | F28: =F1 -> школьный
E29: =COUNTIF($E$12:$E$27,"муниципальный") -> 1 | F29: =F2 -> муниципальный
E30: =COUNTIF($E$12:$E$27,"региональный") -> 1 | F30: =F3 -> региональный
E31: =COUNTIF($E$12:$E$27,"всероссийский") -> 0 | F31: =F4 -> федеральный
E32: =COUNTIF($E$12:$E$27,"международный") -> 0 | F32: =F5 -> международный
H34: =NOW() -> 2019-08-24T15:19:23.810
E36: ='Информация о школе'!$A$22 -> Классный руководитель
E37: /_________________/
E38: ='Информация о школе'!$D$22 -> Главаля Ирина Геннадьевна
H40: 1 класс | I40: =SUMIF($H$12:$H$27,"1",$I$12:$I$27) -> 5.6
H41: 2 класс | I41: =SUMIF($H$12:$H$27,"2",$I$12:$I$27) -> 0
H42: 3 класс | I42: =SUMIF($H$12:$H$27,"3",$I$12:$I$27) -> 0
H43: 4 класс | I43: =SUMIF($H$12:$H$27,"4",$I$12:$I$27) -> 3.9
H44: 5 класс | I44: =SUMIF($H$12:$H$27,"5",$I$12:$I$27) -> 0
H45: 6 класс | I45: =SUMIF($H$12:$H$27,"6",$I$12:$I$27) -> 0
H46: 7 класс | I46: =SUMIF($H$12:$H$27,"7",$I$12:$I$27) -> 0
H47: 8 класс | I47: =SUMIF($H$12:$H$27,"81",$I$12:$I$27) -> 0
H48: 9 класс | I48: =SUMIF($H$12:$H$27,"9",$I$12:$I$27) -> 0
H49: 10 класс | I49: =SUMIF($H$12:$H$27,"10",$I$12:$I$27) -> 0
H50: 11 класс | I50: =SUMIF($H$12:$H$27,"11",$I$12:$I$27) -> 0
A108: Электронное портфолио учащегося

Sheet Предметные
C1: победитель | F1: школьный | I1: О
C2: призёр | F2: муниципальный | I2: Д
C3: участник | F3: региональный
F4: федеральный
F5: международный
A6: УЧАСТИЕ в ПРЕДМЕТНЫХ конкурсах, играх, олимпиадах
A7: ='Личные данные'!$A$9 -> ЭЛЕКТРОННОЕ | C7: ='Личные данные'!$C$9 -> ПОРТФОЛИО | E7: =титульный!$D$57 -> Антонова Светлана Степановна | H7: =титульный!$D$58 -> МБОУ "СОШ№11"
A8: №п\п | B8: Название конкурса, игры, олимпиады | D8: Результат | E8: Уровень | G8: Форма участия | H8: класс | I8: Балл | J8: Номер в приложении
L11: Результат | M11: уровень | N11: Форма
A12: 1 | B12: Золотое перо | D12: призёр | E12: федеральный | G12: Д | H12: 1 | I12: =L12*M12*N12 -> 5.6 | J12: 7. | K12: =IF(B12<>0,A12," ") -> 1 | L12: =IF(D12=$C$1,Информационный!$F$19,IF(D12=$C$2,Информационный!$G$19,IF(Предметные!D12=Предметные!$C$3,Информационный!$H$19,0))) -> 14 | M12: =IF(E12=$F$5,1,IF(E12=$F$4,0.8,IF(E12=$F$3,0.6,IF(E12=$F$2,0.4,IF(E12=$F$1,0.2,0))))) -> 0.8 | N12: =IF(G12=$I$1,Информационный!$G$11,IF(G12=$I$2,Информационный!$G$12,0)) -> 0.5
A13: 2 | B13: Кенгуру | D13: призёр | E13: муниципальный | G13: Д | H13: 2 | I13: =L13*M13*N13 -> 2.8 | J13: 7. | K13: =IF(B13<>0,A13," ") -> 2 | L13: =IF(D13=$C$1,Информационный!$F$19,IF(D13=$C$2,Информационный!$G$19,IF(Предметные!D13=Предметные!$C$3,Информационный!$H$19,0))) -> 14 | M13: =IF(E13=$F$5,1,IF(E13=$F$4,0.8,IF(E13=$F$3,0.6,IF(E13=$F$2,0.4,IF(E13=$F$1,0.2,0))))) -> 0.4 | N13: =IF(G13=$I$1,Информационный!$G$11,IF(G13=$I$2,Информационный!$G$12,0)) -> 0.5
A14: 3 | B14: Юный исследователь | D14: призёр | E14: муниципальный | G14: О | H14: 2 | I14: 5.6 | J14: 7. | K14: 3 | L14: =IF(D14=$C$1,Информационный!$F$19,IF(D14=$C$2,Информационный!$G$19,IF(Предметные!D14=Предметные!$C$3,Информационный!$H$19,0))) -> 14 | M14: 0.4 | N14: =IF(G14=$I$1,Информационный!$G$11,IF(G14=$I$2,Информационный!$G$12,0)) -> 1
A15: 4 | B15: муниципальная олимиада по иностранному языку | D15: призёр | E15: муниципальный | G15: О | H15: 2 | I15: 5.6 | J15: 7. | K15: 4 | L15: =IF(D15=$C$1,Информационный!$F$19,IF(D15=$C$2,Информационный!$G$19,IF(Предметные!D15=Предметные!$C$3,Информационный!$H$19,0))) -> 14 | M15: 0.4 | N15: =IF(G15=$I$1,Информационный!$G$11,IF(G15=$I$2,Информационный!$G$12,0)) -> 1
A16: 5 | B16: Золотое перо | D16: участник | E16: федеральный | G16: Д | H16: 2 | I16: 5.2 | J16: 7. | K16: 5 | L16: =IF(D16=$C$1,Информационный!$F$19,IF(D16=$C$2,Информационный!$G$19,IF(Предметные!D16=Предметные!$C$3,Информационный!$H$19,0))) -> 13 | M16: 0.8 | N16: =IF(G16=$I$1,Информационный!$G$11,IF(G16=$I$2,Информационный!$G$12,0)) -> 0.5
A17: 6 | B17: Умник | D17: призёр | E17: федеральный | G17: Д | H17: 3 | I17: 5.6 | J17: 7. | K17: 6 | L17: =IF(D17=$C$1,Информационный!$F$19,IF(D17=$C$2,Информационный!$G$19,IF(Предметные!D17=Предметные!$C$3,Информационный!$H$19,0))) -> 14 | M17: 0.8 | N17: =IF(G17=$I$1,Информационный!$G$11,IF(G17=$I$2,Информационный!$G$12,0)) -> 0.5
A18: 7 | B18: Золотое перо | D18: призёр | E18: региональный | G18: Д | H18: 3 | I18: 4.2 | J18: 7. | K18: 7 | L18: =IF(D18=$C$1,Информационный!$F$19,IF(D18=$C$2,Информационный!$G$19,IF(Предметные!D18=Предметные!$C$3,Информационный!$H$19,0))) -> 14 | M18: 0.6 | N18: =IF(G18=$I$1,Информационный!$G$11,IF(G18=$I$2,Информационный!$G$12,0)) -> 0.5
A19: 8 | B19: Кенгуру | D19: участник | E19: федеральный | G19: Д | H19: 3 | I19: 5.2 | J19: 7. | K19: 8 | L19: =IF(D19=$C$1,Информационный!$F$19,IF(D19=$C$2,Информационный!$G$19,IF(Предметные!D19=Предметные!$C$3,Информационный!$H$19,0))) -> 13 | M19: 0.8 | N19: =IF(G19=$I$1,Информационный!$G$11,IF(G19=$I$2,Информационный!$G$12,0)) -> 0.5
A20: 9 | B20: Олимпиада по математике | D20: победитель | E20: муниципальный | G20: О | H20: 4 | I20: 6 | J20: 7. | K20: 9 | L20: =IF(D20=$C$1,Информационный!$F$19,IF(D20=$C$2,Информационный!$G$19,IF(Предметные!D20=Предметные!$C$3,Информационный!$H$19,0))) -> 15 | M20: 0.4 | N20: =IF(G20=$I$1,Информационный!$G$11,IF(G20=$I$2,Информационный!$G$12,0)) -> 1
A21: 10 | B21: Олимпиада по русскому языку | D21: призёр | E21: муниципальный | G21: О | H21: 4 | I21: 5.6 | J21: 7. | K21: 10 | L21: =IF(D21=$C$1,Информационный!$F$19,IF(D21=$C$2,Информационный!$G$19,IF(Предметные!D21=Предметные!$C$3,Информационный!$H$19,0))) -> 14 | M21: 0.4 | N21: =IF(G21=$I$1,Информационный!$G$11,IF(G21=$I$2,Информационный!$G$12,0)) -> 1
A22: 11 | B22: Олимпиада по окр миру | D22: призёр | E22: муниципальный | G22: О | H22: 4 | I22: 5.6 | J22: 7. | K22: 11 | L22: =IF(D22=$C$1,Информационный!$F$19,IF(D22=$C$2,Информационный!$G$19,IF(Предметные!D22=Предметные!$C$3,Информационный!$H$19,0))) -> 14 | M22: 0.4 | N22: =IF(G22=$I$1,Информационный!$G$11,IF(G22=$I$2,Информационный!$G$12,0)) -> 1
A23: 12 | B23: Кенгуру | D23: призёр | E23: федеральный | G23: Д | H23: 4 | I23: 5.6 | J23: 7. | K23: 12 | L23: =IF(D23=$C$1,Информационный!$F$19,IF(D23=$C$2,Информационный!$G$19,IF(Предметные!D23=Предметные!$C$3,Информационный!$H$19,0))) -> 14 | M23: 0.8 | N23: =IF(G23=$I$1,Информационный!$G$11,IF(G23=$I$2,Информационный!$G$12,0)) -> 0.5
A24: 13 | B24: Сибирячок | D24: участник | E24: региональный | G24: Д | H24: 4 | I24: 3.9 | J24: 7. | K24: 13 | L24: =IF(D24=$C$1,Информационный!$F$19,IF(D24=$C$2,Информационный!$G$19,IF(Предметные!D24=Предметные!$C$3,Информационный!$H$19,0))) -> 13 | M24: 0.6 | N24: =IF(G24=$I$1,Информационный!$G$11,IF(G24=$I$2,Информационный!$G$12,0)) -> 0.5
A25: 14 | B25: Умник | D25: участник | E25: региональный | G25: Д | H25: 4 | I25: 3.9 | J25: 7. | K25: 14 | L25: =IF(D25=$C$1,Информационный!$F$19,IF(D25=$C$2,Информационный!$G$19,IF(Предметные!D25=Предметные!$C$3,Информационный!$H$19,0))) -> 13 | M25: 0.6 | N25: =IF(G25=$I$1,Информационный!$G$11,IF(G25=$I$2,Информационный!$G$12,0)) -> 0.5
A26: 15 | B26: Нерпёнок | D26: участник | E26: региональный | G26: Д | H26: 4 | I26: 3.9 | J26: 7. | K26: 15 | L26: =IF(D26=$C$1,Информационный!$F$19,IF(D26=$C$2,Информационный!$G$19,IF(Предметные!D26=Предметные!$C$3,Информационный!$H$19,0))) -> 13 | M26: 0.6 | N26: =IF(G26=$I$1,Информационный!$G$11,IF(G26=$I$2,Информационный!$G$12,0)) -> 0.5
A27: 16 | B27: Золотое перо | D27: участник | E27: региональный | G27: Д | H27: 4 | I27: 3.9 | J27: 7. | K27: 16 | L27: =IF(D27=$C$1,Информационный!$F$19,IF(D27=$C$2,Информационный!$G$19,IF(Предметные!D27=Предметные!$C$3,Информационный!$H$19,0))) -> 13 | M27: 0.6 | N27: =IF(G27=$I$1,Информационный!$G$11,IF(G27=$I$2,Информационный!$G$12,0)) -> 0.5
A28: 17 | B28: Олимпиада по математике | D28: призёр | E28: муниципальный | G28: О | H28: 5 | I28: 5.6 | J28: 7. | K28: 17 | L28: =IF(D28=$C$1,Информационный!$F$19,IF(D28=$C$2,Информационный!$G$19,IF(Предметные!D28=Предметные!$C$3,Информационный!$H$19,0))) -> 14 | M28: 0.4 | N28: =IF(G28=$I$1,Информационный!$G$11,IF(G28=$I$2,Информационный!$G$12,0)) -> 1
A29: 18 | B29: Интеллектуальная игра "Лингвистический турнар" | D29: победитель | E29: муниципальный | G29: О | H29: 5 | I29: 6 | J29: 7. | K29: 18 | L29: =IF(D29=$C$1,Информационный!$F$19,IF(D29=$C$2,Информационный!$G$19,IF(Предметные!D29=Предметные!$C$3,Информационный!$H$19,0))) -> 15 | M29: 0.4 | N29: =IF(G29=$I$1,Информационный!$G$11,IF(G29=$I$2,Информационный!$G$12,0)) -> 1
A30: 19 | B30: КИТ | D30: призёр | E30: федеральный | G30: Д | H30: 5 | I30: 5.6 | J30: 7. | K30: 19 | L30: =IF(D30=$C$1,Информационный!$F$19,IF(D30=$C$2,Информационный!$G$19,IF(Предметные!D30=Предметные!$C$3,Информационный!$H$19,0))) -> 14 | M30: 0.8 | N30: =IF(G30=$I$1,Информационный!$G$11,IF(G30=$I$2,Информационный!$G$12,0)) -> 0.5
A31: 20 | B31: Кенгуру | D31: призёр | E31: федеральный | G31: Д | H31: 5 | I31: 5.6 | J31: 7. | K31: 20 | L31: =IF(D31=$C$1,Информационный!$F$19,IF(D31=$C$2,Информационный!$G$19,IF(Предметные!D31=Предметные!$C$3,Информационный!$H$19,0))) -> 14 | M31: 0.8 | N31: =IF(G31=$I$1,Информационный!$G$11,IF(G31=$I$2,Информационный!$G$12,0)) -> 0.5
A32: 21 | B32: Бульдог | D32: участник | E32: федеральный | G32: Д | H32: 5 | I32: 5.2 | J32: 7. | K32: 21 | L32: =IF(D32=$C$1,Информационный!$F$19,IF(D32=$C$2,Информационный!$G$19,IF(Предметные!D32=Предметные!$C$3,Информационный!$H$19,0))) -> 13 | M32: 0.8 | N32: =IF(G32=$I$1,Информационный!$G$11,IF(G32=$I$2,Информационный!$G$12,0)) -> 0.5
A33: 22 | B33: Математическая карусель | D33: участник | E33: муниципальный | G33: О | H33: 5 | I33: 5.2 | J33: 7. | K33: 22 | L33: =IF(D33=$C$1,Информационный!$F$19,IF(D33=$C$2,Информационный!$G$19,IF(Предметные!D33=Предметные!$C$3,Информационный!$H$19,0))) -> 13 | M33: 0.4 | N33: =IF(G33=$I$1,Информационный!$G$11,IF(G33=$I$2,Информационный!$G$12,0)) -> 1
A34: 23 | B34: КИТ | D34: победитель | E34: федеральный | G34: Д | H34: 6 | I34: 6 | J34: 7. | K34: 23 | L34: =IF(D34=$C$1,Информационный!$F$19,IF(D34=$C$2,Информационный!$G$19,IF(Предметные!D34=Предметные!$C$3,Информационный!$H$19,0))) -> 15 | M34: 0.8 | N34: =IF(G34=$I$1,Информационный!$G$11,IF(G34=$I$2,Информационный!$G$12,0)) -> 0.5
A35: 24 | B35: Золотой ключик | D35: призёр | E35: федеральный | G35: Д | H35: 6 | I35: 5.6 | J35: 7. | K35: 24 | L35: =IF(D35=$C$1,Информационный!$F$19,IF(D35=$C$2,Информационный!$G$19,IF(Предметные!D35=Предметные!$C$3,Информационный!$H$19,0))) -> 14 | M35: 0.8 | N35: =IF(G35=$I$1,Информационный!$G$11,IF(G35=$I$2,Информационный!$G$12,0)) -> 0.5
A36: 25 | B36: Всероссийский конкурс по биологии | D36: участник | E36: федеральный | G36: Д | H36: 6 | I36: 5.2 | J36: 7. | K36: 25 | L36: =IF(D36=$C$1,Информационный!$F$19,IF(D36=$C$2,Информационный!$G$19,IF(Предметные!D36=Предметные!$C$3,Информационный!$H$19,0))) -> 13 | M36: 0.8 | N36: =IF(G36=$I$1,Информационный!$G$11,IF(G36=$I$2,Информационный!$G$12,0)) -> 0.5
A37: 26 | B37: Ломоносовские чтения | D37: участник | E37: муниципальный | G37: О | H37: 6 | I37: 5.2 | J37: 7. | K37: 26 | L37: =IF(D37=$C$1,Информационный!$F$19,IF(D37=$C$2,Информационный!$G$19,IF(Предметные!D37=Предметные!$C$3,Информационный!$H$19,0))) -> 13 | M37: 0.4 | N37: =IF(G37=$I$1,Информационный!$G$11,IF(G37=$I$2,Информационный!$G$12,0)) -> 1
A38: 27 | B38: Байкальская ФМШ | D38: призёр | E38: региональный | G38: О | H38: 6 | I38: 8.4 | J38: 7. | K38: 27 | L38: =IF(D38=$C$1,Информационный!$F$19,IF(D38=$C$2,Информационный!$G$19,IF(Предметные!D38=Предметные!$C$3,Информационный!$H$19,0))) -> 14 | M38: 0.6 | N38: =IF(G38=$I$1,Информационный!$G$11,IF(G38=$I$2,Информационный!$G$12,0)) -> 1
A39: 28 | B39: Бульдог | D39: участник | E39: федеральный | G39: Д | H39: 6 | I39: 5.2 | J39: 7. | K39: 28 | L39: =IF(D39=$C$1,Информационный!$F$19,IF(D39=$C$2,Информационный!$G$19,IF(Предметные!D39=Предметные!$C$3,Информационный!$H$19,0))) -> 13 | M39: 0.8 | N39: =IF(G39=$I$1,Информационный!$G$11,IF(G39=$I$2,Информационный!$G$12,0)) -> 0.5
A40: 29 | B40: Кенгуру | D40: участник | E40: федеральный | G40: Д | H40: 6 | I40: 5.2 | J40: 7. | K40: 29 | L40: =IF(D40=$C$1,Информационный!$F$19,IF(D40=$C$2,Информационный!$G$19,IF(Предметные!D40=Предметные!$C$3,Информационный!$H$19,0))) -> 13 | M40: 0.8 | N40: =IF(G40=$I$1,Информационный!$G$11,IF(G40=$I$2,Информационный!$G$12,0)) -> 0.5
A41: 30 | B41: Олимпиада по математике | D41: победитель | E41: муниципальный | G41: О | H41: 7 | I41: 6 | J41: 7. | K41: 30 | L41: =IF(D41=$C$1,Информационный!$F$19,IF(D41=$C$2,Информационный!$G$19,IF(Предметные!D41=Предметные!$C$3,Информационный!$H$19,0))) -> 15 | M41: 0.4 | N41: =IF(G41=$I$1,Информационный!$G$11,IF(G41=$I$2,Информационный!$G$12,0)) -> 1
A42: 31 | B42: Олимпиада по информатике | D42: победитель | E42: муниципальный | G42: О | H42: 7 | I42: 6 | J42: 7. | K42: 31 | L42: =IF(D42=$C$1,Информационный!$F$19,IF(D42=$C$2,Информационный!$G$19,IF(Предметные!D42=Предметные!$C$3,Информационный!$H$19,0))) -> 15 | M42: 0.4 | N42: =IF(G42=$I$1,Информационный!$G$11,IF(G42=$I$2,Информационный!$G$12,0)) -> 1
A43: 32 | B43: КИТ | D43: призёр | E43: федеральный | G43: Д | H43: 6 | I43: 5.6 | J43: 7. | K43: 32 | L43: =IF(D43=$C$1,Информационный!$F$19,IF(D43=$C$2,Информационный!$G$19,IF(Предметные!D43=Предметные!$C$3,Информационный!$H$19,0))) -> 14 | M43: 0.8 | N43: =IF(G43=$I$1,Информационный!$G$11,IF(G43=$I$2,Информационный!$G$12,0)) -> 0.5
A44: 33 | B44: Олимпиада по русскому языку | D44: призёр | E44: муниципальный | G44: О | H44: 7 | I44: 5.6 | J44: 7. | K44: 33 | L44: =IF(D44=$C$1,Информационный!$F$19,IF(D44=$C$2,Информационный!$G$19,IF(Предметные!D44=Предметные!$C$3,Информационный!$H$19,0))) -> 14 | M44: 0.4 | N44: =IF(G44=$I$1,Информационный!$G$11,IF(G44=$I$2,Информационный!$G$12,0)) -> 1
A45: 34 | B45: Олимпиада по обществознанию | D45: призёр | E45: муниципальный | G45: О | H45: 7 | I45: 5.6 | J45: 7. | K45: 34 | L45: =IF(D45=$C$1,Информационный!$F$19,IF(D45=$C$2,Информационный!$G$19,IF(Предметные!D45=Предметные!$C$3,Информационный!$H$19,0))) -> 14 | M45: 0.4 | N45: =IF(G45=$I$1,Информационный!$G$11,IF(G45=$I$2,Информационный!$G$12,0)) -> 1
A46: 35 | B46: Предметная зимняя олимпиада по математике | D46: призёр | E46: федеральный | G46: Д | H46: 7 | I46: 5.6 | J46: 7. | K46: 35 | L46: =IF(D46=$C$1,Информационный!$F$19,IF(D46=$C$2,Информационный!$G$19,IF(Предметные!D46=Предметные!$C$3,Информационный!$H$19,0))) -> 14 | M46: 0.8 | N46: =IF(G46=$I$1,Информационный!$G$11,IF(G46=$I$2,Информационный!$G$12,0)) -> 0.5
A47: 36 | B47: Байкальская ФМШ | D47: призёр | E47: региональный | G47: О | H47: 7 | I47: 8.4 | J47: 7. | K47: 36 | L47: =IF(D47=$C$1,Информационный!$F$19,IF(D47=$C$2,Информационный!$G$19,IF(Предметные!D47=Предметные!$C$3,Информационный!$H$19,0))) -> 14 | M47: 0.6 | N47: =IF(G47=$I$1,Информационный!$G$11,IF(G47=$I$2,Информационный!$G$12,0)) -> 1
A48: 37 | B48: Инфостранствие | D48: призёр | E48: муниципальный | G48: О | H48: 7 | I48: 5.6 | J48: 7. | K48: 37 | L48: =IF(D48=$C$1,Информационный!$F$19,IF(D48=$C$2,Информационный!$G$19,IF(Предметные!D48=Предметные!$C$3,Информационный!$H$19,0))) -> 14 | M48: 0.4 | N48: =IF(G48=$I$1,Информационный!$G$11,IF(G48=$I$2,Информационный!$G$12,0)) -> 1
A49: 38 | B49: Мультитест | D49: участник | E49: федеральный | G49: Д | H49: 7 | I49: 5.2 | J49: 7. | K49: 38 | L49: =IF(D49=$C$1,Информационный!$F$19,IF(D49=$C$2,Информационный!$G$19,IF(Предметные!D49=Предметные!$C$3,Информационный!$H$19,0))) -> 13 | M49: 0.8 | N49: =IF(G49=$I$1,Информационный!$G$11,IF(G49=$I$2,Информационный!$G$12,0)) -> 0.5
A50: 39 | B50: Бульдог | D50: участник | E50: федеральный | G50: Д | H50: 7 | I50: 5.2 | J50: 7. | K50: 39 | L50: =IF(D50=$C$1,Информационный!$F$19,IF(D50=$C$2,Информационный!$G$19,IF(Предметные!D50=Предметные!$C$3,Информационный!$H$19,0))) -> 13 | M50: 0.8 | N50: =IF(G50=$I$1,Информационный!$G$11,IF(G50=$I$2,Информационный!$G$12,0)) -> 0.5
A51: 40 | B51: Кенгуру | D51: участник | E51: федеральный | G51: Д | H51: 7 | I51: 5.2 | J51: 7. | K51: 40 | L51: =IF(D51=$C$1,Информационный!$F$19,IF(D51=$C$2,Информационный!$G$19,IF(Предметные!D51=Предметные!$C$3,Информационный!$H$19,0))) -> 13 | M51: 0.8 | N51: =IF(G51=$I$1,Информационный!$G$11,IF(G51=$I$2,Информационный!$G$12,0)) -> 0.5
A52: 41 | B52: Олимпиада по математике | D52: участник | E52: региональный | G52: О | H52: 7 | I52: 7.8 | J52: 7. | K52: 41 | L52: =IF(D52=$C$1,Информационный!$F$19,IF(D52=$C$2,Информационный!$G$19,IF(Предметные!D52=Предметные!$C$3,Информационный!$H$19,0))) -> 13 | M52: 0.6 | N52: =IF(G52=$I$1,Информационный!$G$11,IF(G52=$I$2,Информационный!$G$12,0)) -> 1
A53: 42 | B53: Интеллектуальная игра "Лингвистический турнар" | D53: участник | E53: муниципальный | G53: О | H53: 7 | I53: 5.2 | J53: 7. | K53: 42 | L53: =IF(D53=$C$1,Информационный!$F$19,IF(D53=$C$2,Информационный!$G$19,IF(Предметные!D53=Предметные!$C$3,Информационный!$H$19,0))) -> 13 | M53: 0.4 | N53: =IF(G53=$I$1,Информационный!$G$11,IF(G53=$I$2,Информационный!$G$12,0)) -> 1
A54: 43 | B54: Русский медвежонок | D54: участник | E54: региональный | G54: Д | H54: 7 | I54: 3.9 | J54: 7. | K54: 43 | L54: =IF(D54=$C$1,Информационный!$F$19,IF(D54=$C$2,Информационный!$G$19,IF(Предметные!D54=Предметные!$C$3,Информационный!$H$19,0))) -> 13 | M54: 0.6 | N54: =IF(G54=$I$1,Информационный!$G$11,IF(G54=$I$2,Информационный!$G$12,0)) -> 0.5
A55: 44 | B55: Всероссийские олимпиады по биологии | D55: участник | E55: федеральный | G55: Д | H55: 7 | I55: 5.2 | J55: 7. | K55: 44 | L55: =IF(D55=$C$1,Информационный!$F$19,IF(D55=$C$2,Информационный!$G$19,IF(Предметные!D55=Предметные!$C$3,Информационный!$H$19,0))) -> 13 | M55: 0.8 | N55: =IF(G55=$I$1,Информационный!$G$11,IF(G55=$I$2,Информационный!$G$12,0)) -> 0.5
A56: 45 | B56: Олимпиада по математике | D56: призёр | E56: региональный | G56: О | H56: 8 | I56: 8.4 | J56: 7. | K56: 45 | L56: =IF(D56=$C$1,Информационный!$F$19,IF(D56=$C$2,Информационный!$G$19,IF(Предметные!D56=Предметные!$C$3,Информационный!$H$19,0))) -> 14 | M56: 0.6 | N56: =IF(G56=$I$1,Информационный!$G$11,IF(G56=$I$2,Информационный!$G$12,0)) -> 1
A57: 46 | B57: Открытая командная олипиада по математике | D57: призёр | E57: региональный | G57: О | H57: 8 | I57: 8.4 | J57: 7. | K57: 46 | L57: =IF(D57=$C$1,Информационный!$F$19,IF(D57=$C$2,Информационный!$G$19,IF(Предметные!D57=Предметные!$C$3,Информационный!$H$19,0))) -> 14 | M57: 0.6 | N57: =IF(G57=$I$1,Информационный!$G$11,IF(G57=$I$2,Информационный!$G$12,0)) -> 1
A58: 47 | B58: КИТ | D58: призёр | E58: муниципальный | G58: Д | H58: 8 | I58: 2.8 | J58: 7. | K58: 47 | L58: =IF(D58=$C$1,Информационный!$F$19,IF(D58=$C$2,Информационный!$G$19,IF(Предметные!D58=Предметные!$C$3,Информационный!$H$19,0))) -> 14 | M58: 0.4 | N58: =IF(G58=$I$1,Информационный!$G$11,IF(G58=$I$2,Информационный!$G$12,0)) -> 0.5
A59: 48 | B59: 54 выездная математическая олимпиада | D59: победитель | E59: федеральный | G59: Д | H59: 8 | I59: 6 | J59: 7. | K59: 48 | L59: =IF(D59=$C$1,Информационный!$F$19,IF(D59=$C$2,Информационный!$G$19,IF(Предметные!D59=Предметные!$C$3,Информационный!$H$19,0))) -> 15 | M59: 0.8 | N59: =IF(G59=$I$1,Информационный!$G$11,IF(G59=$I$2,Информационный!$G$12,0)) -> 0.5
A60: 49 | B60: 54 выездная физическая олимпиада | D60: победитель | E60: федеральный | G60: Д | H60: 8 | I60: 6 | J60: 7. | K60: 49 | L60: =IF(D60=$C$1,Информационный!$F$19,IF(D60=$C$2,Информационный!$G$19,IF(Предметные!D60=Предметные!$C$3,Информационный!$H$19,0))) -> 15 | M60: 0.8 | N60: =IF(G60=$I$1,Информационный!$G$11,IF(G60=$I$2,Информационный!$G$12,0)) -> 0.5
A61: 50 | B61: Открытая интернет олимпиада по физике | D61: победитель | E61: федеральный | G61: Д | H61: 8 | I61: 6 | J61: 7. | K61: 50 | L61: =IF(D61=$C$1,Информационный!$F$19,IF(D61=$C$2,Информационный!$G$19,IF(Предметные!D61=Предметные!$C$3,Информационный!$H$19,0))) -> 15 | M61: 0.8 | N61: =IF(G61=$I$1,Информационный!$G$11,IF(G61=$I$2,Информационный!$G$12,0)) -> 0.5
A62: 51 | B62: Открытая интернет олимпиада по математике | D62: призёр | E62: федеральный | G62: Д | H62: 8 | I62: 5.6 | J62: 7. | K62: 51 | L62: =IF(D62=$C$1,Информационный!$F$19,IF(D62=$C$2,Информационный!$G$19,IF(Предметные!D62=Предметные!$C$3,Информационный!$H$19,0))) -> 14 | M62: 0.8 | N62: =IF(G62=$I$1,Информационный!$G$11,IF(G62=$I$2,Информационный!$G$12,0)) -> 0.5
A63: 52 | B63: Олимпиада по физике | D63: призёр | E63: региональный | G63: О | H63: 8 | I63: 8.4 | J63: 7. | K63: 52 | L63: =IF(D63=$C$1,Информационный!$F$19,IF(D63=$C$2,Информационный!$G$19,IF(Предметные!D63=Предметные!$C$3,Информационный!$H$19,0))) -> 14 | M63: 0.6 | N63: =IF(G63=$I$1,Информационный!$G$11,IF(G63=$I$2,Информационный!$G$12,0)) -> 1
A64: 53 | B64: Олимпиада по информатике | D64: призёр | E64: муниципальный | G64: О | H64: 8 | I64: 5.6 | J64: 7. | K64: 53 | L64: =IF(D64=$C$1,Информационный!$F$19,IF(D64=$C$2,Информационный!$G$19,IF(Предметные!D64=Предметные!$C$3,Информационный!$H$19,0))) -> 14 | M64: 0.4 | N64: =IF(G64=$I$1,Информационный!$G$11,IF(G64=$I$2,Информационный!$G$12,0)) -> 1
A65: 54 | B65: Кенгуру | D65: победитель | E65: федеральный | G65: Д | H65: 8 | I65: 6 | J65: 7. | K65: 54 | L65: =IF(D65=$C$1,Информационный!$F$19,IF(D65=$C$2,Информационный!$G$19,IF(Предметные!D65=Предметные!$C$3,Информационный!$H$19,0))) -> 15 | M65: 0.8 | N65: =IF(G65=$I$1,Информационный!$G$11,IF(G65=$I$2,Информационный!$G$12,0)) -> 0.5
A66: 55 | B66: Общероссийская олимпиада по физике (школьные дни) | D66: призёр | E66: федеральный | G66: Д | H66: 8 | I66: 5.6 | J66: 7. | K66: 55 | L66: =IF(D66=$C$1,Информационный!$F$19,IF(D66=$C$2,Информационный!$G$19,IF(Предметные!D66=Предметные!$C$3,Информационный!$H$19,0))) -> 14 | M66: 0.8 | N66: =IF(G66=$I$1,Информационный!$G$11,IF(G66=$I$2,Информационный!$G$12,0)) -> 0.5
A67: 56 | B67: Общероссийская предметная олимпиада по физике | D67: призёр | E67: федеральный | G67: Д | H67: 8 | I67: 5.6 | J67: 7. | K67: 56 | L67: =IF(D67=$C$1,Информационный!$F$19,IF(D67=$C$2,Информационный!$G$19,IF(Предметные!D67=Предметные!$C$3,Информационный!$H$19,0))) -> 14 | M67: 0.8 | N67: =IF(G67=$I$1,Информационный!$G$11,IF(G67=$I$2,Информационный!$G$12,0)) -> 0.5
A68: 57 | B68: Общероссийская олимпиада по физике (школьные дни) | D68: призёр | E68: федеральный | G68: Д | H68: 8 | I68: 5.6 | J68: 7. | K68: 57 | L68: =IF(D68=$C$1,Информационный!$F$19,IF(D68=$C$2,Информационный!$G$19,IF(Предметные!D68=Предметные!$C$3,Информационный!$H$19,0))) -> 14 | M68: 0.8 | N68: =IF(G68=$I$1,Информационный!$G$11,IF(G68=$I$2,Информационный!$G$12,0)) -> 0.5
A69: 58 | B69: Бульдог | D69: участник | E69: федеральный | G69: Д | H69: 8 | I69: 5.2 | J69: 7. | K69: 58 | L69: =IF(D69=$C$1,Информационный!$F$19,IF(D69=$C$2,Информационный!$G$19,IF(Предметные!D69=Предметные!$C$3,Информационный!$H$19,0))) -> 13 | M69: 0.8 | N69: =IF(G69=$I$1,Информационный!$G$11,IF(G69=$I$2,Информационный!$G$12,0)) -> 0.5
A70: 59 | B70: Олимпиада по математике | D70: участник | E70: региональный | G70: О | H70: 8 | I70: 7.8 | J70: 7. | K70: 59 | L70: =IF(D70=$C$1,Информационный!$F$19,IF(D70=$C$2,Информационный!$G$19,IF(Предметные!D70=Предметные!$C$3,Информационный!$H$19,0))) -> 13 | M70: 0.6 | N70: =IF(G70=$I$1,Информационный!$G$11,IF(G70=$I$2,Информационный!$G$12,0)) -> 1
A71: 60 | B71: Математическая карусель | D71: победитель | E71: региональный | G71: О | H71: 8 | I71: 9 | J71: 7. | K71: 60 | L71: =IF(D71=$C$1,Информационный!$F$19,IF(D71=$C$2,Информационный!$G$19,IF(Предметные!D71=Предметные!$C$3,Информационный!$H$19,0))) -> 15 | M71: 0.6 | N71: =IF(G71=$I$1,Информационный!$G$11,IF(G71=$I$2,Информационный!$G$12,0)) -> 1
A72: 61 | B72: VIII математическое многоборье | D72: призёр | E72: федеральный | G72: О | H72: 9 | I72: 11.2 | J72: 7. | K72: 61 | L72: =IF(D72=$C$1,Информационный!$F$19,IF(D72=$C$2,Информационный!$G$19,IF(Предметные!D72=Предметные!$C$3,Информационный!$H$19,0))) -> 14 | M72: 0.8 | N72: =IF(G72=$I$1,Информационный!$G$11,IF(G72=$I$2,Информационный!$G$12,0)) -> 1
A73: 62 | B73: Олимпиада по химии | D73: призёр | E73: муниципальный | G73: О | H73: 9 | I73: 5.6 | J73: 7. | K73: 62 | L73: =IF(D73=$C$1,Информационный!$F$19,IF(D73=$C$2,Информационный!$G$19,IF(Предметные!D73=Предметные!$C$3,Информационный!$H$19,0))) -> 14 | M73: 0.4 | N73: =IF(G73=$I$1,Информационный!$G$11,IF(G73=$I$2,Информационный!$G$12,0)) -> 1
A74: 63 | B74: Олимпиада по физике | D74: победитель | E74: региональный | G74: О | H74: 9 | I74: 9 | J74: 7. | K74: 63 | L74: =IF(D74=$C$1,Информационный!$F$19,IF(D74=$C$2,Информационный!$G$19,IF(Предметные!D74=Предметные!$C$3,Информационный!$H$19,0))) -> 15 | M74: 0.6 | N74: =IF(G74=$I$1,Информационный!$G$11,IF(G74=$I$2,Информационный!$G$12,0)) -> 1
A75: 64 | B75: Олимпиада по информатике | D75: призёр | E75: региональный | G75: О | H75: 9 | I75: 8.4 | J75: 7. | K75: 64 | L75: =IF(D75=$C$1,Информационный!$F$19,IF(D75=$C$2,Информационный!$G$19,IF(Предметные!D75=Предметные!$C$3,Информационный!$H$19,0))) -> 14 | M75: 0.6 | N75: =IF(G75=$I$1,Информационный!$G$11,IF(G75=$I$2,Информационный!$G$12,0)) -> 1
A76: 65 | B76: Олимпиада по математике | D76: призёр | E76: региональный | G76: О | H76: 9 | I76: 8.4 | J76: 7. | K76: 65 | L76: =IF(D76=$C$1,Информационный!$F$19,IF(D76=$C$2,Информационный!$G$19,IF(Предметные!D76=Предметные!$C$3,Информационный!$H$19,0))) -> 14 | M76: 0.6 | N76: =IF(G76=$I$1,Информационный!$G$11,IF(G76=$I$2,Информационный!$G$12,0)) -> 1
A77: 66 | B77: Олимпиада по физике | D77: победитель | E77: муниципальный | G77: О | H77: 9 | I77: =L77*M77*N77 -> 6 | J77: 7. | K77: =IF(B77<>0,A77," ") -> 66 | L77: =IF(D77=$C$1,Информационный!$F$19,IF(D77=$C$2,Информационный!$G$19,IF(Предметные!D77=Предметные!$C$3,Информационный!$H$19,0))) -> 15 | M77: =IF(E77=$F$5,1,IF(E77=$F$4,0.8,IF(E77=$F$3,0.6,IF(E77=$F$2,0.4,IF(E77=$F$1,0.2,0))))) -> 0.4 | N77: =IF(G77=$I$1,Информационный!$G$11,IF(G77=$I$2,Информационный!$G$12,0)) -> 1
A78: 67 | I78: 0 | J78: 7. | L78: =IF(D78=$C$1,Информационный!$F$19,IF(D78=$C$2,Информационный!$G$19,IF(Предметные!D78=Предметные!$C$3,Информационный!$H$19,0))) -> 0 | M78: 0 | N78: =IF(G78=$I$1,Информационный!$G$11,IF(G78=$I$2,Информационный!$G$12,0)) -> 0
A79: 68 | I79: 0 | J79: 7. | L79: =IF(D79=$C$1,Информационный!$F$19,IF(D79=$C$2,Информационный!$G$19,IF(Предметные!D79=Предметные!$C$3,Информационный!$H$19,0))) -> 0 | M79: 0 | N79: =IF(G79=$I$1,Информационный!$G$11,IF(G79=$I$2,Информационный!$G$12,0)) -> 0
A80: 69 | I80: 0 | J80: 7. | L80: =IF(D80=$C$1,Информационный!$F$19,IF(D80=$C$2,Информационный!$G$19,IF(Предметные!D80=Предметные!$C$3,Информационный!$H$19,0))) -> 0 | M80: 0 | N80: =IF(G80=$I$1,Информационный!$G$11,IF(G80=$I$2,Информационный!$G$12,0)) -> 0
A81: 70 | I81: 0 | J81: 7. | L81: =IF(D81=$C$1,Информационный!$F$19,IF(D81=$C$2,Информационный!$G$19,IF(Предметные!D81=Предметные!$C$3,Информационный!$H$19,0))) -> 0 | M81: 0 | N81: =IF(G81=$I$1,Информационный!$G$11,IF(G81=$I$2,Информационный!$G$12,0)) -> 0
A82: 71 | I82: 0 | J82: 7. | L82: =IF(D82=$C$1,Информационный!$F$19,IF(D82=$C$2,Информационный!$G$19,IF(Предметные!D82=Предметные!$C$3,Информационный!$H$19,0))) -> 0 | M82: 0 | N82: =IF(G82=$I$1,Информационный!$G$11,IF(G82=$I$2,Информационный!$G$12,0)) -> 0
A83: 72 | I83: 0 | J83: 7. | L83: =IF(D83=$C$1,Информационный!$F$19,IF(D83=$C$2,Информационный!$G$19,IF(Предметные!D83=Предметные!$C$3,Информационный!$H$19,0))) -> 0 | M83: 0 | N83: =IF(G83=$I$1,Информационный!$G$11,IF(G83=$I$2,Информационный!$G$12,0)) -> 0
A84: 73 | I84: 0 | J84: 7. | L84: =IF(D84=$C$1,Информационный!$F$19,IF(D84=$C$2,Информационный!$G$19,IF(Предметные!D84=Предметные!$C$3,Информационный!$H$19,0))) -> 0 | M84: 0 | N84: =IF(G84=$I$1,Информационный!$G$11,IF(G84=$I$2,Информационный!$G$12,0)) -> 0
A85: 74 | I85: 0 | J85: 7. | L85: =IF(D85=$C$1,Информационный!$F$19,IF(D85=$C$2,Информационный!$G$19,IF(Предметные!D85=Предметные!$C$3,Информационный!$H$19,0))) -> 0 | M85: 0 | N85: =IF(G85=$I$1,Информационный!$G$11,IF(G85=$I$2,Информационный!$G$12,0)) -> 0
A86: 75 | I86: 0 | J86: 7. | L86: =IF(D86=$C$1,Информационный!$F$19,IF(D86=$C$2,Информационный!$G$19,IF(Предметные!D86=Предметные!$C$3,Информационный!$H$19,0))) -> 0 | M86: 0 | N86: =IF(G86=$I$1,Информационный!$G$11,IF(G86=$I$2,Информационный!$G$12,0)) -> 0
A87: 76 | I87: 0 | J87: 7. | L87: =IF(D87=$C$1,Информационный!$F$19,IF(D87=$C$2,Информационный!$G$19,IF(Предметные!D87=Предметные!$C$3,Информационный!$H$19,0))) -> 0 | M87: 0 | N87: =IF(G87=$I$1,Информационный!$G$11,IF(G87=$I$2,Информационный!$G$12,0)) -> 0
A88: 77 | I88: 0 | J88: 7. | L88: =IF(D88=$C$1,Информационный!$F$19,IF(D88=$C$2,Информационный!$G$19,IF(Предметные!D88=Предметные!$C$3,Информационный!$H$19,0))) -> 0 | M88: 0 | N88: =IF(G88=$I$1,Информационный!$G$11,IF(G88=$I$2,Информационный!$G$12,0)) -> 0
A89: 78 | I89: 0 | J89: 7. | L89: =IF(D89=$C$1,Информационный!$F$19,IF(D89=$C$2,Информационный!$G$19,IF(Предметные!D89=Предметные!$C$3,Информационный!$H$19,0))) -> 0 | M89: 0 | N89: =IF(G89=$I$1,Информационный!$G$11,IF(G89=$I$2,Информационный!$G$12,0)) -> 0
A90: 79 | I90: 0 | J90: 7. | L90: =IF(D90=$C$1,Информационный!$F$19,IF(D90=$C$2,Информационный!$G$19,IF(Предметные!D90=Предметные!$C$3,Информационный!$H$19,0))) -> 0 | M90: 0 | N90: =IF(G90=$I$1,Информационный!$G$11,IF(G90=$I$2,Информационный!$G$12,0)) -> 0
A91: 80 | I91: 0 | J91: 7. | L91: =IF(D91=$C$1,Информационный!$F$19,IF(D91=$C$2,Информационный!$G$19,IF(Предметные!D91=Предметные!$C$3,Информационный!$H$19,0))) -> 0 | M91: 0 | N91: =IF(G91=$I$1,Информационный!$G$11,IF(G91=$I$2,Информационный!$G$12,0)) -> 0
A92: 81 | I92: 0 | J92: 7. | L92: =IF(D92=$C$1,Информационный!$F$19,IF(D92=$C$2,Информационный!$G$19,IF(Предметные!D92=Предметные!$C$3,Информационный!$H$19,0))) -> 0 | M92: 0 | N92: =IF(G92=$I$1,Информационный!$G$11,IF(G92=$I$2,Информационный!$G$12,0)) -> 0
A93: 82 | I93: 0 | J93: 7. | L93: =IF(D93=$C$1,Информационный!$F$19,IF(D93=$C$2,Информационный!$G$19,IF(Предметные!D93=Предметные!$C$3,Информационный!$H$19,0))) -> 0 | M93: 0 | N93: =IF(G93=$I$1,Информационный!$G$11,IF(G93=$I$2,Информационный!$G$12,0)) -> 0
A94: 83 | I94: 0 | J94: 7. | L94: =IF(D94=$C$1,Информационный!$F$19,IF(D94=$C$2,Информационный!$G$19,IF(Предметные!D94=Предметные!$C$3,Информационный!$H$19,0))) -> 0 | M94: 0 | N94: =IF(G94=$I$1,Информационный!$G$11,IF(G94=$I$2,Информационный!$G$12,0)) -> 0
A95: 84 | I95: 0 | J95: 7. | L95: =IF(D95=$C$1,Информационный!$F$19,IF(D95=$C$2,Информационный!$G$19,IF(Предметные!D95=Предметные!$C$3,Информационный!$H$19,0))) -> 0 | M95: 0 | N95: =IF(G95=$I$1,Информационный!$G$11,IF(G95=$I$2,Информационный!$G$12,0)) -> 0
A96: 85 | I96: 0 | J96: 7. | L96: =IF(D96=$C$1,Информационный!$F$19,IF(D96=$C$2,Информационный!$G$19,IF(Предметные!D96=Предметные!$C$3,Информационный!$H$19,0))) -> 0 | M96: 0 | N96: =IF(G96=$I$1,Информационный!$G$11,IF(G96=$I$2,Информационный!$G$12,0)) -> 0
A97: 86 | I97: 0 | J97: 7. | L97: =IF(D97=$C$1,Информационный!$F$19,IF(D97=$C$2,Информационный!$G$19,IF(Предметные!D97=Предметные!$C$3,Информационный!$H$19,0))) -> 0 | M97: 0 | N97: =IF(G97=$I$1,Информационный!$G$11,IF(G97=$I$2,Информационный!$G$12,0)) -> 0
A98: 87 | I98: 0 | J98: 7. | L98: =IF(D98=$C$1,Информационный!$F$19,IF(D98=$C$2,Информационный!$G$19,IF(Предметные!D98=Предметные!$C$3,Информационный!$H$19,0))) -> 0 | M98: 0 | N98: =IF(G98=$I$1,Информационный!$G$11,IF(G98=$I$2,Информационный!$G$12,0)) -> 0
A99: 88 | I99: 0 | J99: 7. | L99: =IF(D99=$C$1,Информационный!$F$19,IF(D99=$C$2,Информационный!$G$19,IF(Предметные!D99=Предметные!$C$3,Информационный!$H$19,0))) -> 0 | M99: 0 | N99: =IF(G99=$I$1,Информационный!$G$11,IF(G99=$I$2,Информационный!$G$12,0)) -> 0
A100: 89 | I100: 0 | J100: 7. | L100: =IF(D100=$C$1,Информационный!$F$19,IF(D100=$C$2,Информационный!$G$19,IF(Предметные!D100=Предметные!$C$3,Информационный!$H$19,0))) -> 0 | M100: 0 | N100: =IF(G100=$I$1,Информационный!$G$11,IF(G100=$I$2,Информационный!$G$12,0)) -> 0
A101: 90 | I101: 0 | J101: 7. | L101: =IF(D101=$C$1,Информационный!$F$19,IF(D101=$C$2,Информационный!$G$19,IF(Предметные!D101=Предметные!$C$3,Информационный!$H$19,0))) -> 0 | M101: 0 | N101: =IF(G101=$I$1,Информационный!$G$11,IF(G101=$I$2,Информационный!$G$12,0)) -> 0
A102: 91 | I102: 0 | J102: 7. | L102: =IF(D102=$C$1,Информационный!$F$19,IF(D102=$C$2,Информационный!$G$19,IF(Предметные!D102=Предметные!$C$3,Информационный!$H$19,0))) -> 0 | M102: 0 | N102: =IF(G102=$I$1,Информационный!$G$11,IF(G102=$I$2,Информационный!$G$12,0)) -> 0
A103: 92 | I103: 0 | J103: 7. | L103: =IF(D103=$C$1,Информационный!$F$19,IF(D103=$C$2,Информационный!$G$19,IF(Предметные!D103=Предметные!$C$3,Информационный!$H$19,0))) -> 0 | M103: 0 | N103: =IF(G103=$I$1,Информационный!$G$11,IF(G103=$I$2,Информационный!$G$12,0)) -> 0
A104: 93 | I104: 0 | J104: 7. | L104: =IF(D104=$C$1,Информационный!$F$19,IF(D104=$C$2,Информационный!$G$19,IF(Предметные!D104=Предметные!$C$3,Информационный!$H$19,0))) -> 0 | M104: 0 | N104: =IF(G104=$I$1,Информационный!$G$11,IF(G104=$I$2,Информационный!$G$12,0)) -> 0
A105: 94 | I105: 0 | J105: 7. | L105: =IF(D105=$C$1,Информационный!$F$19,IF(D105=$C$2,Информационный!$G$19,IF(Предметные!D105=Предметные!$C$3,Информационный!$H$19,0))) -> 0 | M105: 0 | N105: =IF(G105=$I$1,Информационный!$G$11,IF(G105=$I$2,Информационный!$G$12,0)) -> 0
A106: 95 | I106: 0 | J106: 7. | L106: =IF(D106=$C$1,Информационный!$F$19,IF(D106=$C$2,Информационный!$G$19,IF(Предметные!D106=Предметные!$C$3,Информационный!$H$19,0))) -> 0 | M106: 0 | N106: =IF(G106=$I$1,Информационный!$G$11,IF(G106=$I$2,Информационный!$G$12,0)) -> 0
A107: 96 | I107: 0 | J107: 7. | L107: =IF(D107=$C$1,Информационный!$F$19,IF(D107=$C$2,Информационный!$G$19,IF(Предметные!D107=Предметные!$C$3,Информационный!$H$19,0))) -> 0 | M107: 0 | N107: =IF(G107=$I$1,Информационный!$G$11,IF(G107=$I$2,Информационный!$G$12,0)) -> 0
A108: 97 | I108: 0 | J108: 7. | L108: =IF(D108=$C$1,Информационный!$F$19,IF(D108=$C$2,Информационный!$G$19,IF(Предметные!D108=Предметные!$C$3,Информационный!$H$19,0))) -> 0 | M108: 0 | N108: =IF(G108=$I$1,Информационный!$G$11,IF(G108=$I$2,Информационный!$G$12,0)) -> 0
A109: 98 | I109: 0 | J109: 7. | L109: =IF(D109=$C$1,Информационный!$F$19,IF(D109=$C$2,Информационный!$G$19,IF(Предметные!D109=Предметные!$C$3,Информационный!$H$19,0))) -> 0 | M109: 0 | N109: =IF(G109=$I$1,Информационный!$G$11,IF(G109=$I$2,Информационный!$G$12,0)) -> 0
A110: 99 | I110: 0 | J110: 7. | L110: =IF(D110=$C$1,Информационный!$F$19,IF(D110=$C$2,Информационный!$G$19,IF(Предметные!D110=Предметные!$C$3,Информационный!$H$19,0))) -> 0 | M110: 0 | N110: =IF(G110=$I$1,Информационный!$G$11,IF(G110=$I$2,Информационный!$G$12,0)) -> 0
A111: 100 | I111: 0 | J111: 7. | L111: =IF(D111=$C$1,Информационный!$F$19,IF(D111=$C$2,Информационный!$G$19,IF(Предметные!D111=Предметные!$C$3,Информационный!$H$19,0))) -> 0 | M111: 0 | N111: =IF(G111=$I$1,Информационный!$G$11,IF(G111=$I$2,Информационный!$G$12,0)) -> 0
D112: Уровень участия | E112: =COUNTIF($E$12:$E$111,"школьный") -> 0 | F112: =F1 -> школьный
E113: =COUNTIF($E$12:$E$111,"муниципальный") -> 20 | F113: =F2 -> муниципальный
E114: =COUNTIF($E$12:$E$111,"региональный") -> 17 | F114: =F3 -> региональный
E115: =COUNTIF($E$12:$E$111,"всероссийский") -> 0 | F115: =F4 -> федеральный
E116: =COUNTIF($E$12:$E$111,"международный") -> 0 | F116: =F5 -> международный
E118: =NOW() -> 2019-08-24T15:19:23.810
E120: ='Информация о школе'!$A$22 -> Классный руководитель
E121: /_________________/
E122: ='Информация о школе'!$D$22 -> Главаля Ирина Геннадьевна
H138: 1 класс | I138: =SUMIF($H$12:$H$111,"1",$I$12:$I$111) -> 5.6
H139: 2 класс | I139: =SUMIF($H$12:$H$111,"2",$I$12:$I$111) -> 19.2
H140: 3 класс | I140: =SUMIF($H$12:$H$111,"3",$I$12:$I$111) -> 15
H141: 4 класс | I141: =SUMIF($H$12:$H$111,"4",$I$12:$I$111) -> 38.4
H142: 5 класс | I142: =SUMIF($H$12:$H$111,"5",$I$12:$I$111) -> 33.2
H143: 6 класс | I143: =SUMIF($H$12:$H$111,"6",$I$12:$I$111) -> 46.4
H144: 7 класс | I144: =SUMIF($H$12:$H$111,"7",$I$12:$I$111) -> 80.5
H145: 8 класс | I145: =SUMIF($H$12:$H$111,"81",$I$12:$I$111) -> 0
H146: 9 класс | I146: =SUMIF($H$12:$H$111,"9",$I$12:$I$111) -> 48.6
H147: 10 класс | I147: =SUMIF($H$12:$H$111,"10",$I$12:$I$111) -> 0
H148: 11 класс | I148: =SUMIF($H$12:$H$111,"11",$I$12:$I$111) -> 0
A151: Электронное портфолио учащегося

Sheet Публикации
C1: победитель | F1: школьный | I1: Б
C2: призёр | F2: муниципальный | I2: Э
C3: участник | F3: региональный
F4: федеральный
F5: международный
A6: ПУБЛИКАЦИИ
A7: ='Личные данные'!$A$9 -> ЭЛЕКТРОННОЕ | C7: ='Личные данные'!$C$9 -> ПОРТФОЛИО | E7: =титульный!$D$57 -> Антонова Светлана Степановна | H7: =титульный!$D$58 -> МБОУ "СОШ№11"
A8: №п\п | B8: Название публикации | D8: Где опубликовано | E8: Уровень | G8: Форма публикации | H8: класс | I8: Балл | J8: Номер в приложении
L11: Результат | M11: уровень | N11: Форма
A12: 1 | B12: Тангарм. Семь хитроумных фигур | D12: Иркутский региональный педклуб "Перспектива" | E12: региональный | G12: Э | H12: 1 | I12: =M12*N12 -> 1.5 | J12: 8. | K12: =IF(B12<>0,A12," ") -> 1 | L12: =IF(D12=$C$1,Информационный!$Q$19,IF(D12=$C$2,Информационный!$R$19,IF(Публикации!D12=Публикации!$C$3,Информационный!$S$19,0))) -> 0 | M12: =IF(E12=$F$5,Информационный!$I$19,IF(E12=$F$4,Информационный!$I$18,IF(E12=$F$3,Информационный!$I$17,IF(E12=$F$2,Информационный!$I$16,IF(E12=$F$1,Информационный!$I$15,0))))) -> 3 | N12: =IF(G12=$I$1,Информационный!$X$11,IF(G12=$I$2,Информационный!$X$12,0)) -> 0.5
A13: 2 | I13: =M13*N13 -> 0 | J13: 8. | K13: =IF(B13<>0,A13," ") ->  | L13: =IF(D13=$C$1,Информационный!$Q$19,IF(D13=$C$2,Информационный!$R$19,IF(Публикации!D13=Публикации!$C$3,Информационный!$S$19,0))) -> 0 | M13: =IF(E13=$F$5,Информационный!$I$19,IF(E13=$F$4,Информационный!$I$18,IF(E13=$F$3,Информационный!$I$17,IF(E13=$F$2,Информационный!$I$16,IF(E13=$F$1,Информационный!$I$15,0))))) -> 0 | N13: =IF(G13=$I$1,Информационный!$X$11,IF(G13=$I$2,Информационный!$X$12,0)) -> 0
A14: 3 | I14: 0 | J14: 8. | L14: =IF(D14=$C$1,Информационный!$Q$19,IF(D14=$C$2,Информационный!$R$19,IF(Публикации!D14=Публикации!$C$3,Информационный!$S$19,0))) -> 0 | M14: =IF(E14=$F$5,Информационный!$I$19,IF(E14=$F$4,Информационный!$I$18,IF(E14=$F$3,Информационный!$I$17,IF(E14=$F$2,Информационный!$I$16,IF(E14=$F$1,Информационный!$I$15,0))))) -> 0 | N14: =IF(G14=$I$1,Информационный!$X$11,IF(G14=$I$2,Информационный!$X$12,0)) -> 0
A15: 4 | I15: 0 | J15: 8. | L15: =IF(D15=$C$1,Информационный!$Q$19,IF(D15=$C$2,Информационный!$R$19,IF(Публикации!D15=Публикации!$C$3,Информационный!$S$19,0))) -> 0 | M15: =IF(E15=$F$5,Информационный!$I$19,IF(E15=$F$4,Информационный!$I$18,IF(E15=$F$3,Информационный!$I$17,IF(E15=$F$2,Информационный!$I$16,IF(E15=$F$1,Информационный!$I$15,0))))) -> 0 | N15: =IF(G15=$I$1,Информационный!$X$11,IF(G15=$I$2,Информационный!$X$12,0)) -> 0
A16: 5 | I16: 0 | J16: 8. | L16: =IF(D16=$C$1,Информационный!$Q$19,IF(D16=$C$2,Информационный!$R$19,IF(Публикации!D16=Публикации!$C$3,Информационный!$S$19,0))) -> 0 | M16: =IF(E16=$F$5,Информационный!$I$19,IF(E16=$F$4,Информационный!$I$18,IF(E16=$F$3,Информационный!$I$17,IF(E16=$F$2,Информационный!$I$16,IF(E16=$F$1,Информационный!$I$15,0))))) -> 0 | N16: =IF(G16=$I$1,Информационный!$X$11,IF(G16=$I$2,Информационный!$X$12,0)) -> 0
A17: 6 | I17: 0 | J17: 8. | L17: =IF(D17=$C$1,Информационный!$Q$19,IF(D17=$C$2,Информационный!$R$19,IF(Публикации!D17=Публикации!$C$3,Информационный!$S$19,0))) -> 0 | M17: =IF(E17=$F$5,Информационный!$I$19,IF(E17=$F$4,Информационный!$I$18,IF(E17=$F$3,Информационный!$I$17,IF(E17=$F$2,Информационный!$I$16,IF(E17=$F$1,Информационный!$I$15,0))))) -> 0 | N17: =IF(G17=$I$1,Информационный!$X$11,IF(G17=$I$2,Информационный!$X$12,0)) -> 0
A18: 7 | I18: 0 | J18: 8. | L18: =IF(D18=$C$1,Информационный!$Q$19,IF(D18=$C$2,Информационный!$R$19,IF(Публикации!D18=Публикации!$C$3,Информационный!$S$19,0))) -> 0 | M18: =IF(E18=$F$5,Информационный!$I$19,IF(E18=$F$4,Информационный!$I$18,IF(E18=$F$3,Информационный!$I$17,IF(E18=$F$2,Информационный!$I$16,IF(E18=$F$1,Информационный!$I$15,0))))) -> 0 | N18: =IF(G18=$I$1,Информационный!$X$11,IF(G18=$I$2,Информационный!$X$12,0)) -> 0
A19: 8 | I19: 0 | J19: 8. | L19: =IF(D19=$C$1,Информационный!$Q$19,IF(D19=$C$2,Информационный!$R$19,IF(Публикации!D19=Публикации!$C$3,Информационный!$S$19,0))) -> 0 | M19: =IF(E19=$F$5,Информационный!$I$19,IF(E19=$F$4,Информационный!$I$18,IF(E19=$F$3,Информационный!$I$17,IF(E19=$F$2,Информационный!$I$16,IF(E19=$F$1,Информационный!$I$15,0))))) -> 0 | N19: =IF(G19=$I$1,Информационный!$X$11,IF(G19=$I$2,Информационный!$X$12,0)) -> 0
A20: 9 | I20: 0 | J20: 8. | L20: =IF(D20=$C$1,Информационный!$Q$19,IF(D20=$C$2,Информационный!$R$19,IF(Публикации!D20=Публикации!$C$3,Информационный!$S$19,0))) -> 0 | M20: =IF(E20=$F$5,Информационный!$I$19,IF(E20=$F$4,Информационный!$I$18,IF(E20=$F$3,Информационный!$I$17,IF(E20=$F$2,Информационный!$I$16,IF(E20=$F$1,Информационный!$I$15,0))))) -> 0 | N20: =IF(G20=$I$1,Информационный!$X$11,IF(G20=$I$2,Информационный!$X$12,0)) -> 0
A21: 10 | I21: 0 | J21: 8. | L21: =IF(D21=$C$1,Информационный!$Q$19,IF(D21=$C$2,Информационный!$R$19,IF(Публикации!D21=Публикации!$C$3,Информационный!$S$19,0))) -> 0 | M21: =IF(E21=$F$5,Информационный!$I$19,IF(E21=$F$4,Информационный!$I$18,IF(E21=$F$3,Информационный!$I$17,IF(E21=$F$2,Информационный!$I$16,IF(E21=$F$1,Информационный!$I$15,0))))) -> 0 | N21: =IF(G21=$I$1,Информационный!$X$11,IF(G21=$I$2,Информационный!$X$12,0)) -> 0
A22: 11 | I22: 0 | J22: 8. | L22: =IF(D22=$C$1,Информационный!$Q$19,IF(D22=$C$2,Информационный!$R$19,IF(Публикации!D22=Публикации!$C$3,Информационный!$S$19,0))) -> 0 | M22: =IF(E22=$F$5,Информационный!$I$19,IF(E22=$F$4,Информационный!$I$18,IF(E22=$F$3,Информационный!$I$17,IF(E22=$F$2,Информационный!$I$16,IF(E22=$F$1,Информационный!$I$15,0))))) -> 0 | N22: =IF(G22=$I$1,Информационный!$X$11,IF(G22=$I$2,Информационный!$X$12,0)) -> 0
A23: 12 | I23: 0 | J23: 8. | L23: =IF(D23=$C$1,Информационный!$Q$19,IF(D23=$C$2,Информационный!$R$19,IF(Публикации!D23=Публикации!$C$3,Информационный!$S$19,0))) -> 0 | M23: =IF(E23=$F$5,Информационный!$I$19,IF(E23=$F$4,Информационный!$I$18,IF(E23=$F$3,Информационный!$I$17,IF(E23=$F$2,Информационный!$I$16,IF(E23=$F$1,Информационный!$I$15,0))))) -> 0 | N23: =IF(G23=$I$1,Информационный!$X$11,IF(G23=$I$2,Информационный!$X$12,0)) -> 0
A24: 13 | I24: 0 | J24: 8. | L24: =IF(D24=$C$1,Информационный!$Q$19,IF(D24=$C$2,Информационный!$R$19,IF(Публикации!D24=Публикации!$C$3,Информационный!$S$19,0))) -> 0 | M24: =IF(E24=$F$5,Информационный!$I$19,IF(E24=$F$4,Информационный!$I$18,IF(E24=$F$3,Информационный!$I$17,IF(E24=$F$2,Информационный!$I$16,IF(E24=$F$1,Информационный!$I$15,0))))) -> 0 | N24: =IF(G24=$I$1,Информационный!$X$11,IF(G24=$I$2,Информационный!$X$12,0)) -> 0
A25: 14 | I25: 0 | J25: 8. | L25: =IF(D25=$C$1,Информационный!$Q$19,IF(D25=$C$2,Информационный!$R$19,IF(Публикации!D25=Публикации!$C$3,Информационный!$S$19,0))) -> 0 | M25: =IF(E25=$F$5,Информационный!$I$19,IF(E25=$F$4,Информационный!$I$18,IF(E25=$F$3,Информационный!$I$17,IF(E25=$F$2,Информационный!$I$16,IF(E25=$F$1,Информационный!$I$15,0))))) -> 0 | N25: =IF(G25=$I$1,Информационный!$X$11,IF(G25=$I$2,Информационный!$X$12,0)) -> 0
A26: 15 | I26: 0 | J26: 8. | L26: =IF(D26=$C$1,Информационный!$Q$19,IF(D26=$C$2,Информационный!$R$19,IF(Публикации!D26=Публикации!$C$3,Информационный!$S$19,0))) -> 0 | M26: =IF(E26=$F$5,Информационный!$I$19,IF(E26=$F$4,Информационный!$I$18,IF(E26=$F$3,Информационный!$I$17,IF(E26=$F$2,Информационный!$I$16,IF(E26=$F$1,Информационный!$I$15,0))))) -> 0 | N26: =IF(G26=$I$1,Информационный!$X$11,IF(G26=$I$2,Информационный!$X$12,0)) -> 0
A27: 16 | I27: 0 | J27: 8. | L27: =IF(D27=$C$1,Информационный!$Q$19,IF(D27=$C$2,Информационный!$R$19,IF(Публикации!D27=Публикации!$C$3,Информационный!$S$19,0))) -> 0 | M27: =IF(E27=$F$5,Информационный!$I$19,IF(E27=$F$4,Информационный!$I$18,IF(E27=$F$3,Информационный!$I$17,IF(E27=$F$2,Информационный!$I$16,IF(E27=$F$1,Информационный!$I$15,0))))) -> 0 | N27: =IF(G27=$I$1,Информационный!$X$11,IF(G27=$I$2,Информационный!$X$12,0)) -> 0
A28: 17 | I28: 0 | J28: 8. | L28: =IF(D28=$C$1,Информационный!$Q$19,IF(D28=$C$2,Информационный!$R$19,IF(Публикации!D28=Публикации!$C$3,Информационный!$S$19,0))) -> 0 | M28: =IF(E28=$F$5,Информационный!$I$19,IF(E28=$F$4,Информационный!$I$18,IF(E28=$F$3,Информационный!$I$17,IF(E28=$F$2,Информационный!$I$16,IF(E28=$F$1,Информационный!$I$15,0))))) -> 0 | N28: =IF(G28=$I$1,Информационный!$X$11,IF(G28=$I$2,Информационный!$X$12,0)) -> 0
A29: 18 | I29: 0 | J29: 8. | L29: =IF(D29=$C$1,Информационный!$Q$19,IF(D29=$C$2,Информационный!$R$19,IF(Публикации!D29=Публикации!$C$3,Информационный!$S$19,0))) -> 0 | M29: =IF(E29=$F$5,Информационный!$I$19,IF(E29=$F$4,Информационный!$I$18,IF(E29=$F$3,Информационный!$I$17,IF(E29=$F$2,Информационный!$I$16,IF(E29=$F$1,Информационный!$I$15,0))))) -> 0 | N29: =IF(G29=$I$1,Информационный!$X$11,IF(G29=$I$2,Информационный!$X$12,0)) -> 0
A30: 19 | I30: 0 | J30: 8. | L30: =IF(D30=$C$1,Информационный!$Q$19,IF(D30=$C$2,Информационный!$R$19,IF(Публикации!D30=Публикации!$C$3,Информационный!$S$19,0))) -> 0 | M30: =IF(E30=$F$5,Информационный!$I$19,IF(E30=$F$4,Информационный!$I$18,IF(E30=$F$3,Информационный!$I$17,IF(E30=$F$2,Информационный!$I$16,IF(E30=$F$1,Информационный!$I$15,0))))) -> 0 | N30: =IF(G30=$I$1,Информационный!$X$11,IF(G30=$I$2,Информационный!$X$12,0)) -> 0
A31: 20 | I31: 0 | J31: 8. | L31: =IF(D31=$C$1,Информационный!$Q$19,IF(D31=$C$2,Информационный!$R$19,IF(Публикации!D31=Публикации!$C$3,Информационный!$S$19,0))) -> 0 | M31: =IF(E31=$F$5,Информационный!$I$19,IF(E31=$F$4,Информационный!$I$18,IF(E31=$F$3,Информационный!$I$17,IF(E31=$F$2,Информационный!$I$16,IF(E31=$F$1,Информационный!$I$15,0))))) -> 0 | N31: =IF(G31=$I$1,Информационный!$X$11,IF(G31=$I$2,Информационный!$X$12,0)) -> 0
D32: Уровень публикации | E32: =COUNTIF($E$12:$E$31,"школьный") -> 0 | F32: =F1 -> школьный
E33: =COUNTIF($E$12:$E$31,"муниципальный") -> 0 | F33: =F2 -> муниципальный
E34: =COUNTIF($E$12:$E$31,"региональный") -> 1 | F34: =F3 -> региональный
E35: =COUNTIF($E$12:$E$31,"всероссийский") -> 0 | F35: =F4 -> федеральный
E36: =COUNTIF($E$12:$E$31,"международный") -> 0 | F36: =F5 -> международный
H38: =NOW() -> 2019-08-24T15:19:23.810
E40: ='Информация о школе'!$A$22 -> Классный руководитель
E41: /_________________/
E42: ='Информация о школе'!$D$22 -> Главаля Ирина Геннадьевна
H55: 1 класс | I55: =SUMIF($H$12:$H$31,"1",$I$12:$I$31) -> 1.5
H56: 2 класс | I56: =SUMIF($H$12:$H$31,"2",$I$12:$I$31) -> 0
H57: 3 класс | I57: =SUMIF($H$12:$H$31,"3",$I$12:$I$31) -> 0
H58: 4 класс | I58: =SUMIF($H$12:$H$31,"4",$I$12:$I$31) -> 0
H59: 5 класс | I59: =SUMIF($H$12:$H$31,"5",$I$12:$I$31) -> 0
H60: 6 класс | I60: =SUMIF($H$12:$H$31,"6",$I$12:$I$31) -> 0
H61: 7 класс | I61: =SUMIF($H$12:$H$31,"7",$I$12:$I$31) -> 0
H62: 8 класс | I62: =SUMIF($H$12:$H$31,"81",$I$12:$I$31) -> 0
H63: 9 класс | I63: =SUMIF($H$12:$H$31,"9",$I$12:$I$31) -> 0
H64: 10 класс | I64: =SUMIF($H$12:$H$31,"10",$I$12:$I$31) -> 0
H65: 11 класс | I65: =SUMIF($H$12:$H$31,"11",$I$12:$I$31) -> 0
A104: Электронное портфолио учащегося

Sheet Награды
A1: благодарность | C1: победитель | F1: школьный | I1: Б
A2: грамота | C2: призёр | F2: муниципальный | I2: Э
C3: участник | F3: региональный
F4: федеральный
F5: международный
A6: БЛАГОДАРНОСТИ, ГРАМОТЫ, НАГРАДЫ
A7: ='Личные данные'!$A$9 -> ЭЛЕКТРОННОЕ | C7: ='Личные данные'!$C$9 -> ПОРТФОЛИО | E7: =титульный!$D$57 -> Антонова Светлана Степановна | H7: =титульный!$D$58 -> МБОУ "СОШ№11"
A8: №п\п | B8: Название поощрения | D8: Вид поощрения | E8: Уровень | H8: класс | I8: Балл | J8: Номер в приложении
L11: Результат | M11: уровень | N11: Форма
A12: 1 | B12: Похвальная грамота за успехи в учёбе и активность | D12: грамота | E12: школьный | H12: 1 | I12: =M12 -> 1 | J12: 9. | K12: =IF(B12<>0,A12," ") -> 1 | L12: =IF(D12=$C$1,Информационный!$Q$19,IF(D12=$C$2,Информационный!$R$19,IF(Награды!D12=Награды!$C$3,Информационный!$S$19,0))) -> 0 | M12: =IF(E12=$F$5,Информационный!$I$19,IF(E12=$F$4,Информационный!$I$18,IF(E12=$F$3,Информационный!$I$17,IF(E12=$F$2,Информационный!$I$16,IF(E12=$F$1,Информационный!$I$15,0))))) -> 1 | N12: =IF(G12=$I$1,Информационный!$X$11,IF(G12=$I$2,Информационный!$X$12,0)) -> 0
A13: 2 | B13: Похвальная грамота за успехи в учёбе и активность | D13: грамота | E13: школьный | H13: 3 | I13: =M13 -> 1 | J13: 9. | K13: 2 | L13: =IF(D13=$C$1,Информационный!$Q$19,IF(D13=$C$2,Информационный!$R$19,IF(Награды!D13=Награды!$C$3,Информационный!$S$19,0))) -> 0 | M13: =IF(E13=$F$5,Информационный!$I$19,IF(E13=$F$4,Информационный!$I$18,IF(E13=$F$3,Информационный!$I$17,IF(E13=$F$2,Информационный!$I$16,IF(E13=$F$1,Информационный!$I$15,0))))) -> 1 | N13: =IF(G13=$I$1,Информационный!$X$11,IF(G13=$I$2,Информационный!$X$12,0)) -> 0
A14: 3 | B14: Победителю муниципальных олимпиад | D14: грамота | E14: школьный | H14: 4 | I14: 1 | J14: 9. | K14: 3 | L14: =IF(D14=$C$1,Информационный!$Q$19,IF(D14=$C$2,Информационный!$R$19,IF(Награды!D14=Награды!$C$3,Информационный!$S$19,0))) -> 0 | M14: =IF(E14=$F$5,Информационный!$I$19,IF(E14=$F$4,Информационный!$I$18,IF(E14=$F$3,Информационный!$I$17,IF(E14=$F$2,Информационный!$I$16,IF(E14=$F$1,Информационный!$I$15,0))))) -> 1 | N14: =IF(G14=$I$1,Информационный!$X$11,IF(G14=$I$2,Информационный!$X$12,0)) -> 0
A15: 4 | B15: За хорошую учёбу и активность | D15: грамота | E15: школьный | H15: 5 | I15: 1 | J15: 9. | K15: 4 | L15: =IF(D15=$C$1,Информационный!$Q$19,IF(D15=$C$2,Информационный!$R$19,IF(Награды!D15=Награды!$C$3,Информационный!$S$19,0))) -> 0 | M15: =IF(E15=$F$5,Информационный!$I$19,IF(E15=$F$4,Информационный!$I$18,IF(E15=$F$3,Информационный!$I$17,IF(E15=$F$2,Информационный!$I$16,IF(E15=$F$1,Информационный!$I$15,0))))) -> 1 | N15: =IF(G15=$I$1,Информационный!$X$11,IF(G15=$I$2,Информационный!$X$12,0)) -> 0
A16: 5 | B16: За хорошую учёбу и активность | D16: грамота | E16: школьный | H16: 6 | I16: 1 | J16: 9. | K16: 5 | L16: =IF(D16=$C$1,Информационный!$Q$19,IF(D16=$C$2,Информационный!$R$19,IF(Награды!D16=Награды!$C$3,Информационный!$S$19,0))) -> 0 | M16: =IF(E16=$F$5,Информационный!$I$19,IF(E16=$F$4,Информационный!$I$18,IF(E16=$F$3,Информационный!$I$17,IF(E16=$F$2,Информационный!$I$16,IF(E16=$F$1,Информационный!$I$15,0))))) -> 1 | N16: =IF(G16=$I$1,Информационный!$X$11,IF(G16=$I$2,Информационный!$X$12,0)) -> 0
A17: 6 | B17: За хорошую учёбу и активность | D17: грамота | E17: школьный | H17: 7 | I17: 1 | J17: 9. | K17: 6 | L17: =IF(D17=$C$1,Информационный!$Q$19,IF(D17=$C$2,Информационный!$R$19,IF(Награды!D17=Награды!$C$3,Информационный!$S$19,0))) -> 0 | M17: =IF(E17=$F$5,Информационный!$I$19,IF(E17=$F$4,Информационный!$I$18,IF(E17=$F$3,Информационный!$I$17,IF(E17=$F$2,Информационный!$I$16,IF(E17=$F$1,Информационный!$I$15,0))))) -> 1 | N17: =IF(G17=$I$1,Информационный!$X$11,IF(G17=$I$2,Информационный!$X$12,0)) -> 0
A18: 7 | B18: За отличную учёбу и активность | D18: грамота | E18: школьный | H18: 8 | I18: 1 | J18: 9. | L18: =IF(D18=$C$1,Информационный!$Q$19,IF(D18=$C$2,Информационный!$R$19,IF(Награды!D18=Награды!$C$3,Информационный!$S$19,0))) -> 0 | M18: =IF(E18=$F$5,Информационный!$I$19,IF(E18=$F$4,Информационный!$I$18,IF(E18=$F$3,Информационный!$I$17,IF(E18=$F$2,Информационный!$I$16,IF(E18=$F$1,Информационный!$I$15,0))))) -> 1 | N18: =IF(G18=$I$1,Информационный!$X$11,IF(G18=$I$2,Информационный!$X$12,0)) -> 0
A19: 8 | B19: Ангарский покров | D19: благодарность | E19: муниципальный | H19: 6 | I19: 2 | J19: 9. | L19: =IF(D19=$C$1,Информационный!$Q$19,IF(D19=$C$2,Информационный!$R$19,IF(Награды!D19=Награды!$C$3,Информационный!$S$19,0))) -> 0 | M19: =IF(E19=$F$5,Информационный!$I$19,IF(E19=$F$4,Информационный!$I$18,IF(E19=$F$3,Информационный!$I$17,IF(E19=$F$2,Информационный!$I$16,IF(E19=$F$1,Информационный!$I$15,0))))) -> 2 | N19: =IF(G19=$I$1,Информационный!$X$11,IF(G19=$I$2,Информационный!$X$12,0)) -> 0
A20: 9 | B20: За отличные успехи и активную деятельность | D20: благодарность | E20: муниципальный | H20: 8 | I20: 2 | J20: 9. | L20: =IF(D20=$C$1,Информационный!$Q$19,IF(D20=$C$2,Информационный!$R$19,IF(Награды!D20=Награды!$C$3,Информационный!$S$19,0))) -> 0 | M20: =IF(E20=$F$5,Информационный!$I$19,IF(E20=$F$4,Информационный!$I$18,IF(E20=$F$3,Информационный!$I$17,IF(E20=$F$2,Информационный!$I$16,IF(E20=$F$1,Информационный!$I$15,0))))) -> 2 | N20: =IF(G20=$I$1,Информационный!$X$11,IF(G20=$I$2,Информационный!$X$12,0)) -> 0
A21: 10 | B21: За отличные показатели в обучении в худ школе | D21: благодарность | E21: муниципальный | H21: 8 | I21: 2 | J21: 9. | L21: =IF(D21=$C$1,Информационный!$Q$19,IF(D21=$C$2,Информационный!$R$19,IF(Награды!D21=Награды!$C$3,Информационный!$S$19,0))) -> 0 | M21: =IF(E21=$F$5,Информационный!$I$19,IF(E21=$F$4,Информационный!$I$18,IF(E21=$F$3,Информационный!$I$17,IF(E21=$F$2,Информационный!$I$16,IF(E21=$F$1,Информационный!$I$15,0))))) -> 2 | N21: =IF(G21=$I$1,Информационный!$X$11,IF(G21=$I$2,Информационный!$X$12,0)) -> 0
A22: 11 | B22: За активное участие и творческие успхи в кружке "Начало" | D22: благодарность | E22: муниципальный | H22: 6 | I22: 2 | J22: 9. | L22: =IF(D22=$C$1,Информационный!$Q$19,IF(D22=$C$2,Информационный!$R$19,IF(Награды!D22=Награды!$C$3,Информационный!$S$19,0))) -> 0 | M22: =IF(E22=$F$5,Информационный!$I$19,IF(E22=$F$4,Информационный!$I$18,IF(E22=$F$3,Информационный!$I$17,IF(E22=$F$2,Информационный!$I$16,IF(E22=$F$1,Информационный!$I$15,0))))) -> 2 | N22: =IF(G22=$I$1,Информационный!$X$11,IF(G22=$I$2,Информационный!$X$12,0)) -> 0
A23: 12 | I23: 0 | J23: 9. | L23: =IF(D23=$C$1,Информационный!$Q$19,IF(D23=$C$2,Информационный!$R$19,IF(Награды!D23=Награды!$C$3,Информационный!$S$19,0))) -> 0 | M23: =IF(E23=$F$5,Информационный!$I$19,IF(E23=$F$4,Информационный!$I$18,IF(E23=$F$3,Информационный!$I$17,IF(E23=$F$2,Информационный!$I$16,IF(E23=$F$1,Информационный!$I$15,0))))) -> 0 | N23: =IF(G23=$I$1,Информационный!$X$11,IF(G23=$I$2,Информационный!$X$12,0)) -> 0
A24: 13 | I24: 0 | J24: 9. | L24: =IF(D24=$C$1,Информационный!$Q$19,IF(D24=$C$2,Информационный!$R$19,IF(Награды!D24=Награды!$C$3,Информационный!$S$19,0))) -> 0 | M24: =IF(E24=$F$5,Информационный!$I$19,IF(E24=$F$4,Информационный!$I$18,IF(E24=$F$3,Информационный!$I$17,IF(E24=$F$2,Информационный!$I$16,IF(E24=$F$1,Информационный!$I$15,0))))) -> 0 | N24: =IF(G24=$I$1,Информационный!$X$11,IF(G24=$I$2,Информационный!$X$12,0)) -> 0
A25: 14 | I25: 0 | J25: 9. | L25: =IF(D25=$C$1,Информационный!$Q$19,IF(D25=$C$2,Информационный!$R$19,IF(Награды!D25=Награды!$C$3,Информационный!$S$19,0))) -> 0 | M25: =IF(E25=$F$5,Информационный!$I$19,IF(E25=$F$4,Информационный!$I$18,IF(E25=$F$3,Информационный!$I$17,IF(E25=$F$2,Информационный!$I$16,IF(E25=$F$1,Информационный!$I$15,0))))) -> 0 | N25: =IF(G25=$I$1,Информационный!$X$11,IF(G25=$I$2,Информационный!$X$12,0)) -> 0
A26: 15 | I26: 0 | J26: 9. | L26: =IF(D26=$C$1,Информационный!$Q$19,IF(D26=$C$2,Информационный!$R$19,IF(Награды!D26=Награды!$C$3,Информационный!$S$19,0))) -> 0 | M26: =IF(E26=$F$5,Информационный!$I$19,IF(E26=$F$4,Информационный!$I$18,IF(E26=$F$3,Информационный!$I$17,IF(E26=$F$2,Информационный!$I$16,IF(E26=$F$1,Информационный!$I$15,0))))) -> 0 | N26: =IF(G26=$I$1,Информационный!$X$11,IF(G26=$I$2,Информационный!$X$12,0)) -> 0
A27: 16 | I27: 0 | J27: 9. | L27: =IF(D27=$C$1,Информационный!$Q$19,IF(D27=$C$2,Информационный!$R$19,IF(Награды!D27=Награды!$C$3,Информационный!$S$19,0))) -> 0 | M27: =IF(E27=$F$5,Информационный!$I$19,IF(E27=$F$4,Информационный!$I$18,IF(E27=$F$3,Информационный!$I$17,IF(E27=$F$2,Информационный!$I$16,IF(E27=$F$1,Информационный!$I$15,0))))) -> 0 | N27: =IF(G27=$I$1,Информационный!$X$11,IF(G27=$I$2,Информационный!$X$12,0)) -> 0
A28: 17 | I28: 0 | J28: 9. | L28: =IF(D28=$C$1,Информационный!$Q$19,IF(D28=$C$2,Информационный!$R$19,IF(Награды!D28=Награды!$C$3,Информационный!$S$19,0))) -> 0 | M28: =IF(E28=$F$5,Информационный!$I$19,IF(E28=$F$4,Информационный!$I$18,IF(E28=$F$3,Информационный!$I$17,IF(E28=$F$2,Информационный!$I$16,IF(E28=$F$1,Информационный!$I$15,0))))) -> 0 | N28: =IF(G28=$I$1,Информационный!$X$11,IF(G28=$I$2,Информационный!$X$12,0)) -> 0
A29: 18 | I29: 0 | J29: 9. | L29: =IF(D29=$C$1,Информационный!$Q$19,IF(D29=$C$2,Информационный!$R$19,IF(Награды!D29=Награды!$C$3,Информационный!$S$19,0))) -> 0 | M29: =IF(E29=$F$5,Информационный!$I$19,IF(E29=$F$4,Информационный!$I$18,IF(E29=$F$3,Информационный!$I$17,IF(E29=$F$2,Информационный!$I$16,IF(E29=$F$1,Информационный!$I$15,0))))) -> 0 | N29: =IF(G29=$I$1,Информационный!$X$11,IF(G29=$I$2,Информационный!$X$12,0)) -> 0
A30: 19 | I30: 0 | J30: 9. | L30: =IF(D30=$C$1,Информационный!$Q$19,IF(D30=$C$2,Информационный!$R$19,IF(Награды!D30=Награды!$C$3,Информационный!$S$19,0))) -> 0 | M30: =IF(E30=$F$5,Информационный!$I$19,IF(E30=$F$4,Информационный!$I$18,IF(E30=$F$3,Информационный!$I$17,IF(E30=$F$2,Информационный!$I$16,IF(E30=$F$1,Информационный!$I$15,0))))) -> 0 | N30: =IF(G30=$I$1,Информационный!$X$11,IF(G30=$I$2,Информационный!$X$12,0)) -> 0
A31: 20 | I31: 0 | J31: 9. | L31: =IF(D31=$C$1,Информационный!$Q$19,IF(D31=$C$2,Информационный!$R$19,IF(Награды!D31=Награды!$C$3,Информационный!$S$19,0))) -> 0 | M31: =IF(E31=$F$5,Информационный!$I$19,IF(E31=$F$4,Информационный!$I$18,IF(E31=$F$3,Информационный!$I$17,IF(E31=$F$2,Информационный!$I$16,IF(E31=$F$1,Информационный!$I$15,0))))) -> 0 | N31: =IF(G31=$I$1,Информационный!$X$11,IF(G31=$I$2,Информационный!$X$12,0)) -> 0
A32: 21 | I32: 0 | J32: 9. | L32: =IF(D32=$C$1,Информационный!$Q$19,IF(D32=$C$2,Информационный!$R$19,IF(Награды!D32=Награды!$C$3,Информационный!$S$19,0))) -> 0 | M32: =IF(E32=$F$5,Информационный!$I$19,IF(E32=$F$4,Информационный!$I$18,IF(E32=$F$3,Информационный!$I$17,IF(E32=$F$2,Информационный!$I$16,IF(E32=$F$1,Информационный!$I$15,0))))) -> 0 | N32: =IF(G32=$I$1,Информационный!$X$11,IF(G32=$I$2,Информационный!$X$12,0)) -> 0
A33: 22 | I33: 0 | J33: 9. | L33: =IF(D33=$C$1,Информационный!$Q$19,IF(D33=$C$2,Информационный!$R$19,IF(Награды!D33=Награды!$C$3,Информационный!$S$19,0))) -> 0 | M33: =IF(E33=$F$5,Информационный!$I$19,IF(E33=$F$4,Информационный!$I$18,IF(E33=$F$3,Информационный!$I$17,IF(E33=$F$2,Информационный!$I$16,IF(E33=$F$1,Информационный!$I$15,0))))) -> 0 | N33: =IF(G33=$I$1,Информационный!$X$11,IF(G33=$I$2,Информационный!$X$12,0)) -> 0
A34: 23 | I34: 0 | J34: 9. | L34: =IF(D34=$C$1,Информационный!$Q$19,IF(D34=$C$2,Информационный!$R$19,IF(Награды!D34=Награды!$C$3,Информационный!$S$19,0))) -> 0 | M34: =IF(E34=$F$5,Информационный!$I$19,IF(E34=$F$4,Информационный!$I$18,IF(E34=$F$3,Информационный!$I$17,IF(E34=$F$2,Информационный!$I$16,IF(E34=$F$1,Информационный!$I$15,0))))) -> 0 | N34: =IF(G34=$I$1,Информационный!$X$11,IF(G34=$I$2,Информационный!$X$12,0)) -> 0
A35: 24 | I35: 0 | J35: 9. | L35: =IF(D35=$C$1,Информационный!$Q$19,IF(D35=$C$2,Информационный!$R$19,IF(Награды!D35=Награды!$C$3,Информационный!$S$19,0))) -> 0 | M35: =IF(E35=$F$5,Информационный!$I$19,IF(E35=$F$4,Информационный!$I$18,IF(E35=$F$3,Информационный!$I$17,IF(E35=$F$2,Информационный!$I$16,IF(E35=$F$1,Информационный!$I$15,0))))) -> 0 | N35: =IF(G35=$I$1,Информационный!$X$11,IF(G35=$I$2,Информационный!$X$12,0)) -> 0
A36: 25 | I36: 0 | J36: 9. | K36: =IF(B36<>0,A36," ") ->  | L36: =IF(D36=$C$1,Информационный!$Q$19,IF(D36=$C$2,Информационный!$R$19,IF(Награды!D36=Награды!$C$3,Информационный!$S$19,0))) -> 0 | M36: =IF(E36=$F$5,Информационный!$I$19,IF(E36=$F$4,Информационный!$I$18,IF(E36=$F$3,Информационный!$I$17,IF(E36=$F$2,Информационный!$I$16,IF(E36=$F$1,Информационный!$I$15,0))))) -> 0 | N36: =IF(G36=$I$1,Информационный!$X$11,IF(G36=$I$2,Информационный!$X$12,0)) -> 0
A37: 26 | I37: 0 | J37: 9. | K37: =IF(B37<>0,A37," ") ->  | L37: =IF(D37=$C$1,Информационный!$Q$19,IF(D37=$C$2,Информационный!$R$19,IF(Награды!D37=Награды!$C$3,Информационный!$S$19,0))) -> 0 | M37: =IF(E37=$F$5,Информационный!$I$19,IF(E37=$F$4,Информационный!$I$18,IF(E37=$F$3,Информационный!$I$17,IF(E37=$F$2,Информационный!$I$16,IF(E37=$F$1,Информационный!$I$15,0))))) -> 0 | N37: =IF(G37=$I$1,Информационный!$X$11,IF(G37=$I$2,Информационный!$X$12,0)) -> 0
A38: 27 | I38: 0 | J38: 9. | K38: =IF(B38<>0,A38," ") ->  | L38: =IF(D38=$C$1,Информационный!$Q$19,IF(D38=$C$2,Информационный!$R$19,IF(Награды!D38=Награды!$C$3,Информационный!$S$19,0))) -> 0 | M38: =IF(E38=$F$5,Информационный!$I$19,IF(E38=$F$4,Информационный!$I$18,IF(E38=$F$3,Информационный!$I$17,IF(E38=$F$2,Информационный!$I$16,IF(E38=$F$1,Информационный!$I$15,0))))) -> 0 | N38: =IF(G38=$I$1,Информационный!$X$11,IF(G38=$I$2,Информационный!$X$12,0)) -> 0
A39: 28 | I39: 0 | J39: 9. | K39: =IF(B39<>0,A39," ") ->  | L39: =IF(D39=$C$1,Информационный!$Q$19,IF(D39=$C$2,Информационный!$R$19,IF(Награды!D39=Награды!$C$3,Информационный!$S$19,0))) -> 0 | M39: =IF(E39=$F$5,Информационный!$I$19,IF(E39=$F$4,Информационный!$I$18,IF(E39=$F$3,Информационный!$I$17,IF(E39=$F$2,Информационный!$I$16,IF(E39=$F$1,Информационный!$I$15,0))))) -> 0 | N39: =IF(G39=$I$1,Информационный!$X$11,IF(G39=$I$2,Информационный!$X$12,0)) -> 0
A40: 29 | I40: 0 | J40: 9. | K40: =IF(B40<>0,A40," ") ->  | L40: =IF(D40=$C$1,Информационный!$Q$19,IF(D40=$C$2,Информационный!$R$19,IF(Награды!D40=Награды!$C$3,Информационный!$S$19,0))) -> 0 | M40: =IF(E40=$F$5,Информационный!$I$19,IF(E40=$F$4,Информационный!$I$18,IF(E40=$F$3,Информационный!$I$17,IF(E40=$F$2,Информационный!$I$16,IF(E40=$F$1,Информационный!$I$15,0))))) -> 0 | N40: =IF(G40=$I$1,Информационный!$X$11,IF(G40=$I$2,Информационный!$X$12,0)) -> 0
A41: 30 | I41: 0 | J41: 9. | L41: =IF(D41=$C$1,Информационный!$Q$19,IF(D41=$C$2,Информационный!$R$19,IF(Награды!D41=Награды!$C$3,Информационный!$S$19,0))) -> 0 | M41: =IF(E41=$F$5,Информационный!$I$19,IF(E41=$F$4,Информационный!$I$18,IF(E41=$F$3,Информационный!$I$17,IF(E41=$F$2,Информационный!$I$16,IF(E41=$F$1,Информационный!$I$15,0))))) -> 0 | N41: =IF(G41=$I$1,Информационный!$X$11,IF(G41=$I$2,Информационный!$X$12,0)) -> 0
A42: 31 | I42: 0 | J42: 9. | L42: =IF(D42=$C$1,Информационный!$Q$19,IF(D42=$C$2,Информационный!$R$19,IF(Награды!D42=Награды!$C$3,Информационный!$S$19,0))) -> 0 | M42: =IF(E42=$F$5,Информационный!$I$19,IF(E42=$F$4,Информационный!$I$18,IF(E42=$F$3,Информационный!$I$17,IF(E42=$F$2,Информационный!$I$16,IF(E42=$F$1,Информационный!$I$15,0))))) -> 0 | N42: =IF(G42=$I$1,Информационный!$X$11,IF(G42=$I$2,Информационный!$X$12,0)) -> 0
A43: 32 | I43: 0 | J43: 9. | L43: =IF(D43=$C$1,Информационный!$Q$19,IF(D43=$C$2,Информационный!$R$19,IF(Награды!D43=Награды!$C$3,Информационный!$S$19,0))) -> 0 | M43: =IF(E43=$F$5,Информационный!$I$19,IF(E43=$F$4,Информационный!$I$18,IF(E43=$F$3,Информационный!$I$17,IF(E43=$F$2,Информационный!$I$16,IF(E43=$F$1,Информационный!$I$15,0))))) -> 0 | N43: =IF(G43=$I$1,Информационный!$X$11,IF(G43=$I$2,Информационный!$X$12,0)) -> 0
A44: 33 | I44: 0 | J44: 9. | L44: =IF(D44=$C$1,Информационный!$Q$19,IF(D44=$C$2,Информационный!$R$19,IF(Награды!D44=Награды!$C$3,Информационный!$S$19,0))) -> 0 | M44: =IF(E44=$F$5,Информационный!$I$19,IF(E44=$F$4,Информационный!$I$18,IF(E44=$F$3,Информационный!$I$17,IF(E44=$F$2,Информационный!$I$16,IF(E44=$F$1,Информационный!$I$15,0))))) -> 0 | N44: =IF(G44=$I$1,Информационный!$X$11,IF(G44=$I$2,Информационный!$X$12,0)) -> 0
A45: 34 | I45: 0 | J45: 9. | L45: =IF(D45=$C$1,Информационный!$Q$19,IF(D45=$C$2,Информационный!$R$19,IF(Награды!D45=Награды!$C$3,Информационный!$S$19,0))) -> 0 | M45: =IF(E45=$F$5,Информационный!$I$19,IF(E45=$F$4,Информационный!$I$18,IF(E45=$F$3,Информационный!$I$17,IF(E45=$F$2,Информационный!$I$16,IF(E45=$F$1,Информационный!$I$15,0))))) -> 0 | N45: =IF(G45=$I$1,Информационный!$X$11,IF(G45=$I$2,Информационный!$X$12,0)) -> 0
A46: 35 | I46: 0 | J46: 9. | L46: =IF(D46=$C$1,Информационный!$Q$19,IF(D46=$C$2,Информационный!$R$19,IF(Награды!D46=Награды!$C$3,Информационный!$S$19,0))) -> 0 | M46: =IF(E46=$F$5,Информационный!$I$19,IF(E46=$F$4,Информационный!$I$18,IF(E46=$F$3,Информационный!$I$17,IF(E46=$F$2,Информационный!$I$16,IF(E46=$F$1,Информационный!$I$15,0))))) -> 0 | N46: =IF(G46=$I$1,Информационный!$X$11,IF(G46=$I$2,Информационный!$X$12,0)) -> 0
A47: 36 | I47: 0 | J47: 9. | L47: =IF(D47=$C$1,Информационный!$Q$19,IF(D47=$C$2,Информационный!$R$19,IF(Награды!D47=Награды!$C$3,Информационный!$S$19,0))) -> 0 | M47: =IF(E47=$F$5,Информационный!$I$19,IF(E47=$F$4,Информационный!$I$18,IF(E47=$F$3,Информационный!$I$17,IF(E47=$F$2,Информационный!$I$16,IF(E47=$F$1,Информационный!$I$15,0))))) -> 0 | N47: =IF(G47=$I$1,Информационный!$X$11,IF(G47=$I$2,Информационный!$X$12,0)) -> 0
A48: 37 | I48: 0 | J48: 9. | L48: =IF(D48=$C$1,Информационный!$Q$19,IF(D48=$C$2,Информационный!$R$19,IF(Награды!D48=Награды!$C$3,Информационный!$S$19,0))) -> 0 | M48: =IF(E48=$F$5,Информационный!$I$19,IF(E48=$F$4,Информационный!$I$18,IF(E48=$F$3,Информационный!$I$17,IF(E48=$F$2,Информационный!$I$16,IF(E48=$F$1,Информационный!$I$15,0))))) -> 0 | N48: =IF(G48=$I$1,Информационный!$X$11,IF(G48=$I$2,Информационный!$X$12,0)) -> 0
A49: 38 | I49: 0 | J49: 9. | L49: =IF(D49=$C$1,Информационный!$Q$19,IF(D49=$C$2,Информационный!$R$19,IF(Награды!D49=Награды!$C$3,Информационный!$S$19,0))) -> 0 | M49: =IF(E49=$F$5,Информационный!$I$19,IF(E49=$F$4,Информационный!$I$18,IF(E49=$F$3,Информационный!$I$17,IF(E49=$F$2,Информационный!$I$16,IF(E49=$F$1,Информационный!$I$15,0))))) -> 0 | N49: =IF(G49=$I$1,Информационный!$X$11,IF(G49=$I$2,Информационный!$X$12,0)) -> 0
A50: 39 | I50: 0 | J50: 9. | L50: =IF(D50=$C$1,Информационный!$Q$19,IF(D50=$C$2,Информационный!$R$19,IF(Награды!D50=Награды!$C$3,Информационный!$S$19,0))) -> 0 | M50: =IF(E50=$F$5,Информационный!$I$19,IF(E50=$F$4,Информационный!$I$18,IF(E50=$F$3,Информационный!$I$17,IF(E50=$F$2,Информационный!$I$16,IF(E50=$F$1,Информационный!$I$15,0))))) -> 0 | N50: =IF(G50=$I$1,Информационный!$X$11,IF(G50=$I$2,Информационный!$X$12,0)) -> 0
A51: 40 | I51: 0 | J51: 9. | L51: =IF(D51=$C$1,Информационный!$Q$19,IF(D51=$C$2,Информационный!$R$19,IF(Награды!D51=Награды!$C$3,Информационный!$S$19,0))) -> 0 | M51: =IF(E51=$F$5,Информационный!$I$19,IF(E51=$F$4,Информационный!$I$18,IF(E51=$F$3,Информационный!$I$17,IF(E51=$F$2,Информационный!$I$16,IF(E51=$F$1,Информационный!$I$15,0))))) -> 0 | N51: =IF(G51=$I$1,Информационный!$X$11,IF(G51=$I$2,Информационный!$X$12,0)) -> 0
A52: 41 | I52: 0 | J52: 9. | L52: =IF(D52=$C$1,Информационный!$Q$19,IF(D52=$C$2,Информационный!$R$19,IF(Награды!D52=Награды!$C$3,Информационный!$S$19,0))) -> 0 | M52: =IF(E52=$F$5,Информационный!$I$19,IF(E52=$F$4,Информационный!$I$18,IF(E52=$F$3,Информационный!$I$17,IF(E52=$F$2,Информационный!$I$16,IF(E52=$F$1,Информационный!$I$15,0))))) -> 0 | N52: =IF(G52=$I$1,Информационный!$X$11,IF(G52=$I$2,Информационный!$X$12,0)) -> 0
A53: 42 | I53: 0 | J53: 9. | K53: =IF(B53<>0,A53," ") ->  | L53: =IF(D53=$C$1,Информационный!$Q$19,IF(D53=$C$2,Информационный!$R$19,IF(Награды!D53=Награды!$C$3,Информационный!$S$19,0))) -> 0 | M53: =IF(E53=$F$5,Информационный!$I$19,IF(E53=$F$4,Информационный!$I$18,IF(E53=$F$3,Информационный!$I$17,IF(E53=$F$2,Информационный!$I$16,IF(E53=$F$1,Информационный!$I$15,0))))) -> 0 | N53: =IF(G53=$I$1,Информационный!$X$11,IF(G53=$I$2,Информационный!$X$12,0)) -> 0
A54: 43 | I54: 0 | J54: 9. | L54: =IF(D54=$C$1,Информационный!$Q$19,IF(D54=$C$2,Информационный!$R$19,IF(Награды!D54=Награды!$C$3,Информационный!$S$19,0))) -> 0 | M54: =IF(E54=$F$5,Информационный!$I$19,IF(E54=$F$4,Информационный!$I$18,IF(E54=$F$3,Информационный!$I$17,IF(E54=$F$2,Информационный!$I$16,IF(E54=$F$1,Информационный!$I$15,0))))) -> 0 | N54: =IF(G54=$I$1,Информационный!$X$11,IF(G54=$I$2,Информационный!$X$12,0)) -> 0
A55: 44 | I55: 0 | J55: 9. | L55: =IF(D55=$C$1,Информационный!$Q$19,IF(D55=$C$2,Информационный!$R$19,IF(Награды!D55=Награды!$C$3,Информационный!$S$19,0))) -> 0 | M55: =IF(E55=$F$5,Информационный!$I$19,IF(E55=$F$4,Информационный!$I$18,IF(E55=$F$3,Информационный!$I$17,IF(E55=$F$2,Информационный!$I$16,IF(E55=$F$1,Информационный!$I$15,0))))) -> 0 | N55: =IF(G55=$I$1,Информационный!$X$11,IF(G55=$I$2,Информационный!$X$12,0)) -> 0
A56: 45 | I56: 0 | J56: 9. | L56: =IF(D56=$C$1,Информационный!$Q$19,IF(D56=$C$2,Информационный!$R$19,IF(Награды!D56=Награды!$C$3,Информационный!$S$19,0))) -> 0 | M56: =IF(E56=$F$5,Информационный!$I$19,IF(E56=$F$4,Информационный!$I$18,IF(E56=$F$3,Информационный!$I$17,IF(E56=$F$2,Информационный!$I$16,IF(E56=$F$1,Информационный!$I$15,0))))) -> 0 | N56: =IF(G56=$I$1,Информационный!$X$11,IF(G56=$I$2,Информационный!$X$12,0)) -> 0
A57: 46 | I57: 0 | J57: 9. | L57: =IF(D57=$C$1,Информационный!$Q$19,IF(D57=$C$2,Информационный!$R$19,IF(Награды!D57=Награды!$C$3,Информационный!$S$19,0))) -> 0 | M57: =IF(E57=$F$5,Информационный!$I$19,IF(E57=$F$4,Информационный!$I$18,IF(E57=$F$3,Информационный!$I$17,IF(E57=$F$2,Информационный!$I$16,IF(E57=$F$1,Информационный!$I$15,0))))) -> 0 | N57: =IF(G57=$I$1,Информационный!$X$11,IF(G57=$I$2,Информационный!$X$12,0)) -> 0
A58: 47 | I58: 0 | J58: 9. | L58: =IF(D58=$C$1,Информационный!$Q$19,IF(D58=$C$2,Информационный!$R$19,IF(Награды!D58=Награды!$C$3,Информационный!$S$19,0))) -> 0 | M58: =IF(E58=$F$5,Информационный!$I$19,IF(E58=$F$4,Информационный!$I$18,IF(E58=$F$3,Информационный!$I$17,IF(E58=$F$2,Информационный!$I$16,IF(E58=$F$1,Информационный!$I$15,0))))) -> 0 | N58: =IF(G58=$I$1,Информационный!$X$11,IF(G58=$I$2,Информационный!$X$12,0)) -> 0
A59: 48 | I59: 0 | J59: 9. | L59: =IF(D59=$C$1,Информационный!$Q$19,IF(D59=$C$2,Информационный!$R$19,IF(Награды!D59=Награды!$C$3,Информационный!$S$19,0))) -> 0 | M59: =IF(E59=$F$5,Информационный!$I$19,IF(E59=$F$4,Информационный!$I$18,IF(E59=$F$3,Информационный!$I$17,IF(E59=$F$2,Информационный!$I$16,IF(E59=$F$1,Информационный!$I$15,0))))) -> 0 | N59: =IF(G59=$I$1,Информационный!$X$11,IF(G59=$I$2,Информационный!$X$12,0)) -> 0
A60: 49 | I60: 0 | J60: 9. | L60: =IF(D60=$C$1,Информационный!$Q$19,IF(D60=$C$2,Информационный!$R$19,IF(Награды!D60=Награды!$C$3,Информационный!$S$19,0))) -> 0 | M60: =IF(E60=$F$5,Информационный!$I$19,IF(E60=$F$4,Информационный!$I$18,IF(E60=$F$3,Информационный!$I$17,IF(E60=$F$2,Информационный!$I$16,IF(E60=$F$1,Информационный!$I$15,0))))) -> 0 | N60: =IF(G60=$I$1,Информационный!$X$11,IF(G60=$I$2,Информационный!$X$12,0)) -> 0
A61: 50 | I61: 0 | J61: 9. | L61: =IF(D61=$C$1,Информационный!$Q$19,IF(D61=$C$2,Информационный!$R$19,IF(Награды!D61=Награды!$C$3,Информационный!$S$19,0))) -> 0 | M61: =IF(E61=$F$5,Информационный!$I$19,IF(E61=$F$4,Информационный!$I$18,IF(E61=$F$3,Информационный!$I$17,IF(E61=$F$2,Информационный!$I$16,IF(E61=$F$1,Информационный!$I$15,0))))) -> 0 | N61: =IF(G61=$I$1,Информационный!$X$11,IF(G61=$I$2,Информационный!$X$12,0)) -> 0
D62: Уровень поощрения | E62: =COUNTIF($E$12:$E$61,"школьный") -> 7 | F62: =F1 -> школьный
E63: =COUNTIF($E$12:$E$61,"муниципальный") -> 4 | F63: =F2 -> муниципальный
E64: =COUNTIF($E$12:$E$61,"региональный") -> 0 | F64: =F3 -> региональный
E65: =COUNTIF($E$12:$E$61,"всероссийский") -> 0 | F65: =F4 -> федеральный
E66: =COUNTIF($E$12:$E$61,"международный") -> 0 | F66: =F5 -> международный
H68: =NOW() -> 2019-08-24T15:19:23.810
E70: ='Информация о школе'!$A$22 -> Классный руководитель
E71: /_________________/
E72: ='Информация о школе'!$D$22 -> Главаля Ирина Геннадьевна
H85: 1 класс | I85: =SUMIF($H$12:$H$61,"1",$I$12:$I$61) -> 1
H86: 2 класс | I86: =SUMIF($H$12:$H$61,"2",$I$12:$I$61) -> 0
H87: 3 класс | I87: =SUMIF($H$12:$H$61,"3",$I$12:$I$61) -> 1
H88: 4 класс | I88: =SUMIF($H$12:$H$61,"4",$I$12:$I$61) -> 1
H89: 5 класс | I89: =SUMIF($H$12:$H$61,"5",$I$12:$I$61) -> 1
H90: 6 класс | I90: =SUMIF($H$12:$H$61,"6",$I$12:$I$61) -> 5
H91: 7 класс | I91: =SUMIF($H$12:$H$61,"7",$I$12:$I$61) -> 1
H92: 8 класс | I92: =SUMIF($H$12:$H$61,"81",$I$12:$I$61) -> 0
H93: 9 класс | I93: =SUMIF($H$12:$H$61,"9",$I$12:$I$61) -> 0
H94: 10 класс | I94: =SUMIF($H$12:$H$61,"10",$I$12:$I$61) -> 0
H95: 11 класс | I95: =SUMIF($H$12:$H$61,"11",$I$12:$I$61) -> 0
A134: Электронное портфолио учащегося

Sheet СОЦпрактики
C1: победитель | F1: школьный | I1: А
C2: призёр | F2: муниципальный | I2: П
C3: участник | F3: региональный
F4: федеральный
F5: международный
A6: СОЦИАЛЬНЫЕ ПРАКТИКИ
A7: ='Личные данные'!$A$9 -> ЭЛЕКТРОННОЕ | C7: ='Личные данные'!$C$9 -> ПОРТФОЛИО | E7: =титульный!$D$57 -> Антонова Светлана Степановна | H7: =титульный!$D$58 -> МБОУ "СОШ№11"
A8: №п\п | B8: Название соцпрактики | E8: Уровень | G8: Форма участия | H8: класс | I8: Балл | J8: Номер в приложении
M11: уровень | N11: Форма
A12: 1 | B12: За активное участие в жизни отряда | E12: муниципальный | G12: А | H12: 1 | I12: =M12*N12 -> 4 | J12: 10. | K12: =IF(B12<>0,A12," ") -> 1 | M12: =IF(E12=$F$5,Информационный!$K$19,IF(E12=$F$4,Информационный!$K$18,IF(E12=$F$3,Информационный!$K$17,IF(E12=$F$2,Информационный!$K$16,IF(E12=$F$1,Информационный!$K$15,0))))) -> 4 | N12: =IF(G12=$I$1,Информационный!$G$11,IF(G12=$I$2,Информационный!$G$12,0)) -> 1
A13: 2 | I13: =M13*N13 -> 0 | J13: 10. | K13: =IF(B13<>0,A13," ") ->  | M13: =IF(E13=$F$5,Информационный!$K$19,IF(E13=$F$4,Информационный!$K$18,IF(E13=$F$3,Информационный!$K$17,IF(E13=$F$2,Информационный!$K$16,IF(E13=$F$1,Информационный!$K$15,0))))) -> 0 | N13: =IF(G13=$I$1,Информационный!$G$11,IF(G13=$I$2,Информационный!$G$12,0)) -> 0
A14: 3 | I14: 0 | J14: 10. | M14: =IF(E14=$F$5,Информационный!$K$19,IF(E14=$F$4,Информационный!$K$18,IF(E14=$F$3,Информационный!$K$17,IF(E14=$F$2,Информационный!$K$16,IF(E14=$F$1,Информационный!$K$15,0))))) -> 0 | N14: =IF(G14=$I$1,Информационный!$G$11,IF(G14=$I$2,Информационный!$G$12,0)) -> 0
A15: 4 | I15: 0 | J15: 10. | M15: =IF(E15=$F$5,Информационный!$K$19,IF(E15=$F$4,Информационный!$K$18,IF(E15=$F$3,Информационный!$K$17,IF(E15=$F$2,Информационный!$K$16,IF(E15=$F$1,Информационный!$K$15,0))))) -> 0 | N15: =IF(G15=$I$1,Информационный!$G$11,IF(G15=$I$2,Информационный!$G$12,0)) -> 0
A16: 5 | I16: 0 | J16: 10. | M16: =IF(E16=$F$5,Информационный!$K$19,IF(E16=$F$4,Информационный!$K$18,IF(E16=$F$3,Информационный!$K$17,IF(E16=$F$2,Информационный!$K$16,IF(E16=$F$1,Информационный!$K$15,0))))) -> 0 | N16: =IF(G16=$I$1,Информационный!$G$11,IF(G16=$I$2,Информационный!$G$12,0)) -> 0
A17: 6 | I17: 0 | J17: 10. | M17: =IF(E17=$F$5,Информационный!$K$19,IF(E17=$F$4,Информационный!$K$18,IF(E17=$F$3,Информационный!$K$17,IF(E17=$F$2,Информационный!$K$16,IF(E17=$F$1,Информационный!$K$15,0))))) -> 0 | N17: =IF(G17=$I$1,Информационный!$G$11,IF(G17=$I$2,Информационный!$G$12,0)) -> 0
A18: 7 | I18: 0 | J18: 10. | M18: =IF(E18=$F$5,Информационный!$K$19,IF(E18=$F$4,Информационный!$K$18,IF(E18=$F$3,Информационный!$K$17,IF(E18=$F$2,Информационный!$K$16,IF(E18=$F$1,Информационный!$K$15,0))))) -> 0 | N18: =IF(G18=$I$1,Информационный!$G$11,IF(G18=$I$2,Информационный!$G$12,0)) -> 0
A19: 8 | I19: 0 | J19: 10. | M19: =IF(E19=$F$5,Информационный!$K$19,IF(E19=$F$4,Информационный!$K$18,IF(E19=$F$3,Информационный!$K$17,IF(E19=$F$2,Информационный!$K$16,IF(E19=$F$1,Информационный!$K$15,0))))) -> 0 | N19: =IF(G19=$I$1,Информационный!$G$11,IF(G19=$I$2,Информационный!$G$12,0)) -> 0
A20: 9 | I20: 0 | J20: 10. | M20: =IF(E20=$F$5,Информационный!$K$19,IF(E20=$F$4,Информационный!$K$18,IF(E20=$F$3,Информационный!$K$17,IF(E20=$F$2,Информационный!$K$16,IF(E20=$F$1,Информационный!$K$15,0))))) -> 0 | N20: =IF(G20=$I$1,Информационный!$G$11,IF(G20=$I$2,Информационный!$G$12,0)) -> 0
A21: 10 | I21: 0 | J21: 10. | M21: =IF(E21=$F$5,Информационный!$K$19,IF(E21=$F$4,Информационный!$K$18,IF(E21=$F$3,Информационный!$K$17,IF(E21=$F$2,Информационный!$K$16,IF(E21=$F$1,Информационный!$K$15,0))))) -> 0 | N21: =IF(G21=$I$1,Информационный!$G$11,IF(G21=$I$2,Информационный!$G$12,0)) -> 0
A22: 11 | I22: 0 | J22: 10. | M22: =IF(E22=$F$5,Информационный!$K$19,IF(E22=$F$4,Информационный!$K$18,IF(E22=$F$3,Информационный!$K$17,IF(E22=$F$2,Информационный!$K$16,IF(E22=$F$1,Информационный!$K$15,0))))) -> 0 | N22: =IF(G22=$I$1,Информационный!$G$11,IF(G22=$I$2,Информационный!$G$12,0)) -> 0
A23: 12 | I23: 0 | J23: 10. | M23: =IF(E23=$F$5,Информационный!$K$19,IF(E23=$F$4,Информационный!$K$18,IF(E23=$F$3,Информационный!$K$17,IF(E23=$F$2,Информационный!$K$16,IF(E23=$F$1,Информационный!$K$15,0))))) -> 0 | N23: =IF(G23=$I$1,Информационный!$G$11,IF(G23=$I$2,Информационный!$G$12,0)) -> 0
A24: 13 | I24: 0 | J24: 10. | M24: =IF(E24=$F$5,Информационный!$K$19,IF(E24=$F$4,Информационный!$K$18,IF(E24=$F$3,Информационный!$K$17,IF(E24=$F$2,Информационный!$K$16,IF(E24=$F$1,Информационный!$K$15,0))))) -> 0 | N24: =IF(G24=$I$1,Информационный!$G$11,IF(G24=$I$2,Информационный!$G$12,0)) -> 0
A25: 14 | I25: 0 | J25: 10. | M25: =IF(E25=$F$5,Информационный!$K$19,IF(E25=$F$4,Информационный!$K$18,IF(E25=$F$3,Информационный!$K$17,IF(E25=$F$2,Информационный!$K$16,IF(E25=$F$1,Информационный!$K$15,0))))) -> 0 | N25: =IF(G25=$I$1,Информационный!$G$11,IF(G25=$I$2,Информационный!$G$12,0)) -> 0
A26: 15 | I26: 0 | J26: 10. | M26: =IF(E26=$F$5,Информационный!$K$19,IF(E26=$F$4,Информационный!$K$18,IF(E26=$F$3,Информационный!$K$17,IF(E26=$F$2,Информационный!$K$16,IF(E26=$F$1,Информационный!$K$15,0))))) -> 0 | N26: =IF(G26=$I$1,Информационный!$G$11,IF(G26=$I$2,Информационный!$G$12,0)) -> 0
A27: 16 | I27: 0 | J27: 10. | M27: =IF(E27=$F$5,Информационный!$K$19,IF(E27=$F$4,Информационный!$K$18,IF(E27=$F$3,Информационный!$K$17,IF(E27=$F$2,Информационный!$K$16,IF(E27=$F$1,Информационный!$K$15,0))))) -> 0 | N27: =IF(G27=$I$1,Информационный!$G$11,IF(G27=$I$2,Информационный!$G$12,0)) -> 0
A28: 17 | I28: 0 | J28: 10. | M28: =IF(E28=$F$5,Информационный!$K$19,IF(E28=$F$4,Информационный!$K$18,IF(E28=$F$3,Информационный!$K$17,IF(E28=$F$2,Информационный!$K$16,IF(E28=$F$1,Информационный!$K$15,0))))) -> 0 | N28: =IF(G28=$I$1,Информационный!$G$11,IF(G28=$I$2,Информационный!$G$12,0)) -> 0
A29: 18 | I29: 0 | J29: 10. | M29: =IF(E29=$F$5,Информационный!$K$19,IF(E29=$F$4,Информационный!$K$18,IF(E29=$F$3,Информационный!$K$17,IF(E29=$F$2,Информационный!$K$16,IF(E29=$F$1,Информационный!$K$15,0))))) -> 0 | N29: =IF(G29=$I$1,Информационный!$G$11,IF(G29=$I$2,Информационный!$G$12,0)) -> 0
A30: 19 | I30: 0 | J30: 10. | M30: =IF(E30=$F$5,Информационный!$K$19,IF(E30=$F$4,Информационный!$K$18,IF(E30=$F$3,Информационный!$K$17,IF(E30=$F$2,Информационный!$K$16,IF(E30=$F$1,Информационный!$K$15,0))))) -> 0 | N30: =IF(G30=$I$1,Информационный!$G$11,IF(G30=$I$2,Информационный!$G$12,0)) -> 0
A31: 20 | I31: 0 | J31: 10. | M31: =IF(E31=$F$5,Информационный!$K$19,IF(E31=$F$4,Информационный!$K$18,IF(E31=$F$3,Информационный!$K$17,IF(E31=$F$2,Информационный!$K$16,IF(E31=$F$1,Информационный!$K$15,0))))) -> 0 | N31: =IF(G31=$I$1,Информационный!$G$11,IF(G31=$I$2,Информационный!$G$12,0)) -> 0
D32: Уровень соцпрактик | E32: =COUNTIF($E$12:$E$31,"школьный") -> 0 | F32: =F1 -> школьный
E33: =COUNTIF($E$12:$E$31,"муниципальный") -> 1 | F33: =F2 -> муниципальный
E34: =COUNTIF($E$12:$E$31,"региональный") -> 0 | F34: =F3 -> региональный
E35: =COUNTIF($E$12:$E$31,"всероссийский") -> 0 | F35: =F4 -> федеральный
E36: =COUNTIF($E$12:$E$31,"международный") -> 0 | F36: =F5 -> международный
E38: =NOW() -> 2019-08-24T15:19:23.810
E40: ='Информация о школе'!$A$22 -> Классный руководитель
E41: /_________________/
E42: ='Информация о школе'!$D$22 -> Главаля Ирина Геннадьевна
H58: 1 класс | I58: =SUMIF($H$12:$H$31,"1",$I$12:$I$31) -> 4
H59: 2 класс | I59: =SUMIF($H$12:$H$31,"2",$I$12:$I$31) -> 0
H60: 3 класс | I60: =SUMIF($H$12:$H$31,"3",$I$12:$I$31) -> 0
H61: 4 класс | I61: =SUMIF($H$12:$H$31,"4",$I$12:$I$31) -> 0
H62: 5 класс | I62: =SUMIF($H$12:$H$31,"5",$I$12:$I$31) -> 0
H63: 6 класс | I63: =SUMIF($H$12:$H$31,"6",$I$12:$I$31) -> 0
H64: 7 класс | I64: =SUMIF($H$12:$H$31,"7",$I$12:$I$31) -> 0
H65: 8 класс | I65: =SUMIF($H$12:$H$31,"81",$I$12:$I$31) -> 0
H66: 9 класс | I66: =SUMIF($H$12:$H$31,"9",$I$12:$I$31) -> 0
H67: 10 класс | I67: =SUMIF($H$12:$H$31,"10",$I$12:$I$31) -> 0
H68: 11 класс | I68: =SUMIF($H$12:$H$31,"11",$I$12:$I$31) -> 0
A105: Электронное портфолио учащегося

Sheet Самоуправление
A1: =Информационный!M19 -> президент | C1: победитель | F1: =Информационный!M15 -> другое | I1: 0-2
A2: =Информационный!M18 -> министр | C2: призёр | F2: =Информационный!M16 -> помощник | I2: 3-4
A3: =Информационный!M17 -> редколлегия | C3: участник | F3: =Информационный!M17 -> редколлегия | I3: 5-6
A4: =Информационный!M16 -> помощник | F4: =Информационный!M18 -> министр | I4: 7-8
A5: =Информационный!M15 -> другое | F5: =Информационный!M19 -> президент | I5: 9-10
A6: УЧЕНИЧЕСКОЕ САМОУПРАВЛЕНИЕ
A7: ='Личные данные'!$A$9 -> ЭЛЕКТРОННОЕ | C7: ='Личные данные'!$C$9 -> ПОРТФОЛИО | E7: =титульный!$D$57 -> Антонова Светлана Степановна | H7: =титульный!$D$58 -> МБОУ "СОШ№11"
A8: №п\п | B8: Название должности | E8: Категория должности | G8: стаж (лет) | H8: класс | I8: Балл | J8: Номер в приложении
L11: Результат | M11: уровень | N11: Стаж
A12: 1 | B12: Президент 2 класса | E12: президент | G12: 0-2 | H12: 2 | I12: =M12+N12 -> 5.2 | J12: 11. | K12: =IF(B12<>0,A12," ") -> 1 | L12: =IF(D12=$C$1,Информационный!$Q$19,IF(D12=$C$2,Информационный!$R$19,IF(Самоуправление!D12=Самоуправление!$C$3,Информационный!$S$19,0))) -> 0 | M12: =IF(E12=$F$5,Информационный!$L$19,IF(E12=$F$4,Информационный!$L$18,IF(E12=$F$3,Информационный!$L$17,IF(E12=$F$2,Информационный!$L$16,IF(E12=$F$1,Информационный!$L$15,0))))) -> 5 | N12: =IF(G12=$I$5,1,IF(G12=$I$4,0.8,IF(G12=$I$3,0.6,IF(G12=$I$2,0.4,IF(G12=$I$1,0.2,0))))) -> 0.2
A13: 2 | B13: Президент 3 класса | E13: президент | G13: 0-2 | H13: 3 | I13: =M13+N13 -> 5.2 | J13: 11. | K13: =IF(B13<>0,A13," ") -> 2 | L13: =IF(D13=$C$1,Информационный!$Q$19,IF(D13=$C$2,Информационный!$R$19,IF(Самоуправление!D13=Самоуправление!$C$3,Информационный!$S$19,0))) -> 0 | M13: =IF(E13=$F$5,Информационный!$L$19,IF(E13=$F$4,Информационный!$L$18,IF(E13=$F$3,Информационный!$L$17,IF(E13=$F$2,Информационный!$L$16,IF(E13=$F$1,Информационный!$L$15,0))))) -> 5 | N13: =IF(G13=$I$5,1,IF(G13=$I$4,0.8,IF(G13=$I$3,0.6,IF(G13=$I$2,0.4,IF(G13=$I$1,0.2,0))))) -> 0.2
A14: 3 | B14: Президент 4 класса | E14: президент | G14: 3-4 | H14: 4 | I14: 5.4 | J14: 11. | K14: 3 | L14: =IF(D14=$C$1,Информационный!$Q$19,IF(D14=$C$2,Информационный!$R$19,IF(Самоуправление!D14=Самоуправление!$C$3,Информационный!$S$19,0))) -> 0 | M14: =IF(E14=$F$5,Информационный!$L$19,IF(E14=$F$4,Информационный!$L$18,IF(E14=$F$3,Информационный!$L$17,IF(E14=$F$2,Информационный!$L$16,IF(E14=$F$1,Информационный!$L$15,0))))) -> 5 | N14: 0.4
A15: 4 | B15: Президент 5 класса | E15: президент | G15: 3-4 | H15: 5 | I15: 5.4 | J15: 11. | K15: 4 | L15: =IF(D15=$C$1,Информационный!$Q$19,IF(D15=$C$2,Информационный!$R$19,IF(Самоуправление!D15=Самоуправление!$C$3,Информационный!$S$19,0))) -> 0 | M15: =IF(E15=$F$5,Информационный!$L$19,IF(E15=$F$4,Информационный!$L$18,IF(E15=$F$3,Информационный!$L$17,IF(E15=$F$2,Информационный!$L$16,IF(E15=$F$1,Информационный!$L$15,0))))) -> 5 | N15: 0.4
A16: 5 | B16: Редколегия | E16: редколлегия | G16: 0-2 | H16: 6 | I16: 3.2 | J16: 11. | K16: 5 | L16: =IF(D16=$C$1,Информационный!$Q$19,IF(D16=$C$2,Информационный!$R$19,IF(Самоуправление!D16=Самоуправление!$C$3,Информационный!$S$19,0))) -> 0 | M16: =IF(E16=$F$5,Информационный!$L$19,IF(E16=$F$4,Информационный!$L$18,IF(E16=$F$3,Информационный!$L$17,IF(E16=$F$2,Информационный!$L$16,IF(E16=$F$1,Информационный!$L$15,0))))) -> 3 | N16: 0.2
A17: 6 | B17: Редколегия | E17: редколлегия | G17: 0-2 | H17: 7 | I17: 3.2 | J17: 11. | K17: 6 | L17: =IF(D17=$C$1,Информационный!$Q$19,IF(D17=$C$2,Информационный!$R$19,IF(Самоуправление!D17=Самоуправление!$C$3,Информационный!$S$19,0))) -> 0 | M17: =IF(E17=$F$5,Информационный!$L$19,IF(E17=$F$4,Информационный!$L$18,IF(E17=$F$3,Информационный!$L$17,IF(E17=$F$2,Информационный!$L$16,IF(E17=$F$1,Информационный!$L$15,0))))) -> 3 | N17: 0.2
A18: 7 | B18: Редколегия | E18: редколлегия | G18: 3-4 | H18: 8 | I18: 3.4 | J18: 11. | K18: 7 | L18: =IF(D18=$C$1,Информационный!$Q$19,IF(D18=$C$2,Информационный!$R$19,IF(Самоуправление!D18=Самоуправление!$C$3,Информационный!$S$19,0))) -> 0 | M18: =IF(E18=$F$5,Информационный!$L$19,IF(E18=$F$4,Информационный!$L$18,IF(E18=$F$3,Информационный!$L$17,IF(E18=$F$2,Информационный!$L$16,IF(E18=$F$1,Информационный!$L$15,0))))) -> 3 | N18: 0.4
A19: 8 | B19: Редколегия | E19: редколлегия | G19: 3-4 | H19: 9 | I19: 3.4 | J19: 11. | K19: 8 | L19: =IF(D19=$C$1,Информационный!$Q$19,IF(D19=$C$2,Информационный!$R$19,IF(Самоуправление!D19=Самоуправление!$C$3,Информационный!$S$19,0))) -> 0 | M19: =IF(E19=$F$5,Информационный!$L$19,IF(E19=$F$4,Информационный!$L$18,IF(E19=$F$3,Информационный!$L$17,IF(E19=$F$2,Информационный!$L$16,IF(E19=$F$1,Информационный!$L$15,0))))) -> 3 | N19: 0.4
A20: 9 | I20: 0 | J20: 11. | L20: =IF(D20=$C$1,Информационный!$Q$19,IF(D20=$C$2,Информационный!$R$19,IF(Самоуправление!D20=Самоуправление!$C$3,Информационный!$S$19,0))) -> 0 | M20: =IF(E20=$F$5,Информационный!$L$19,IF(E20=$F$4,Информационный!$L$18,IF(E20=$F$3,Информационный!$L$17,IF(E20=$F$2,Информационный!$L$16,IF(E20=$F$1,Информационный!$L$15,0))))) -> 0 | N20: 0
A21: 10 | I21: 0 | J21: 11. | L21: =IF(D21=$C$1,Информационный!$Q$19,IF(D21=$C$2,Информационный!$R$19,IF(Самоуправление!D21=Самоуправление!$C$3,Информационный!$S$19,0))) -> 0 | M21: =IF(E21=$F$5,Информационный!$L$19,IF(E21=$F$4,Информационный!$L$18,IF(E21=$F$3,Информационный!$L$17,IF(E21=$F$2,Информационный!$L$16,IF(E21=$F$1,Информационный!$L$15,0))))) -> 0 | N21: 0
A22: 11 | I22: 0 | J22: 11. | L22: =IF(D22=$C$1,Информационный!$Q$19,IF(D22=$C$2,Информационный!$R$19,IF(Самоуправление!D22=Самоуправление!$C$3,Информационный!$S$19,0))) -> 0 | M22: =IF(E22=$F$5,Информационный!$L$19,IF(E22=$F$4,Информационный!$L$18,IF(E22=$F$3,Информационный!$L$17,IF(E22=$F$2,Информационный!$L$16,IF(E22=$F$1,Информационный!$L$15,0))))) -> 0 | N22: 0
D23: Категория должности | E23: =COUNTIF($E$12:$E$22,F23) -> 0 | F23: =F1 -> другое
E24: =COUNTIF($E$12:$E$22,F24) -> 0 | F24: =F2 -> помощник
E25: =COUNTIF($E$12:$E$22,F25) -> 4 | F25: =F3 -> редколлегия
E26: =COUNTIF($E$12:$E$22,F26) -> 0 | F26: =F4 -> министр
E27: =COUNTIF($E$12:$E$22,F27) -> 4 | F27: =F5 -> президент
H28: =NOW() -> 2019-08-24T15:19:23.810
E29: ='Информация о школе'!$A$22 -> Классный руководитель
E30: /_________________/
E31: ='Информация о школе'!$D$22 -> Главаля Ирина Геннадьевна
H42: 1 класс | I42: =SUMIF($H$12:$H$22,"1",$I$12:$I$22) -> 0
H43: 2 класс | I43: =SUMIF($H$12:$H$22,"2",$I$12:$I$22) -> 5.2
H44: 3 класс | I44: =SUMIF($H$12:$H$22,"3",$I$12:$I$22) -> 5.2
H45: 4 класс | I45: =SUMIF($H$12:$H$22,"4",$I$12:$I$22) -> 5.4
H46: 5 класс | I46: =SUMIF($H$12:$H$22,"5",$I$12:$I$22) -> 5.4
H47: 6 класс | I47: =SUMIF($H$12:$H$22,"6",$I$12:$I$22) -> 3.2
H48: 7 класс | I48: =SUMIF($H$12:$H$22,"7",$I$12:$I$22) -> 3.2
H49: 8 класс | I49: =SUMIF($H$12:$H$22,"81",$I$12:$I$22) -> 0
H50: 9 класс | I50: =SUMIF($H$12:$H$22,"9",$I$12:$I$22) -> 3.4
H51: 10 класс | I51: =SUMIF($H$12:$H$22,"10",$I$12:$I$22) -> 0
H52: 11 класс | I52: =SUMIF($H$12:$H$22,"11",$I$12:$I$22) -> 0

Sheet Творческие
C1: победитель | F1: школьный | I1: О
C2: призёр | F2: муниципальный | I2: Д
C3: участник | F3: региональный
F4: федеральный
F5: международный
A6: УЧАСТИЕ в ТВОРЧЕСКИХ конкурсах
A7: ='Личные данные'!$A$9 -> ЭЛЕКТРОННОЕ | C7: ='Личные данные'!$C$9 -> ПОРТФОЛИО | E7: =титульный!$D$57 -> Антонова Светлана Степановна | H7: =титульный!$D$58 -> МБОУ "СОШ№11"
A8: №п\п | B8: Название конкурса | D8: Результат | E8: Уровень | G8: Форма участия | H8: класс | I8: Балл | J8: Номер в приложении
L11: Результат | M11: уровень | N11: Форма
A12: 1 | B12: Здравствуй, гостья- Зима! | D12: участник | E12: школьный | G12: О | H12: 1 | I12: =L12*M12*N12 -> 2.6 | J12: 12. | K12: =IF(B12<>0,A12," ") -> 1 | L12: =IF(D12=$C$1,Информационный!$Q$19,IF(D12=$C$2,Информационный!$R$19,IF(Творческие!D12=Творческие!$C$3,Информационный!$S$19,0))) -> 13 | M12: =IF(E12=$F$5,1,IF(E12=$F$4,0.8,IF(E12=$F$3,0.6,IF(E12=$F$2,0.4,IF(E12=$F$1,0.2,0))))) -> 0.2 | N12: =IF(G12=$I$1,Информационный!$G$11,IF(G12=$I$2,Информационный!$G$12,0)) -> 1
A13: 2 | B13: Радуга идей Ангарский детей | D13: призёр | E13: муниципальный | G13: О | H13: 5 | I13: =L13*M13*N13 -> 5.6 | J13: 12. | K13: =IF(B13<>0,A13," ") -> 2 | L13: =IF(D13=$C$1,Информационный!$Q$19,IF(D13=$C$2,Информационный!$R$19,IF(Творческие!D13=Творческие!$C$3,Информационный!$S$19,0))) -> 14 | M13: =IF(E13=$F$5,1,IF(E13=$F$4,0.8,IF(E13=$F$3,0.6,IF(E13=$F$2,0.4,IF(E13=$F$1,0.2,0))))) -> 0.4 | N13: =IF(G13=$I$1,Информационный!$G$11,IF(G13=$I$2,Информационный!$G$12,0)) -> 1
A14: 3 | B14: Радуга идей Ангарский детей | D14: призёр | E14: муниципальный | G14: О | H14: 6 | I14: 5.6 | J14: 12. | K14: 3 | L14: =IF(D14=$C$1,Информационный!$Q$19,IF(D14=$C$2,Информационный!$R$19,IF(Творческие!D14=Творческие!$C$3,Информационный!$S$19,0))) -> 14 | M14: 0.4 | N14: =IF(G14=$I$1,Информационный!$G$11,IF(G14=$I$2,Информационный!$G$12,0)) -> 1
A15: 4 | B15: Космос и Я | D15: призёр | E15: международный | G15: Д | H15: 3 | I15: 7 | J15: 12. | K15: 4 | L15: =IF(D15=$C$1,Информационный!$Q$19,IF(D15=$C$2,Информационный!$R$19,IF(Творческие!D15=Творческие!$C$3,Информационный!$S$19,0))) -> 14 | M15: 1 | N15: =IF(G15=$I$1,Информационный!$G$11,IF(G15=$I$2,Информационный!$G$12,0)) -> 0.5
A16: 5 | B16: Региональная олимпиада по академическому рисунку | D16: призёр | E16: региональный | G16: О | H16: 4 | I16: 8.4 | J16: 12. | K16: 5 | L16: =IF(D16=$C$1,Информационный!$Q$19,IF(D16=$C$2,Информационный!$R$19,IF(Творческие!D16=Творческие!$C$3,Информационный!$S$19,0))) -> 14 | M16: 0.6 | N16: =IF(G16=$I$1,Информационный!$G$11,IF(G16=$I$2,Информационный!$G$12,0)) -> 1
A17: 6 | B17: Турнир по волейболу | D17: призёр | E17: муниципальный | G17: О | H17: 9 | I17: 5.6 | J17: 12. | K17: 6 | L17: =IF(D17=$C$1,Информационный!$Q$19,IF(D17=$C$2,Информационный!$R$19,IF(Творческие!D17=Творческие!$C$3,Информационный!$S$19,0))) -> 14 | M17: 0.4 | N17: =IF(G17=$I$1,Информационный!$G$11,IF(G17=$I$2,Информационный!$G$12,0)) -> 1
A18: 7 | B18: Летний кубок "Что, Где, Когда?" | D18: призёр | E18: региональный | G18: О | H18: 8 | I18: 8.4 | J18: 12. | K18: 7 | L18: =IF(D18=$C$1,Информационный!$Q$19,IF(D18=$C$2,Информационный!$R$19,IF(Творческие!D18=Творческие!$C$3,Информационный!$S$19,0))) -> 14 | M18: 0.6 | N18: =IF(G18=$I$1,Информационный!$G$11,IF(G18=$I$2,Информационный!$G$12,0)) -> 1
A19: 8 | B19: Лёгкоатлетичекая эстафета | D19: победитель | E19: школьный | G19: О | H19: 5 | I19: 3 | J19: 12. | K19: 8 | L19: =IF(D19=$C$1,Информационный!$Q$19,IF(D19=$C$2,Информационный!$R$19,IF(Творческие!D19=Творческие!$C$3,Информационный!$S$19,0))) -> 15 | M19: 0.2 | N19: =IF(G19=$I$1,Информационный!$G$11,IF(G19=$I$2,Информационный!$G$12,0)) -> 1
A20: 9 | B20: Лёгкоатлетичекая эстафета | D20: победитель | E20: школьный | G20: О | H20: 7 | I20: 3 | J20: 12. | K20: 9 | L20: =IF(D20=$C$1,Информационный!$Q$19,IF(D20=$C$2,Информационный!$R$19,IF(Творческие!D20=Творческие!$C$3,Информационный!$S$19,0))) -> 15 | M20: 0.2 | N20: =IF(G20=$I$1,Информационный!$G$11,IF(G20=$I$2,Информационный!$G$12,0)) -> 1
A21: 10 | I21: 0 | J21: 12. | L21: =IF(D21=$C$1,Информационный!$Q$19,IF(D21=$C$2,Информационный!$R$19,IF(Творческие!D21=Творческие!$C$3,Информационный!$S$19,0))) -> 0 | M21: 0 | N21: =IF(G21=$I$1,Информационный!$G$11,IF(G21=$I$2,Информационный!$G$12,0)) -> 0
A22: 11 | I22: 0 | J22: 12. | L22: =IF(D22=$C$1,Информационный!$Q$19,IF(D22=$C$2,Информационный!$R$19,IF(Творческие!D22=Творческие!$C$3,Информационный!$S$19,0))) -> 0 | M22: 0 | N22: =IF(G22=$I$1,Информационный!$G$11,IF(G22=$I$2,Информационный!$G$12,0)) -> 0
A23: 12 | I23: 0 | J23: 12. | L23: =IF(D23=$C$1,Информационный!$Q$19,IF(D23=$C$2,Информационный!$R$19,IF(Творческие!D23=Творческие!$C$3,Информационный!$S$19,0))) -> 0 | M23: 0 | N23: =IF(G23=$I$1,Информационный!$G$11,IF(G23=$I$2,Информационный!$G$12,0)) -> 0
A24: 13 | I24: 0 | J24: 12. | L24: =IF(D24=$C$1,Информационный!$Q$19,IF(D24=$C$2,Информационный!$R$19,IF(Творческие!D24=Творческие!$C$3,Информационный!$S$19,0))) -> 0 | M24: 0 | N24: =IF(G24=$I$1,Информационный!$G$11,IF(G24=$I$2,Информационный!$G$12,0)) -> 0
A25: 14 | I25: 0 | J25: 12. | L25: =IF(D25=$C$1,Информационный!$Q$19,IF(D25=$C$2,Информационный!$R$19,IF(Творческие!D25=Творческие!$C$3,Информационный!$S$19,0))) -> 0 | M25: 0 | N25: =IF(G25=$I$1,Информационный!$G$11,IF(G25=$I$2,Информационный!$G$12,0)) -> 0
A26: 15 | I26: 0 | J26: 12. | L26: =IF(D26=$C$1,Информационный!$Q$19,IF(D26=$C$2,Информационный!$R$19,IF(Творческие!D26=Творческие!$C$3,Информационный!$S$19,0))) -> 0 | M26: 0 | N26: =IF(G26=$I$1,Информационный!$G$11,IF(G26=$I$2,Информационный!$G$12,0)) -> 0
A27: 16 | I27: 0 | J27: 12. | L27: =IF(D27=$C$1,Информационный!$Q$19,IF(D27=$C$2,Информационный!$R$19,IF(Творческие!D27=Творческие!$C$3,Информационный!$S$19,0))) -> 0 | M27: 0 | N27: =IF(G27=$I$1,Информационный!$G$11,IF(G27=$I$2,Информационный!$G$12,0)) -> 0
A28: 17 | I28: 0 | J28: 12. | L28: =IF(D28=$C$1,Информационный!$Q$19,IF(D28=$C$2,Информационный!$R$19,IF(Творческие!D28=Творческие!$C$3,Информационный!$S$19,0))) -> 0 | M28: 0 | N28: =IF(G28=$I$1,Информационный!$G$11,IF(G28=$I$2,Информационный!$G$12,0)) -> 0
A29: 18 | I29: 0 | J29: 12. | L29: =IF(D29=$C$1,Информационный!$Q$19,IF(D29=$C$2,Информационный!$R$19,IF(Творческие!D29=Творческие!$C$3,Информационный!$S$19,0))) -> 0 | M29: 0 | N29: =IF(G29=$I$1,Информационный!$G$11,IF(G29=$I$2,Информационный!$G$12,0)) -> 0
A30: 19 | I30: 0 | J30: 12. | L30: =IF(D30=$C$1,Информационный!$Q$19,IF(D30=$C$2,Информационный!$R$19,IF(Творческие!D30=Творческие!$C$3,Информационный!$S$19,0))) -> 0 | M30: 0 | N30: =IF(G30=$I$1,Информационный!$G$11,IF(G30=$I$2,Информационный!$G$12,0)) -> 0
A31: 20 | I31: 0 | J31: 12. | L31: =IF(D31=$C$1,Информационный!$Q$19,IF(D31=$C$2,Информационный!$R$19,IF(Творческие!D31=Творческие!$C$3,Информационный!$S$19,0))) -> 0 | M31: 0 | N31: =IF(G31=$I$1,Информационный!$G$11,IF(G31=$I$2,Информационный!$G$12,0)) -> 0
A32: 21 | I32: 0 | J32: 12. | L32: =IF(D32=$C$1,Информационный!$Q$19,IF(D32=$C$2,Информационный!$R$19,IF(Творческие!D32=Творческие!$C$3,Информационный!$S$19,0))) -> 0 | M32: 0 | N32: =IF(G32=$I$1,Информационный!$G$11,IF(G32=$I$2,Информационный!$G$12,0)) -> 0
A33: 22 | I33: 0 | J33: 12. | L33: =IF(D33=$C$1,Информационный!$Q$19,IF(D33=$C$2,Информационный!$R$19,IF(Творческие!D33=Творческие!$C$3,Информационный!$S$19,0))) -> 0 | M33: 0 | N33: =IF(G33=$I$1,Информационный!$G$11,IF(G33=$I$2,Информационный!$G$12,0)) -> 0
A34: 23 | I34: 0 | J34: 12. | L34: =IF(D34=$C$1,Информационный!$Q$19,IF(D34=$C$2,Информационный!$R$19,IF(Творческие!D34=Творческие!$C$3,Информационный!$S$19,0))) -> 0 | M34: 0 | N34: =IF(G34=$I$1,Информационный!$G$11,IF(G34=$I$2,Информационный!$G$12,0)) -> 0
A35: 24 | I35: 0 | J35: 12. | L35: =IF(D35=$C$1,Информационный!$Q$19,IF(D35=$C$2,Информационный!$R$19,IF(Творческие!D35=Творческие!$C$3,Информационный!$S$19,0))) -> 0 | M35: 0 | N35: =IF(G35=$I$1,Информационный!$G$11,IF(G35=$I$2,Информационный!$G$12,0)) -> 0
A36: 25 | I36: 0 | J36: 12. | L36: =IF(D36=$C$1,Информационный!$Q$19,IF(D36=$C$2,Информационный!$R$19,IF(Творческие!D36=Творческие!$C$3,Информационный!$S$19,0))) -> 0 | M36: 0 | N36: =IF(G36=$I$1,Информационный!$G$11,IF(G36=$I$2,Информационный!$G$12,0)) -> 0
A37: 26 | I37: 0 | J37: 12. | L37: =IF(D37=$C$1,Информационный!$Q$19,IF(D37=$C$2,Информационный!$R$19,IF(Творческие!D37=Творческие!$C$3,Информационный!$S$19,0))) -> 0 | M37: 0 | N37: =IF(G37=$I$1,Информационный!$G$11,IF(G37=$I$2,Информационный!$G$12,0)) -> 0
A38: 27 | I38: 0 | J38: 12. | L38: =IF(D38=$C$1,Информационный!$Q$19,IF(D38=$C$2,Информационный!$R$19,IF(Творческие!D38=Творческие!$C$3,Информационный!$S$19,0))) -> 0 | M38: 0 | N38: =IF(G38=$I$1,Информационный!$G$11,IF(G38=$I$2,Информационный!$G$12,0)) -> 0
A39: 28 | I39: 0 | J39: 12. | L39: =IF(D39=$C$1,Информационный!$Q$19,IF(D39=$C$2,Информационный!$R$19,IF(Творческие!D39=Творческие!$C$3,Информационный!$S$19,0))) -> 0 | M39: 0 | N39: =IF(G39=$I$1,Информационный!$G$11,IF(G39=$I$2,Информационный!$G$12,0)) -> 0
A40: 29 | I40: 0 | J40: 12. | L40: =IF(D40=$C$1,Информационный!$Q$19,IF(D40=$C$2,Информационный!$R$19,IF(Творческие!D40=Творческие!$C$3,Информационный!$S$19,0))) -> 0 | M40: 0 | N40: =IF(G40=$I$1,Информационный!$G$11,IF(G40=$I$2,Информационный!$G$12,0)) -> 0
A41: 30 | I41: 0 | J41: 12. | L41: =IF(D41=$C$1,Информационный!$Q$19,IF(D41=$C$2,Информационный!$R$19,IF(Творческие!D41=Творческие!$C$3,Информационный!$S$19,0))) -> 0 | M41: 0 | N41: =IF(G41=$I$1,Информационный!$G$11,IF(G41=$I$2,Информационный!$G$12,0)) -> 0
A42: 31 | I42: 0 | J42: 12. | L42: =IF(D42=$C$1,Информационный!$Q$19,IF(D42=$C$2,Информационный!$R$19,IF(Творческие!D42=Творческие!$C$3,Информационный!$S$19,0))) -> 0 | M42: 0 | N42: =IF(G42=$I$1,Информационный!$G$11,IF(G42=$I$2,Информационный!$G$12,0)) -> 0
A43: 32 | I43: 0 | J43: 12. | L43: =IF(D43=$C$1,Информационный!$Q$19,IF(D43=$C$2,Информационный!$R$19,IF(Творческие!D43=Творческие!$C$3,Информационный!$S$19,0))) -> 0 | M43: 0 | N43: =IF(G43=$I$1,Информационный!$G$11,IF(G43=$I$2,Информационный!$G$12,0)) -> 0
A44: 33 | I44: 0 | J44: 12. | L44: =IF(D44=$C$1,Информационный!$Q$19,IF(D44=$C$2,Информационный!$R$19,IF(Творческие!D44=Творческие!$C$3,Информационный!$S$19,0))) -> 0 | M44: 0 | N44: =IF(G44=$I$1,Информационный!$G$11,IF(G44=$I$2,Информационный!$G$12,0)) -> 0
A45: 34 | I45: 0 | J45: 12. | L45: =IF(D45=$C$1,Информационный!$Q$19,IF(D45=$C$2,Информационный!$R$19,IF(Творческие!D45=Творческие!$C$3,Информационный!$S$19,0))) -> 0 | M45: 0 | N45: =IF(G45=$I$1,Информационный!$G$11,IF(G45=$I$2,Информационный!$G$12,0)) -> 0
A46: 35 | I46: 0 | J46: 12. | L46: =IF(D46=$C$1,Информационный!$Q$19,IF(D46=$C$2,Информационный!$R$19,IF(Творческие!D46=Творческие!$C$3,Информационный!$S$19,0))) -> 0 | M46: 0 | N46: =IF(G46=$I$1,Информационный!$G$11,IF(G46=$I$2,Информационный!$G$12,0)) -> 0
A47: 36 | I47: 0 | J47: 12. | L47: =IF(D47=$C$1,Информационный!$Q$19,IF(D47=$C$2,Информационный!$R$19,IF(Творческие!D47=Творческие!$C$3,Информационный!$S$19,0))) -> 0 | M47: 0 | N47: =IF(G47=$I$1,Информационный!$G$11,IF(G47=$I$2,Информационный!$G$12,0)) -> 0
A48: 37 | I48: 0 | J48: 12. | L48: =IF(D48=$C$1,Информационный!$Q$19,IF(D48=$C$2,Информационный!$R$19,IF(Творческие!D48=Творческие!$C$3,Информационный!$S$19,0))) -> 0 | M48: 0 | N48: =IF(G48=$I$1,Информационный!$G$11,IF(G48=$I$2,Информационный!$G$12,0)) -> 0
A49: 38 | I49: 0 | J49: 12. | L49: =IF(D49=$C$1,Информационный!$Q$19,IF(D49=$C$2,Информационный!$R$19,IF(Творческие!D49=Творческие!$C$3,Информационный!$S$19,0))) -> 0 | M49: 0 | N49: =IF(G49=$I$1,Информационный!$G$11,IF(G49=$I$2,Информационный!$G$12,0)) -> 0
A50: 39 | I50: 0 | J50: 12. | L50: =IF(D50=$C$1,Информационный!$Q$19,IF(D50=$C$2,Информационный!$R$19,IF(Творческие!D50=Творческие!$C$3,Информационный!$S$19,0))) -> 0 | M50: 0 | N50: =IF(G50=$I$1,Информационный!$G$11,IF(G50=$I$2,Информационный!$G$12,0)) -> 0
A51: 40 | I51: 0 | J51: 12. | L51: =IF(D51=$C$1,Информационный!$Q$19,IF(D51=$C$2,Информационный!$R$19,IF(Творческие!D51=Творческие!$C$3,Информационный!$S$19,0))) -> 0 | M51: 0 | N51: =IF(G51=$I$1,Информационный!$G$11,IF(G51=$I$2,Информационный!$G$12,0)) -> 0
A52: 41 | I52: 0 | J52: 12. | L52: =IF(D52=$C$1,Информационный!$Q$19,IF(D52=$C$2,Информационный!$R$19,IF(Творческие!D52=Творческие!$C$3,Информационный!$S$19,0))) -> 0 | M52: 0 | N52: =IF(G52=$I$1,Информационный!$G$11,IF(G52=$I$2,Информационный!$G$12,0)) -> 0
A53: 42 | I53: 0 | J53: 12. | L53: =IF(D53=$C$1,Информационный!$Q$19,IF(D53=$C$2,Информационный!$R$19,IF(Творческие!D53=Творческие!$C$3,Информационный!$S$19,0))) -> 0 | M53: 0 | N53: =IF(G53=$I$1,Информационный!$G$11,IF(G53=$I$2,Информационный!$G$12,0)) -> 0
A54: 43 | I54: 0 | J54: 12. | L54: =IF(D54=$C$1,Информационный!$Q$19,IF(D54=$C$2,Информационный!$R$19,IF(Творческие!D54=Творческие!$C$3,Информационный!$S$19,0))) -> 0 | M54: 0 | N54: =IF(G54=$I$1,Информационный!$G$11,IF(G54=$I$2,Информационный!$G$12,0)) -> 0
A55: 44 | I55: 0 | J55: 12. | L55: =IF(D55=$C$1,Информационный!$Q$19,IF(D55=$C$2,Информационный!$R$19,IF(Творческие!D55=Творческие!$C$3,Информационный!$S$19,0))) -> 0 | M55: 0 | N55: =IF(G55=$I$1,Информационный!$G$11,IF(G55=$I$2,Информационный!$G$12,0)) -> 0
A56: 45 | I56: 0 | J56: 12. | L56: =IF(D56=$C$1,Информационный!$Q$19,IF(D56=$C$2,Информационный!$R$19,IF(Творческие!D56=Творческие!$C$3,Информационный!$S$19,0))) -> 0 | M56: 0 | N56: =IF(G56=$I$1,Информационный!$G$11,IF(G56=$I$2,Информационный!$G$12,0)) -> 0
A57: 46 | I57: 0 | J57: 12. | L57: =IF(D57=$C$1,Информационный!$Q$19,IF(D57=$C$2,Информационный!$R$19,IF(Творческие!D57=Творческие!$C$3,Информационный!$S$19,0))) -> 0 | M57: 0 | N57: =IF(G57=$I$1,Информационный!$G$11,IF(G57=$I$2,Информационный!$G$12,0)) -> 0
A58: 47 | I58: 0 | J58: 12. | L58: =IF(D58=$C$1,Информационный!$Q$19,IF(D58=$C$2,Информационный!$R$19,IF(Творческие!D58=Творческие!$C$3,Информационный!$S$19,0))) -> 0 | M58: 0 | N58: =IF(G58=$I$1,Информационный!$G$11,IF(G58=$I$2,Информационный!$G$12,0)) -> 0
A59: 48 | I59: 0 | J59: 12. | L59: =IF(D59=$C$1,Информационный!$Q$19,IF(D59=$C$2,Информационный!$R$19,IF(Творческие!D59=Творческие!$C$3,Информационный!$S$19,0))) -> 0 | M59: 0 | N59: =IF(G59=$I$1,Информационный!$G$11,IF(G59=$I$2,Информационный!$G$12,0)) -> 0
A60: 49 | I60: 0 | J60: 12. | L60: =IF(D60=$C$1,Информационный!$Q$19,IF(D60=$C$2,Информационный!$R$19,IF(Творческие!D60=Творческие!$C$3,Информационный!$S$19,0))) -> 0 | M60: 0 | N60: =IF(G60=$I$1,Информационный!$G$11,IF(G60=$I$2,Информационный!$G$12,0)) -> 0
A61: 50 | I61: 0 | J61: 12. | L61: =IF(D61=$C$1,Информационный!$Q$19,IF(D61=$C$2,Информационный!$R$19,IF(Творческие!D61=Творческие!$C$3,Информационный!$S$19,0))) -> 0 | M61: 0 | N61: =IF(G61=$I$1,Информационный!$G$11,IF(G61=$I$2,Информационный!$G$12,0)) -> 0
A62: 51 | I62: 0 | J62: 12. | L62: =IF(D62=$C$1,Информационный!$Q$19,IF(D62=$C$2,Информационный!$R$19,IF(Творческие!D62=Творческие!$C$3,Информационный!$S$19,0))) -> 0 | M62: 0 | N62: =IF(G62=$I$1,Информационный!$G$11,IF(G62=$I$2,Информационный!$G$12,0)) -> 0
A63: 52 | I63: 0 | J63: 12. | L63: =IF(D63=$C$1,Информационный!$Q$19,IF(D63=$C$2,Информационный!$R$19,IF(Творческие!D63=Творческие!$C$3,Информационный!$S$19,0))) -> 0 | M63: 0 | N63: =IF(G63=$I$1,Информационный!$G$11,IF(G63=$I$2,Информационный!$G$12,0)) -> 0
A64: 53 | I64: 0 | J64: 12. | L64: =IF(D64=$C$1,Информационный!$Q$19,IF(D64=$C$2,Информационный!$R$19,IF(Творческие!D64=Творческие!$C$3,Информационный!$S$19,0))) -> 0 | M64: 0 | N64: =IF(G64=$I$1,Информационный!$G$11,IF(G64=$I$2,Информационный!$G$12,0)) -> 0
A65: 54 | I65: 0 | J65: 12. | L65: =IF(D65=$C$1,Информационный!$Q$19,IF(D65=$C$2,Информационный!$R$19,IF(Творческие!D65=Творческие!$C$3,Информационный!$S$19,0))) -> 0 | M65: 0 | N65: =IF(G65=$I$1,Информационный!$G$11,IF(G65=$I$2,Информационный!$G$12,0)) -> 0
A66: 55 | I66: 0 | J66: 12. | L66: =IF(D66=$C$1,Информационный!$Q$19,IF(D66=$C$2,Информационный!$R$19,IF(Творческие!D66=Творческие!$C$3,Информационный!$S$19,0))) -> 0 | M66: 0 | N66: =IF(G66=$I$1,Информационный!$G$11,IF(G66=$I$2,Информационный!$G$12,0)) -> 0
A67: 56 | I67: 0 | J67: 12. | L67: =IF(D67=$C$1,Информационный!$Q$19,IF(D67=$C$2,Информационный!$R$19,IF(Творческие!D67=Творческие!$C$3,Информационный!$S$19,0))) -> 0 | M67: 0 | N67: =IF(G67=$I$1,Информационный!$G$11,IF(G67=$I$2,Информационный!$G$12,0)) -> 0
A68: 57 | I68: 0 | J68: 12. | L68: =IF(D68=$C$1,Информационный!$Q$19,IF(D68=$C$2,Информационный!$R$19,IF(Творческие!D68=Творческие!$C$3,Информационный!$S$19,0))) -> 0 | M68: 0 | N68: =IF(G68=$I$1,Информационный!$G$11,IF(G68=$I$2,Информационный!$G$12,0)) -> 0
A69: 58 | I69: 0 | J69: 12. | L69: =IF(D69=$C$1,Информационный!$Q$19,IF(D69=$C$2,Информационный!$R$19,IF(Творческие!D69=Творческие!$C$3,Информационный!$S$19,0))) -> 0 | M69: 0 | N69: =IF(G69=$I$1,Информационный!$G$11,IF(G69=$I$2,Информационный!$G$12,0)) -> 0
A70: 59 | I70: 0 | J70: 12. | L70: =IF(D70=$C$1,Информационный!$Q$19,IF(D70=$C$2,Информационный!$R$19,IF(Творческие!D70=Творческие!$C$3,Информационный!$S$19,0))) -> 0 | M70: 0 | N70: =IF(G70=$I$1,Информационный!$G$11,IF(G70=$I$2,Информационный!$G$12,0)) -> 0
A71: 60 | I71: 0 | J71: 12. | L71: =IF(D71=$C$1,Информационный!$Q$19,IF(D71=$C$2,Информационный!$R$19,IF(Творческие!D71=Творческие!$C$3,Информационный!$S$19,0))) -> 0 | M71: 0 | N71: =IF(G71=$I$1,Информационный!$G$11,IF(G71=$I$2,Информационный!$G$12,0)) -> 0
A72: 61 | I72: 0 | J72: 12. | L72: =IF(D72=$C$1,Информационный!$Q$19,IF(D72=$C$2,Информационный!$R$19,IF(Творческие!D72=Творческие!$C$3,Информационный!$S$19,0))) -> 0 | M72: 0 | N72: =IF(G72=$I$1,Информационный!$G$11,IF(G72=$I$2,Информационный!$G$12,0)) -> 0
A73: 62 | I73: 0 | J73: 12. | L73: =IF(D73=$C$1,Информационный!$Q$19,IF(D73=$C$2,Информационный!$R$19,IF(Творческие!D73=Творческие!$C$3,Информационный!$S$19,0))) -> 0 | M73: 0 | N73: =IF(G73=$I$1,Информационный!$G$11,IF(G73=$I$2,Информационный!$G$12,0)) -> 0
A74: 63 | I74: 0 | J74: 12. | L74: =IF(D74=$C$1,Информационный!$Q$19,IF(D74=$C$2,Информационный!$R$19,IF(Творческие!D74=Творческие!$C$3,Информационный!$S$19,0))) -> 0 | M74: 0 | N74: =IF(G74=$I$1,Информационный!$G$11,IF(G74=$I$2,Информационный!$G$12,0)) -> 0
A75: 64 | I75: 0 | J75: 12. | L75: =IF(D75=$C$1,Информационный!$Q$19,IF(D75=$C$2,Информационный!$R$19,IF(Творческие!D75=Творческие!$C$3,Информационный!$S$19,0))) -> 0 | M75: 0 | N75: =IF(G75=$I$1,Информационный!$G$11,IF(G75=$I$2,Информационный!$G$12,0)) -> 0
A76: 65 | I76: 0 | J76: 12. | L76: =IF(D76=$C$1,Информационный!$Q$19,IF(D76=$C$2,Информационный!$R$19,IF(Творческие!D76=Творческие!$C$3,Информационный!$S$19,0))) -> 0 | M76: 0 | N76: =IF(G76=$I$1,Информационный!$G$11,IF(G76=$I$2,Информационный!$G$12,0)) -> 0
A77: 66 | I77: =L77*M77*N77 -> 0 | J77: 12. | K77: =IF(B77<>0,A77," ") ->  | L77: =IF(D77=$C$1,Информационный!$Q$19,IF(D77=$C$2,Информационный!$R$19,IF(Творческие!D77=Творческие!$C$3,Информационный!$S$19,0))) -> 0 | M77: =IF(E77=$F$5,1,IF(E77=$F$4,0.8,IF(E77=$F$3,0.6,IF(E77=$F$2,0.4,IF(E77=$F$1,0.2,0))))) -> 0 | N77: =IF(G77=$I$1,Информационный!$G$11,IF(G77=$I$2,Информационный!$G$12,0)) -> 0
A78: 67 | I78: 0 | J78: 12. | L78: =IF(D78=$C$1,Информационный!$Q$19,IF(D78=$C$2,Информационный!$R$19,IF(Творческие!D78=Творческие!$C$3,Информационный!$S$19,0))) -> 0 | M78: 0 | N78: =IF(G78=$I$1,Информационный!$G$11,IF(G78=$I$2,Информационный!$G$12,0)) -> 0
A79: 68 | I79: 0 | J79: 12. | L79: =IF(D79=$C$1,Информационный!$Q$19,IF(D79=$C$2,Информационный!$R$19,IF(Творческие!D79=Творческие!$C$3,Информационный!$S$19,0))) -> 0 | M79: 0 | N79: =IF(G79=$I$1,Информационный!$G$11,IF(G79=$I$2,Информационный!$G$12,0)) -> 0
A80: 69 | I80: 0 | J80: 12. | L80: =IF(D80=$C$1,Информационный!$Q$19,IF(D80=$C$2,Информационный!$R$19,IF(Творческие!D80=Творческие!$C$3,Информационный!$S$19,0))) -> 0 | M80: 0 | N80: =IF(G80=$I$1,Информационный!$G$11,IF(G80=$I$2,Информационный!$G$12,0)) -> 0
A81: 70 | I81: 0 | J81: 12. | L81: =IF(D81=$C$1,Информационный!$Q$19,IF(D81=$C$2,Информационный!$R$19,IF(Творческие!D81=Творческие!$C$3,Информационный!$S$19,0))) -> 0 | M81: 0 | N81: =IF(G81=$I$1,Информационный!$G$11,IF(G81=$I$2,Информационный!$G$12,0)) -> 0
A82: 71 | I82: 0 | J82: 12. | L82: =IF(D82=$C$1,Информационный!$Q$19,IF(D82=$C$2,Информационный!$R$19,IF(Творческие!D82=Творческие!$C$3,Информационный!$S$19,0))) -> 0 | M82: 0 | N82: =IF(G82=$I$1,Информационный!$G$11,IF(G82=$I$2,Информационный!$G$12,0)) -> 0
A83: 72 | I83: 0 | J83: 12. | L83: =IF(D83=$C$1,Информационный!$Q$19,IF(D83=$C$2,Информационный!$R$19,IF(Творческие!D83=Творческие!$C$3,Информационный!$S$19,0))) -> 0 | M83: 0 | N83: =IF(G83=$I$1,Информационный!$G$11,IF(G83=$I$2,Информационный!$G$12,0)) -> 0
A84: 73 | I84: 0 | J84: 12. | L84: =IF(D84=$C$1,Информационный!$Q$19,IF(D84=$C$2,Информационный!$R$19,IF(Творческие!D84=Творческие!$C$3,Информационный!$S$19,0))) -> 0 | M84: 0 | N84: =IF(G84=$I$1,Информационный!$G$11,IF(G84=$I$2,Информационный!$G$12,0)) -> 0
A85: 74 | I85: 0 | J85: 12. | L85: =IF(D85=$C$1,Информационный!$Q$19,IF(D85=$C$2,Информационный!$R$19,IF(Творческие!D85=Творческие!$C$3,Информационный!$S$19,0))) -> 0 | M85: 0 | N85: =IF(G85=$I$1,Информационный!$G$11,IF(G85=$I$2,Информационный!$G$12,0)) -> 0
A86: 75 | I86: 0 | J86: 12. | L86: =IF(D86=$C$1,Информационный!$Q$19,IF(D86=$C$2,Информационный!$R$19,IF(Творческие!D86=Творческие!$C$3,Информационный!$S$19,0))) -> 0 | M86: 0 | N86: =IF(G86=$I$1,Информационный!$G$11,IF(G86=$I$2,Информационный!$G$12,0)) -> 0
A87: 76 | I87: 0 | J87: 12. | L87: =IF(D87=$C$1,Информационный!$Q$19,IF(D87=$C$2,Информационный!$R$19,IF(Творческие!D87=Творческие!$C$3,Информационный!$S$19,0))) -> 0 | M87: 0 | N87: =IF(G87=$I$1,Информационный!$G$11,IF(G87=$I$2,Информационный!$G$12,0)) -> 0
A88: 77 | I88: 0 | J88: 12. | L88: =IF(D88=$C$1,Информационный!$Q$19,IF(D88=$C$2,Информационный!$R$19,IF(Творческие!D88=Творческие!$C$3,Информационный!$S$19,0))) -> 0 | M88: 0 | N88: =IF(G88=$I$1,Информационный!$G$11,IF(G88=$I$2,Информационный!$G$12,0)) -> 0
A89: 78 | I89: 0 | J89: 12. | L89: =IF(D89=$C$1,Информационный!$Q$19,IF(D89=$C$2,Информационный!$R$19,IF(Творческие!D89=Творческие!$C$3,Информационный!$S$19,0))) -> 0 | M89: 0 | N89: =IF(G89=$I$1,Информационный!$G$11,IF(G89=$I$2,Информационный!$G$12,0)) -> 0
A90: 79 | I90: 0 | J90: 12. | L90: =IF(D90=$C$1,Информационный!$Q$19,IF(D90=$C$2,Информационный!$R$19,IF(Творческие!D90=Творческие!$C$3,Информационный!$S$19,0))) -> 0 | M90: 0 | N90: =IF(G90=$I$1,Информационный!$G$11,IF(G90=$I$2,Информационный!$G$12,0)) -> 0
A91: 80 | I91: 0 | J91: 12. | L91: =IF(D91=$C$1,Информационный!$Q$19,IF(D91=$C$2,Информационный!$R$19,IF(Творческие!D91=Творческие!$C$3,Информационный!$S$19,0))) -> 0 | M91: 0 | N91: =IF(G91=$I$1,Информационный!$G$11,IF(G91=$I$2,Информационный!$G$12,0)) -> 0
A92: 81 | I92: 0 | J92: 12. | L92: =IF(D92=$C$1,Информационный!$Q$19,IF(D92=$C$2,Информационный!$R$19,IF(Творческие!D92=Творческие!$C$3,Информационный!$S$19,0))) -> 0 | M92: 0 | N92: =IF(G92=$I$1,Информационный!$G$11,IF(G92=$I$2,Информационный!$G$12,0)) -> 0
A93: 82 | I93: 0 | J93: 12. | L93: =IF(D93=$C$1,Информационный!$Q$19,IF(D93=$C$2,Информационный!$R$19,IF(Творческие!D93=Творческие!$C$3,Информационный!$S$19,0))) -> 0 | M93: 0 | N93: =IF(G93=$I$1,Информационный!$G$11,IF(G93=$I$2,Информационный!$G$12,0)) -> 0
A94: 83 | I94: 0 | J94: 12. | L94: =IF(D94=$C$1,Информационный!$Q$19,IF(D94=$C$2,Информационный!$R$19,IF(Творческие!D94=Творческие!$C$3,Информационный!$S$19,0))) -> 0 | M94: 0 | N94: =IF(G94=$I$1,Информационный!$G$11,IF(G94=$I$2,Информационный!$G$12,0)) -> 0
A95: 84 | I95: 0 | J95: 12. | L95: =IF(D95=$C$1,Информационный!$Q$19,IF(D95=$C$2,Информационный!$R$19,IF(Творческие!D95=Творческие!$C$3,Информационный!$S$19,0))) -> 0 | M95: 0 | N95: =IF(G95=$I$1,Информационный!$G$11,IF(G95=$I$2,Информационный!$G$12,0)) -> 0
A96: 85 | I96: 0 | J96: 12. | L96: =IF(D96=$C$1,Информационный!$Q$19,IF(D96=$C$2,Информационный!$R$19,IF(Творческие!D96=Творческие!$C$3,Информационный!$S$19,0))) -> 0 | M96: 0 | N96: =IF(G96=$I$1,Информационный!$G$11,IF(G96=$I$2,Информационный!$G$12,0)) -> 0
A97: 86 | I97: 0 | J97: 12. | L97: =IF(D97=$C$1,Информационный!$Q$19,IF(D97=$C$2,Информационный!$R$19,IF(Творческие!D97=Творческие!$C$3,Информационный!$S$19,0))) -> 0 | M97: 0 | N97: =IF(G97=$I$1,Информационный!$G$11,IF(G97=$I$2,Информационный!$G$12,0)) -> 0
A98: 87 | I98: 0 | J98: 12. | L98: =IF(D98=$C$1,Информационный!$Q$19,IF(D98=$C$2,Информационный!$R$19,IF(Творческие!D98=Творческие!$C$3,Информационный!$S$19,0))) -> 0 | M98: 0 | N98: =IF(G98=$I$1,Информационный!$G$11,IF(G98=$I$2,Информационный!$G$12,0)) -> 0
A99: 88 | I99: 0 | J99: 12. | L99: =IF(D99=$C$1,Информационный!$Q$19,IF(D99=$C$2,Информационный!$R$19,IF(Творческие!D99=Творческие!$C$3,Информационный!$S$19,0))) -> 0 | M99: 0 | N99: =IF(G99=$I$1,Информационный!$G$11,IF(G99=$I$2,Информационный!$G$12,0)) -> 0
A100: 89 | I100: 0 | J100: 12. | L100: =IF(D100=$C$1,Информационный!$Q$19,IF(D100=$C$2,Информационный!$R$19,IF(Творческие!D100=Творческие!$C$3,Информационный!$S$19,0))) -> 0 | M100: 0 | N100: =IF(G100=$I$1,Информационный!$G$11,IF(G100=$I$2,Информационный!$G$12,0)) -> 0
A101: 90 | I101: 0 | J101: 12. | L101: =IF(D101=$C$1,Информационный!$Q$19,IF(D101=$C$2,Информационный!$R$19,IF(Творческие!D101=Творческие!$C$3,Информационный!$S$19,0))) -> 0 | M101: 0 | N101: =IF(G101=$I$1,Информационный!$G$11,IF(G101=$I$2,Информационный!$G$12,0)) -> 0
A102: 91 | I102: 0 | J102: 12. | L102: =IF(D102=$C$1,Информационный!$Q$19,IF(D102=$C$2,Информационный!$R$19,IF(Творческие!D102=Творческие!$C$3,Информационный!$S$19,0))) -> 0 | M102: 0 | N102: =IF(G102=$I$1,Информационный!$G$11,IF(G102=$I$2,Информационный!$G$12,0)) -> 0
A103: 92 | I103: 0 | J103: 12. | L103: =IF(D103=$C$1,Информационный!$Q$19,IF(D103=$C$2,Информационный!$R$19,IF(Творческие!D103=Творческие!$C$3,Информационный!$S$19,0))) -> 0 | M103: 0 | N103: =IF(G103=$I$1,Информационный!$G$11,IF(G103=$I$2,Информационный!$G$12,0)) -> 0
A104: 93 | I104: 0 | J104: 12. | L104: =IF(D104=$C$1,Информационный!$Q$19,IF(D104=$C$2,Информационный!$R$19,IF(Творческие!D104=Творческие!$C$3,Информационный!$S$19,0))) -> 0 | M104: 0 | N104: =IF(G104=$I$1,Информационный!$G$11,IF(G104=$I$2,Информационный!$G$12,0)) -> 0
A105: 94 | I105: 0 | J105: 12. | L105: =IF(D105=$C$1,Информационный!$Q$19,IF(D105=$C$2,Информационный!$R$19,IF(Творческие!D105=Творческие!$C$3,Информационный!$S$19,0))) -> 0 | M105: 0 | N105: =IF(G105=$I$1,Информационный!$G$11,IF(G105=$I$2,Информационный!$G$12,0)) -> 0
A106: 95 | I106: 0 | J106: 12. | L106: =IF(D106=$C$1,Информационный!$Q$19,IF(D106=$C$2,Информационный!$R$19,IF(Творческие!D106=Творческие!$C$3,Информационный!$S$19,0))) -> 0 | M106: 0 | N106: =IF(G106=$I$1,Информационный!$G$11,IF(G106=$I$2,Информационный!$G$12,0)) -> 0
A107: 96 | I107: 0 | J107: 12. | L107: =IF(D107=$C$1,Информационный!$Q$19,IF(D107=$C$2,Информационный!$R$19,IF(Творческие!D107=Творческие!$C$3,Информационный!$S$19,0))) -> 0 | M107: 0 | N107: =IF(G107=$I$1,Информационный!$G$11,IF(G107=$I$2,Информационный!$G$12,0)) -> 0
A108: 97 | I108: 0 | J108: 12. | L108: =IF(D108=$C$1,Информационный!$Q$19,IF(D108=$C$2,Информационный!$R$19,IF(Творческие!D108=Творческие!$C$3,Информационный!$S$19,0))) -> 0 | M108: 0 | N108: =IF(G108=$I$1,Информационный!$G$11,IF(G108=$I$2,Информационный!$G$12,0)) -> 0
A109: 98 | I109: 0 | J109: 12. | L109: =IF(D109=$C$1,Информационный!$Q$19,IF(D109=$C$2,Информационный!$R$19,IF(Творческие!D109=Творческие!$C$3,Информационный!$S$19,0))) -> 0 | M109: 0 | N109: =IF(G109=$I$1,Информационный!$G$11,IF(G109=$I$2,Информационный!$G$12,0)) -> 0
A110: 99 | I110: 0 | J110: 12. | L110: =IF(D110=$C$1,Информационный!$Q$19,IF(D110=$C$2,Информационный!$R$19,IF(Творческие!D110=Творческие!$C$3,Информационный!$S$19,0))) -> 0 | M110: 0 | N110: =IF(G110=$I$1,Информационный!$G$11,IF(G110=$I$2,Информационный!$G$12,0)) -> 0
A111: 100 | I111: 0 | J111: 12. | L111: =IF(D111=$C$1,Информационный!$Q$19,IF(D111=$C$2,Информационный!$R$19,IF(Творческие!D111=Творческие!$C$3,Информационный!$S$19,0))) -> 0 | M111: 0 | N111: =IF(G111=$I$1,Информационный!$G$11,IF(G111=$I$2,Информационный!$G$12,0)) -> 0
D112: Уровень участия | E112: =COUNTIF($E$12:$E$111,"школьный") -> 3 | F112: =F1 -> школьный
E113: =COUNTIF($E$12:$E$111,"муниципальный") -> 3 | F113: =F2 -> муниципальный
E114: =COUNTIF($E$12:$E$111,"региональный") -> 2 | F114: =F3 -> региональный
E115: =COUNTIF($E$12:$E$111,"всероссийский") -> 0 | F115: =F4 -> федеральный
E116: =COUNTIF($E$12:$E$111,"международный") -> 1 | F116: =F5 -> международный
E118: =NOW() -> 2019-08-24T15:19:23.810
E120: ='Информация о школе'!$A$22 -> Классный руководитель
E121: /_________________/
E122: ='Информация о школе'!$D$22 -> Главаля Ирина Геннадьевна
H138: 1 класс | I138: =SUMIF($H$12:$H$111,"1",$I$12:$I$111) -> 2.6
H139: 2 класс | I139: =SUMIF($H$12:$H$111,"2",$I$12:$I$111) -> 0
H140: 3 класс | I140: =SUMIF($H$12:$H$111,"3",$I$12:$I$111) -> 7
H141: 4 класс | I141: =SUMIF($H$12:$H$111,"4",$I$12:$I$111) -> 8.4
H142: 5 класс | I142: =SUMIF($H$12:$H$111,"5",$I$12:$I$111) -> 8.6
H143: 6 класс | I143: =SUMIF($H$12:$H$111,"6",$I$12:$I$111) -> 5.6
H144: 7 класс | I144: =SUMIF($H$12:$H$111,"7",$I$12:$I$111) -> 3
H145: 8 класс | I145: =SUMIF($H$12:$H$111,"81",$I$12:$I$111) -> 0
H146: 9 класс | I146: =SUMIF($H$12:$H$111,"9",$I$12:$I$111) -> 5.6
H147: 10 класс | I147: =SUMIF($H$12:$H$111,"10",$I$12:$I$111) -> 0
H148: 11 класс | I148: =SUMIF($H$12:$H$111,"11",$I$12:$I$111) -> 0
A151: Электронное портфолио учащегося

Sheet Курсы по выбору
J1: Да
J2: Нет
A6: КУРСЫ ПО ВЫБОРУ
A7: ='Личные данные'!$A$9 -> ЭЛЕКТРОННОЕ | C7: ='Личные данные'!$C$9 -> ПОРТФОЛИО | E7: =титульный!$D$57 -> Антонова Светлана Степановна | H7: =титульный!$D$58 -> МБОУ "СОШ№11"
A8: №п\п | B8: Название курса | D8: Учитель | E8: число часов по плану | F8: посещено фактически | G8: Роспись учителя | H8: класс | I8: Балл | J8: Соответствует выбранному профилю
L10: % посещаемости | M10: Профиль | O10: Выбрано часов
A12: 1 | B12: Математические курсы | D12: Голованов А.С. | E12: 18 | F12: 18 | H12: 6 | I12: =O12*L12+M12 -> 1.029411765 | J12: Да | L12: =IF(E12>0,F12/E12,0) -> 1 | M12: =IF(J12=$J$1,0.5,0) -> 0.5 | O12: =E12/Информационный!$Y$6 -> 0.5294117647
A13: 2 | B13: Математические курсы | D13: БФМШ | E13: 42 | F13: 42 | H13: 6 | I13: =O13*L13+M13 -> 1.735294118 | J13: Да | L13: =IF(E13>0,F13/E13,0) -> 1 | M13: =IF(J13=$J$1,0.5,0) -> 0.5 | O13: =E13/Информационный!$Y$6 -> 1.235294118
A14: 3 | B14: Математические курсы | D14: БФМШ | E14: 42 | F14: 42 | H14: 7 | I14: 1.735294118 | J14: Да | L14: 1 | M14: 0.5 | O14: =E14/Информационный!$Y$6 -> 1.235294118
A15: 4 | B15: Программирование | D15: Зубков М.В. | E15: 136 | F15: 136 | H15: 9 | I15: 4.5 | J15: Да | L15: 1 | M15: 0.5 | O15: =E15/Информационный!$Y$6 -> 4
A16: 5 | B16: Комбинаторика | D16: Шварёва Л.В. | E16: 34 | F16: 34 | H16: 9 | I16: 1.5 | J16: Да | L16: 1 | M16: 0.5 | O16: =E16/Информационный!$Y$6 -> 1
A17: 6 | B17: Теория чисел | D17: Шварёва Л.В. | E17: 34 | F17: 34 | H17: 9 | I17: 1.5 | J17: Да | L17: 1 | M17: 0.5 | O17: =E17/Информационный!$Y$6 -> 1
A18: 7 | B18: Информатика и ИКТ | D18: Трифонова О.Ю. | E18: 34 | F18: 34 | H18: 9 | I18: 1.5 | J18: Да | L18: 1 | M18: 0.5 | O18: =E18/Информационный!$Y$6 -> 1
A19: 8 | B19: Уроки словесности | D19: Сафарова Т.А. | E19: 34 | F19: 34 | H19: 9 | I19: 1 | J19: Нет | L19: 1 | M19: 0 | O19: =E19/Информационный!$Y$6 -> 1
A20: 9 | B20: Неорганическая химия | D20: Сиягина Т.В. | E20: 34 | F20: 34 | H20: 8 | I20: 1 | J20: Нет | L20: 1 | M20: 0 | O20: =E20/Информационный!$Y$6 -> 1
A21: 10 | I21: 0 | L21: 0 | M21: 0 | O21: =E21/Информационный!$Y$6 -> 0
A22: 11 | I22: 0 | L22: 0 | M22: 0 | O22: =E22/Информационный!$Y$6 -> 0
A23: 12 | I23: 0 | L23: 0 | M23: 0 | O23: =E23/Информационный!$Y$6 -> 0
A24: 13 | I24: 0 | L24: 0 | M24: 0 | O24: =E24/Информационный!$Y$6 -> 0
A25: 14 | I25: 0 | L25: 0 | M25: 0 | O25: =E25/Информационный!$Y$6 -> 0
A26: 15 | I26: 0 | L26: 0 | M26: 0 | O26: =E26/Информационный!$Y$6 -> 0
A27: 16 | I27: 0 | L27: 0 | M27: 0 | O27: =E27/Информационный!$Y$6 -> 0
A28: 17 | I28: 0 | L28: 0 | M28: 0 | O28: =E28/Информационный!$Y$6 -> 0
A29: 18 | I29: 0 | L29: 0 | M29: 0 | O29: =E29/Информационный!$Y$6 -> 0
A30: 19 | I30: 0 | L30: 0 | M30: 0 | O30: =E30/Информационный!$Y$6 -> 0
A31: 20 | I31: 0 | L31: 0 | M31: 0 | O31: =E31/Информационный!$Y$6 -> 0
A32: 21 | I32: 0 | L32: 0 | M32: 0 | O32: =E32/Информационный!$Y$6 -> 0
A33: 22 | I33: 0 | L33: 0 | M33: 0 | O33: =E33/Информационный!$Y$6 -> 0
A34: 23 | I34: 0 | L34: 0 | M34: 0 | O34: =E34/Информационный!$Y$6 -> 0
A35: 24 | I35: 0 | L35: 0 | M35: 0 | O35: =E35/Информационный!$Y$6 -> 0
A36: 25 | I36: 0 | L36: 0 | M36: 0 | O36: =E36/Информационный!$Y$6 -> 0
A37: 26 | I37: 0 | L37: 0 | M37: 0 | O37: =E37/Информационный!$Y$6 -> 0
A38: 27 | I38: 0 | L38: 0 | M38: 0 | O38: =E38/Информационный!$Y$6 -> 0
A39: 28 | I39: 0 | L39: 0 | M39: 0 | O39: =E39/Информационный!$Y$6 -> 0
A40: 29 | I40: 0 | L40: 0 | M40: 0 | O40: =E40/Информационный!$Y$6 -> 0
A41: 30 | I41: 0 | L41: 0 | M41: 0 | O41: =E41/Информационный!$Y$6 -> 0
A42: 31 | I42: 0 | L42: 0 | M42: 0 | O42: =E42/Информационный!$Y$6 -> 0
A43: 32 | I43: 0 | L43: 0 | M43: 0 | O43: =E43/Информационный!$Y$6 -> 0
A44: 33 | I44: 0 | L44: 0 | M44: 0 | O44: =E44/Информационный!$Y$6 -> 0
A45: 34 | I45: 0 | L45: 0 | M45: 0 | O45: =E45/Информационный!$Y$6 -> 0
A46: 35 | I46: 0 | L46: 0 | M46: 0 | O46: =E46/Информационный!$Y$6 -> 0
A47: 36 | I47: 0 | L47: 0 | M47: 0 | O47: =E47/Информационный!$Y$6 -> 0
A48: 37 | I48: 0 | L48: 0 | M48: 0 | O48: =E48/Информационный!$Y$6 -> 0
A49: 38 | I49: 0 | L49: 0 | M49: 0 | O49: =E49/Информационный!$Y$6 -> 0
A50: 39 | I50: 0 | L50: 0 | M50: 0 | O50: =E50/Информационный!$Y$6 -> 0
A51: 40 | I51: 0 | L51: 0 | M51: 0 | O51: =E51/Информационный!$Y$6 -> 0
A52: 41 | I52: 0 | L52: 0 | M52: 0 | O52: =E52/Информационный!$Y$6 -> 0
A53: 42 | I53: 0 | L53: 0 | M53: 0 | O53: =E53/Информационный!$Y$6 -> 0
A54: 43 | I54: 0 | L54: 0 | M54: 0 | O54: =E54/Информационный!$Y$6 -> 0
A55: 44 | I55: 0 | L55: 0 | M55: 0 | O55: =E55/Информационный!$Y$6 -> 0
A56: 45 | I56: 0 | L56: 0 | M56: 0 | O56: =E56/Информационный!$Y$6 -> 0
A57: 46 | I57: 0 | L57: 0 | M57: 0 | O57: =E57/Информационный!$Y$6 -> 0
A58: 47 | I58: 0 | L58: 0 | M58: 0 | O58: =E58/Информационный!$Y$6 -> 0
A59: 48 | I59: 0 | L59: 0 | M59: 0 | O59: =E59/Информационный!$Y$6 -> 0
A60: 49 | I60: 0 | L60: 0 | M60: 0 | O60: =E60/Информационный!$Y$6 -> 0
A61: 50 | I61: 0 | L61: 0 | M61: 0 | O61: =E61/Информационный!$Y$6 -> 0
H62: =NOW() -> 2019-08-24T15:19:23.810
E63: ='Информация о школе'!$A$22 -> Классный руководитель
E64: /_________________/
E65: ='Информация о школе'!$D$22 -> Главаля Ирина Геннадьевна
A78: Электронное портфолио учащегося
D96: 1 класс | E96: =COUNTIF($H$12:$H$61,"1") -> 0 | F96: =IF( E96=Информационный!$W$19,I96+1, IF( E96=Информационный!$W$18,I96+0.8,IF( E96=Информационный!$W$17,I96+0.6, IF( E96=Информационный!$W$16,I96+0.4, IF( E96=Информационный!$W$15,I96+0.2,0))))) -> 0 | H96: 1 класс | I96: =SUMIF($H$12:$H$61,"1",$I$12:$I$61) -> 0
D97: 2 класс | E97: =COUNTIF($H$12:$H$61,"2") -> 0 | F97: =IF( E97=Информационный!$W$19,I97+1, IF( E97=Информационный!$W$18,I97+0.8,IF( E97=Информационный!$W$17,I97+0.6, IF( E97=Информационный!$W$16,I97+0.4, IF( E97=Информационный!$W$15,I97+0.2,0))))) -> 0 | H97: 2 класс | I97: =SUMIF($H$12:$H$61,"2",$I$12:$I$61) -> 0
D98: 3 класс | E98: =COUNTIF($H$12:$H$61,"3") -> 0 | F98: =IF( E98=Информационный!$W$19,I98+1, IF( E98=Информационный!$W$18,I98+0.8,IF( E98=Информационный!$W$17,I98+0.6, IF( E98=Информационный!$W$16,I98+0.4, IF( E98=Информационный!$W$15,I98+0.2,0))))) -> 0 | H98: 3 класс | I98: =SUMIF($H$12:$H$61,"3",$I$12:$I$61) -> 0
D99: 4 класс | E99: =COUNTIF($H$12:$H$61,"4") -> 0 | F99: =IF( E99=Информационный!$W$19,I99+1, IF( E99=Информационный!$W$18,I99+0.8,IF( E99=Информационный!$W$17,I99+0.6, IF( E99=Информационный!$W$16,I99+0.4, IF( E99=Информационный!$W$15,I99+0.2,0))))) -> 0 | H99: 4 класс | I99: =SUMIF($H$12:$H$61,"4",$I$12:$I$61) -> 0
D100: 5 класс | E100: =COUNTIF($H$12:$H$61,"5") -> 0 | F100: =IF( E100=Информационный!$W$19,I100+1, IF( E100=Информационный!$W$18,I100+0.8,IF( E100=Информационный!$W$17,I100+0.6, IF( E100=Информационный!$W$16,I100+0.4, IF( E100=Информационный!$W$15,I100+0.2,0))))) -> 0 | H100: 5 класс | I100: =SUMIF($H$12:$H$61,"5",$I$12:$I$61) -> 0
D101: 6 класс | E101: =COUNTIF($H$12:$H$61,"6") -> 2 | F101: =IF( E101=Информационный!$W$19,I101+1, IF( E101=Информационный!$W$18,I101+0.8,IF( E101=Информационный!$W$17,I101+0.6, IF( E101=Информационный!$W$16,I101+0.4, IF( E101=Информационный!$W$15,I101+0.2,0))))) -> 3.164705882 | H101: 6 класс | I101: =SUMIF($H$12:$H$61,"6",$I$12:$I$61) -> 2.764705882
D102: 7 класс | E102: =COUNTIF($H$12:$H$61,"7") -> 1 | F102: =IF( E102=Информационный!$W$19,I102+1, IF( E102=Информационный!$W$18,I102+0.8,IF( E102=Информационный!$W$17,I102+0.6, IF( E102=Информационный!$W$16,I102+0.4, IF( E102=Информационный!$W$15,I102+0.2,0))))) -> 1.935294118 | H102: 7 класс | I102: =SUMIF($H$12:$H$61,"7",$I$12:$I$61) -> 1.735294118
D103: 8 класс | E103: =COUNTIF($H$12:$H$61,"8") -> 1 | F103: =IF( E103=Информационный!$W$19,I103+1, IF( E103=Информационный!$W$18,I103+0.8,IF( E103=Информационный!$W$17,I103+0.6, IF( E103=Информационный!$W$16,I103+0.4, IF( E103=Информационный!$W$15,I103+0.2,0))))) -> 0.2 | H103: 8 класс | I103: =SUMIF($H$12:$H$61,"81",$I$12:$I$61) -> 0
D104: 9 класс | E104: =COUNTIF($H$12:$H$61,"9") -> 5 | F104: =IF( E104=Информационный!$W$19,I104+1, IF( E104=Информационный!$W$18,I104+0.8,IF( E104=Информационный!$W$17,I104+0.6, IF( E104=Информационный!$W$16,I104+0.4, IF( E104=Информационный!$W$15,I104+0.2,0))))) -> 11 | H104: 9 класс | I104: =SUMIF($H$12:$H$61,"9",$I$12:$I$61) -> 10
D105: 10 класс | E105: =COUNTIF($H$12:$H$61,"10") -> 0 | F105: =IF( E105=Информационный!$W$19,I105+1, IF( E105=Информационный!$W$18,I105+0.8,IF( E105=Информационный!$W$17,I105+0.6, IF( E105=Информационный!$W$16,I105+0.4, IF( E105=Информационный!$W$15,I105+0.2,0))))) -> 0 | H105: 10 класс | I105: =SUMIF($H$12:$H$61,"10",$I$12:$I$61) -> 0
D106: 11 класс | E106: =COUNTIF($H$12:$H$61,"11") -> 0 | F106: =IF( E106=Информационный!$W$19,I106+1, IF( E106=Информационный!$W$18,I106+0.8,IF( E106=Информационный!$W$17,I106+0.6, IF( E106=Информационный!$W$16,I106+0.4, IF( E106=Информационный!$W$15,I106+0.2,0))))) -> 0 | H106: 11 класс | I106: =SUMIF($H$12:$H$61,"11",$I$12:$I$61) -> 0
A137: Электронное портфолио учащегося

Sheet Допобразование
J1: Да
J2: Нет
A6: ДОПОЛНИТЕЛЬНОЕ ОБРАЗОВАНИЕ
A7: ='Личные данные'!$A$9 -> ЭЛЕКТРОННОЕ | C7: ='Личные данные'!$C$9 -> ПОРТФОЛИО | E7: =титульный!$D$57 -> Антонова Светлана Степановна | H7: =титульный!$D$58 -> МБОУ "СОШ№11"
A8: №п\п | B8: Название секции кружка, клуба | D8: Название учреждения доп.образования | E8: число часов по плану | F8: посещено фактически | G8: Роспись учителя | H8: класс | I8: Балл | J8: Соответствует выбранному профилю
L10: % посещаемости | M10: Профиль | O10: Выбрано часов
A12: 1 | B12: Художественное отделение | D12: ДХШИ №4 | E12: 170 | F12: 170 | H12: 2 | I12: =O12*L12+M12 -> 5 | J12: Нет | L12: =IF(E12>0,F12/E12,0) -> 1 | M12: =IF(J12=$J$1,0.5,0) -> 0 | O12: =E12/Информационный!$Y$6 -> 5
A13: 2 | B13: Художественное отделение | D13: ДХШИ №4 | E13: 170 | F13: 170 | H13: 3 | I13: =O13*L13+M13 -> 5 | J13: Нет | L13: =IF(E13>0,F13/E13,0) -> 1 | M13: =IF(J13=$J$1,0.5,0) -> 0 | O13: =E13/Информационный!$Y$6 -> 5
A14: 3 | B14: Художественное отделение | D14: ДХШИ №4 | E14: 170 | F14: 170 | H14: 4 | I14: 5 | J14: Нет | L14: 1 | M14: 0 | O14: =E14/Информационный!$Y$6 -> 5
A15: 4 | B15: Художественное отделение | D15: ДХШИ №4 | E15: 170 | F15: 170 | H15: 5 | I15: 5 | J15: Нет | L15: 1 | M15: 0 | O15: =E15/Информационный!$Y$6 -> 5
A16: 5 | B16: Художественное отделение | D16: ДХШИ №4 | E16: 170 | F16: 170 | H16: 6 | I16: 5 | J16: Нет | L16: 1 | M16: 0 | O16: =E16/Информационный!$Y$6 -> 5
A17: 6 | B17: Художественное отделение | D17: ДХШИ №4 | E17: 170 | F17: 170 | H17: 7 | I17: 5 | J17: Нет | L17: 1 | M17: 0 | O17: =E17/Информационный!$Y$6 -> 5
A18: 7 | B18: Компьютерна графика | D18: ДХШИ №4 | E18: 102 | F18: 102 | H18: 8 | I18: 3.5 | J18: Да | L18: 1 | M18: 0.5 | O18: =E18/Информационный!$Y$6 -> 3
A19: 8 | B19: Компьютерна графика | D19: ДХШИ №4 | E19: 102 | F19: 102 | H19: 9 | I19: 3.5 | J19: Да | L19: 1 | M19: 0.5 | O19: =E19/Информационный!$Y$6 -> 3
A20: 9 | I20: 0 | L20: 0 | M20: 0 | O20: =E20/Информационный!$Y$6 -> 0
A21: 10 | I21: 0 | L21: 0 | M21: 0 | O21: =E21/Информационный!$Y$6 -> 0
A22: 11 | I22: 0 | L22: 0 | M22: 0 | O22: =E22/Информационный!$Y$6 -> 0
A23: 12 | I23: 0 | L23: 0 | M23: 0 | O23: =E23/Информационный!$Y$6 -> 0
A24: 13 | I24: 0 | L24: 0 | M24: 0 | O24: =E24/Информационный!$Y$6 -> 0
A25: 14 | I25: 0 | L25: 0 | M25: 0 | O25: =E25/Информационный!$Y$6 -> 0
A26: 15 | I26: 0 | L26: 0 | M26: 0 | O26: =E26/Информационный!$Y$6 -> 0
A27: 16 | I27: 0 | L27: 0 | M27: 0 | O27: =E27/Информационный!$Y$6 -> 0
A28: 17 | I28: 0 | L28: 0 | M28: 0 | O28: =E28/Информационный!$Y$6 -> 0
A29: 18 | I29: 0 | L29: 0 | M29: 0 | O29: =E29/Информационный!$Y$6 -> 0
A30: 19 | I30: 0 | L30: 0 | M30: 0 | O30: =E30/Информационный!$Y$6 -> 0
A31: 20 | I31: 0 | L31: 0 | M31: 0 | O31: =E31/Информационный!$Y$6 -> 0
A32: 21 | I32: 0 | L32: 0 | M32: 0 | O32: =E32/Информационный!$Y$6 -> 0
A33: 22 | I33: 0 | L33: 0 | M33: 0 | O33: =E33/Информационный!$Y$6 -> 0
A34: 23 | I34: 0 | L34: 0 | M34: 0 | O34: =E34/Информационный!$Y$6 -> 0
A35: 24 | I35: 0 | L35: 0 | M35: 0 | O35: =E35/Информационный!$Y$6 -> 0
A36: 25 | I36: 0 | L36: 0 | M36: 0 | O36: =E36/Информационный!$Y$6 -> 0
A37: 26 | I37: 0 | L37: 0 | M37: 0 | O37: =E37/Информационный!$Y$6 -> 0
A38: 27 | I38: 0 | L38: 0 | M38: 0 | O38: =E38/Информационный!$Y$6 -> 0
A39: 28 | I39: 0 | L39: 0 | M39: 0 | O39: =E39/Информационный!$Y$6 -> 0
A40: 29 | I40: 0 | L40: 0 | M40: 0 | O40: =E40/Информационный!$Y$6 -> 0
A41: 30 | I41: 0 | L41: 0 | M41: 0 | O41: =E41/Информационный!$Y$6 -> 0
A42: 31 | I42: 0 | L42: 0 | M42: 0 | O42: =E42/Информационный!$Y$6 -> 0
A43: 32 | I43: 0 | L43: 0 | M43: 0 | O43: =E43/Информационный!$Y$6 -> 0
A44: 33 | I44: 0 | L44: 0 | M44: 0 | O44: =E44/Информационный!$Y$6 -> 0
A45: 34 | I45: 0 | L45: 0 | M45: 0 | O45: =E45/Информационный!$Y$6 -> 0
A46: 35 | I46: 0 | L46: 0 | M46: 0 | O46: =E46/Информационный!$Y$6 -> 0
A47: 36 | I47: 0 | L47: 0 | M47: 0 | O47: =E47/Информационный!$Y$6 -> 0
A48: 37 | I48: 0 | L48: 0 | M48: 0 | O48: =E48/Информационный!$Y$6 -> 0
A49: 38 | I49: 0 | L49: 0 | M49: 0 | O49: =E49/Информационный!$Y$6 -> 0
A50: 39 | I50: 0 | L50: 0 | M50: 0 | O50: =E50/Информационный!$Y$6 -> 0
A51: 40 | I51: 0 | L51: 0 | M51: 0 | O51: =E51/Информационный!$Y$6 -> 0
A52: 41 | I52: 0 | L52: 0 | M52: 0 | O52: =E52/Информационный!$Y$6 -> 0
A53: 42 | I53: 0 | L53: 0 | M53: 0 | O53: =E53/Информационный!$Y$6 -> 0
A54: 43 | I54: 0 | L54: 0 | M54: 0 | O54: =E54/Информационный!$Y$6 -> 0
A55: 44 | I55: 0 | L55: 0 | M55: 0 | N55: =IF(G55=$I$5,1,IF(G55=$I$4,0.8,IF(G55=$I$3,0.6,IF(G55=$I$2,0.4,IF(G55=$I$1,0.2,0))))) -> 1 | O55: =E55/Информационный!$Y$6 -> 0
A56: 45 | I56: 0 | L56: 0 | M56: 0 | N56: =IF(G56=$I$5,1,IF(G56=$I$4,0.8,IF(G56=$I$3,0.6,IF(G56=$I$2,0.4,IF(G56=$I$1,0.2,0))))) -> 1 | O56: =E56/Информационный!$Y$6 -> 0
A57: 46 | I57: 0 | L57: 0 | M57: 0 | N57: =IF(G57=$I$5,1,IF(G57=$I$4,0.8,IF(G57=$I$3,0.6,IF(G57=$I$2,0.4,IF(G57=$I$1,0.2,0))))) -> 1 | O57: =E57/Информационный!$Y$6 -> 0
A58: 47 | I58: 0 | L58: 0 | M58: 0 | O58: =E58/Информационный!$Y$6 -> 0
A59: 48 | I59: 0 | L59: 0 | M59: 0 | N59: =IF(G59=$I$5,1,IF(G59=$I$4,0.8,IF(G59=$I$3,0.6,IF(G59=$I$2,0.4,IF(G59=$I$1,0.2,0))))) -> 1 | O59: =E59/Информационный!$Y$6 -> 0
A60: 49 | I60: 0 | L60: 0 | M60: 0 | N60: =IF(G60=$I$5,1,IF(G60=$I$4,0.8,IF(G60=$I$3,0.6,IF(G60=$I$2,0.4,IF(G60=$I$1,0.2,0))))) -> 1 | O60: =E60/Информационный!$Y$6 -> 0
A61: 50 | I61: 0 | L61: 0 | M61: 0 | N61: =IF(G61=$I$5,1,IF(G61=$I$4,0.8,IF(G61=$I$3,0.6,IF(G61=$I$2,0.4,IF(G61=$I$1,0.2,0))))) -> 1 | O61: =E61/Информационный!$Y$6 -> 0
H62: =NOW() -> 2019-08-24T15:19:23.810
E63: ='Информация о школе'!$A$22 -> Классный руководитель
E64: /_________________/
E65: ='Информация о школе'!$D$22 -> Главаля Ирина Геннадьевна
A66: ИНФОРМАЦИЯ ОБ ОКОНЧАНИИ УЧРЕЖДЕНИЯ ДОПОЛНИТЕЛЬНОГО ОБРАЗОВАНИЯ
A67: №п\п | B67: Специальность по дилому (квалификация) | D67: Название учреждения доп.образования | E67: № диплома (свидетельства) | G67: Год окончания | H67: Номер в приложении | I67: класс | J67: Балл
A70: 1 | B70: Архитектор | D70: ДХШИ№4 | E70: № БА01234 | G70: 2014 | H70: =IF(D70<>0,"14.1",0) -> 14.1 | I70: 7 | J70: =COUNTIF(E70,"*")*5 -> 5
A71: 2 | B71: Компьютерна графика | D71: ДХШИ№4 | E71: № АВ 1214 | G71: 2016 | H71: =IF(D71<>0,"14.2",0) -> 14.2 | I71: 9 | J71: =COUNTIF(E71,"*")*5 -> 5
A72: 3 | H72: =IF(D72<>0,"14.3",0) -> 0 | J72: =COUNTIF(E72,"*")*5 -> 0
A73: 4 | H73: =IF(D73<>0,"14.4",0) -> 0 | J73: =COUNTIF(E73,"*")*5 -> 0
A74: 5 | H74: =IF(D74<>0,"14.5",0) -> 0 | J74: =COUNTIF(E74,"*")*5 -> 0
A78: Электронное портфолио учащегося
D96: 1 класс | E96: =SUMIF($H$12:$H$61,"1",$O$12:$O$61) -> 0 | F96: =IF( E96>=Информационный!$W$19,I96+1, IF( E96=Информационный!$W$18,I96+0.8,IF( E96=Информационный!$W$17,I96+0.6, IF( E96=Информационный!$W$16,I96+0.4, IF( E96=Информационный!$W$15,I96+0.2,0))))) -> 0 | H96: 1 класс | I96: =SUMIF($H$12:$H$61,"1",$I$12:$I$61) -> 0
D97: 2 класс | E97: =SUMIF($H$12:$H$61,"2",$O$12:$O$61) -> 5 | F97: =IF( E97>=Информационный!$W$19,I97+1, IF( E97=Информационный!$W$18,I97+0.8,IF( E97=Информационный!$W$17,I97+0.6, IF( E97=Информационный!$W$16,I97+0.4, IF( E97=Информационный!$W$15,I97+0.2,0))))) -> 6 | H97: 2 класс | I97: =SUMIF($H$12:$H$61,"2",$I$12:$I$61) -> 5
D98: 3 класс | E98: =SUMIF($H$12:$H$61,"3",$O$12:$O$61) -> 5 | F98: =IF( E98>=Информационный!$W$19,I98+1, IF( E98=Информационный!$W$18,I98+0.8,IF( E98=Информационный!$W$17,I98+0.6, IF( E98=Информационный!$W$16,I98+0.4, IF( E98=Информационный!$W$15,I98+0.2,0))))) -> 6 | H98: 3 класс | I98: =SUMIF($H$12:$H$61,"3",$I$12:$I$61) -> 5
D99: 4 класс | E99: =SUMIF($H$12:$H$61,"4",$O$12:$O$61) -> 5 | F99: =IF( E99>=Информационный!$W$19,I99+1, IF( E99=Информационный!$W$18,I99+0.8,IF( E99=Информационный!$W$17,I99+0.6, IF( E99=Информационный!$W$16,I99+0.4, IF( E99=Информационный!$W$15,I99+0.2,0))))) -> 6 | H99: 4 класс | I99: =SUMIF($H$12:$H$61,"4",$I$12:$I$61) -> 5
D100: 5 класс | E100: =SUMIF($H$12:$H$61,"5",$O$12:$O$61) -> 5 | F100: =IF( E100>=Информационный!$W$19,I100+1, IF( E100=Информационный!$W$18,I100+0.8,IF( E100=Информационный!$W$17,I100+0.6, IF( E100=Информационный!$W$16,I100+0.4, IF( E100=Информационный!$W$15,I100+0.2,0))))) -> 6 | H100: 5 класс | I100: =SUMIF($H$12:$H$61,"5",$I$12:$I$61) -> 5
D101: 6 класс | E101: =SUMIF($H$12:$H$61,"6",$O$12:$O$61) -> 5 | F101: =IF( E101>=Информационный!$W$19,I101+1, IF( E101=Информационный!$W$18,I101+0.8,IF( E101=Информационный!$W$17,I101+0.6, IF( E101=Информационный!$W$16,I101+0.4, IF( E101=Информационный!$W$15,I101+0.2,0))))) -> 6 | H101: 6 класс | I101: =SUMIF($H$12:$H$61,"6",$I$12:$I$61) -> 5
D102: 7 класс | E102: =SUMIF($H$12:$H$61,"7",$O$12:$O$61) -> 5 | F102: =IF( E102>=Информационный!$W$19,I102+1, IF( E102=Информационный!$W$18,I102+0.8,IF( E102=Информационный!$W$17,I102+0.6, IF( E102=Информационный!$W$16,I102+0.4, IF( E102=Информационный!$W$15,I102+0.2,0))))) -> 6 | H102: 7 класс | I102: =SUMIF($H$12:$H$61,"7",$I$12:$I$61) -> 5
D103: 8 класс | E103: =SUMIF($H$12:$H$61,"8",$O$12:$O$61) -> 3 | F103: =IF( E103>=Информационный!$W$19,I103+1, IF( E103=Информационный!$W$18,I103+0.8,IF( E103=Информационный!$W$17,I103+0.6, IF( E103=Информационный!$W$16,I103+0.4, IF( E103=Информационный!$W$15,I103+0.2,0))))) -> 4.1 | H103: 8 класс | I103: =SUMIF($H$12:$H$61,"8",$I$12:$I$61) -> 3.5
D104: 9 класс | E104: =SUMIF($H$12:$H$61,"9",$O$12:$O$61) -> 3 | F104: =IF( E104>=Информационный!$W$19,I104+1, IF( E104=Информационный!$W$18,I104+0.8,IF( E104=Информационный!$W$17,I104+0.6, IF( E104=Информационный!$W$16,I104+0.4, IF( E104=Информационный!$W$15,I104+0.2,0))))) -> 4.1 | H104: 9 класс | I104: =SUMIF($H$12:$H$61,"9",$I$12:$I$61) -> 3.5
D105: 10 класс | E105: =SUMIF($H$12:$H$61,"10",$O$12:$O$61) -> 0 | F105: =IF( E105>=Информационный!$W$19,I105+1, IF( E105=Информационный!$W$18,I105+0.8,IF( E105=Информационный!$W$17,I105+0.6, IF( E105=Информационный!$W$16,I105+0.4, IF( E105=Информационный!$W$15,I105+0.2,0))))) -> 0 | H105: 10 класс | I105: =SUMIF($H$12:$H$61,"10",$I$12:$I$61) -> 0
D106: 11 класс | E106: =SUMIF($H$12:$H$61,"11",$O$12:$O$61) -> 0 | F106: =IF( E106>=Информационный!$W$19,I106+1, IF( E106=Информационный!$W$18,I106+0.8,IF( E106=Информационный!$W$17,I106+0.6, IF( E106=Информационный!$W$16,I106+0.4, IF( E106=Информационный!$W$15,I106+0.2,0))))) -> 0 | H106: 11 класс | I106: =SUMIF($H$12:$H$61,"11",$I$12:$I$61) -> 0
H108: 1 класс | I108: =SUMIF($I$70:$I$74,"1",$J$70:$K$74) -> 0
H109: 2 класс | I109: =SUMIF($I$70:$I$74,"2",$J$70:$K$74) -> 0
H110: 3 класс | I110: =SUMIF($I$70:$I$74,"3",$J$70:$K$74) -> 0
H111: 4 класс | I111: =SUMIF($I$70:$I$74,"4",$J$70:$K$74) -> 0
H112: 5 класс | I112: =SUMIF($I$70:$I$74,"5",$J$70:$K$74) -> 0
H113: 6 класс | I113: =SUMIF($I$70:$I$74,"6",$J$70:$K$74) -> 0
H114: 7 класс | I114: =SUMIF($I$70:$I$74,"7",$J$70:$K$74) -> 5
H115: 8 класс | I115: =SUMIF($I$70:$I$74,"8",$J$70:$K$74) -> 0
H116: 9 класс | I116: =SUMIF($I$70:$I$74,"9",$J$70:$K$74) -> 5
H117: 10 класс | I117: =SUMIF($I$70:$I$74,"10",$J$70:$K$74) -> 0
H118: 11 класс | I118: =SUMIF($I$70:$I$74,"11",$J$70:$K$74) -> 0
A137: Электронное портфолио учащегося

Sheet Резюме
A1: кк | C1: I | D1: школьный | F1: благодарность
C2: II | D2: муниципальный | F2: грамота
C3: III | D3: региональный | F3: медаль
C4: IV | D4: федеральный | F4: значок
C5: участие | D5: международный | F5: благодарственное письмо
C6: лауреат | F6: почётная грамота
A8: РЕЗЮМЕ
A9: ='Личные данные'!A9 -> ЭЛЕКТРОННОЕ | C9: ='Личные данные'!C9 -> ПОРТФОЛИО | E9: =титульный!D57 -> Антонова Светлана Степановна | I9: =титульный!$D$58 -> МБОУ "СОШ№11"
A10: №п\п | B10: Раздел резюме | E10: Описание
A14: 1 | B14: Цель | E14: Опишите здесь цель наисания вашего резюме
A16: Личные данные
A17: 2 | B17: Дата рождения | E17: 2000-07-31
A18: 3 | B18: Возраст | E18: =ROUNDDOWN(C31,0) -> 19 | J18: лет
A19: 4 | B19: Место рождения | E19: г. Ангарск
A20: 5 | B20: Адрес | E20: Ангарск, 271-4-36
A21: 6 | B21: Телефон | E21: 61-70-40
A22: 7 | B22: Электронный адрес | E22: valeria00@mail.ru
A23: 8 | B23: Образование | E23: указать название учебного заведения и годы обучения
A24: Опыт работы
A25: 9 | B25: Опыт работы | E25: Опишите ваши текущие обязанности и достижения, испульзуя глаголы действия. Включите определенные достижени, которые достигнуты благодяря вашему вкладу
A28: 10 | B28: Владение иностранным языком | E28: Опишите уровень владения языком (понимаю, читаю, говорю)
A29: 11 | B29: Укажите дополнительное образование которым вы обладаете | E29: Учусь в художественной школе
A30: 12 | B30: Увлечения и интересы | E30: Укажите только те интересы и увлечения, которыми вы занимаетесь постоянно
B31: =DAYS360(E17,I31) -> 6864 | C31: =B31/360 -> 19.06666667 | I31: =NOW() -> 2019-08-24T15:19:23.810
E32: ='Личные данные'!D10 -> Антонова Светлана Степановна

Sheet Отзывы
A1: кк | C1: I | D1: школьный | F1: благодарность
C2: II | D2: муниципальный | F2: грамота
C3: III | D3: региональный | F3: медаль
C4: IV | D4: федеральный | F4: значок
C5: участие | D5: международный | F5: благодарственное письмо
C6: лауреат | F6: почётная грамота
A8: ОТЗЫВЫ
A9: ='Личные данные'!A9:B9 -> ЭЛЕКТРОННОЕ | C9: ='Личные данные'!C9 -> ПОРТФОЛИО | E9: =титульный!D57 -> Антонова Светлана Степановна | G9: =титульный!D58 -> МБОУ "СОШ№11"
A11: ОТЗЫВ №1
A13: Отзыв составил(а)
D14: Подпись | G14: Расшифровка подпсиси
A15: ОТЗЫВ №2
A17: Отзыв составил(а)
D18: Подпись | G18: Расшифровка подпсиси

Sheet Характеристика
A1: 3 | C1: I | D1: школьный | F1: благодарность
C2: II | D2: муниципальный | F2: грамота
C3: III | D3: региональный | F3: медаль
C4: IV | D4: федеральный | F4: значок
C5: участие | D5: международный | F5: благодарственное письмо
C6: лауреат | F6: почётная грамота
A8: ХАРАКТЕРИСТИКА классного руководителя
A9: ='Личные данные'!A9:B9 -> ЭЛЕКТРОННОЕ | C9: ='Личные данные'!C9 -> ПОРТФОЛИО | E9: =титульный!D57 -> Антонова Светлана Степановна | G9: =титульный!D58 -> МБОУ "СОШ№11"
A11: ХАРАКТЕРИСТИКА
A12: Дата рождения 1. Учебная деятельность 1.1. Успеваемость 1.2. Общее умственное разитие (кругозор, начитанность) 1.3. Развитие речи (запса слов) 1.4. Способность к учению 1.5. Старается ли в учебной работе 2. Труд 2.1. Увлекается ли трудом 2.2. Заинтересован ли в общественной значимости своего труда 2.3. Развитость трудовых навыков 2.4. Организованность и дисциплинированность в труде 3. Специальные навыки и интересы 3.1. Интересы 3.2. Что читает
A17: Характеристику составил(а) | G17: ='Информация о школе'!D22 -> Главаля Ирина Геннадьевна
D18: Подпись | G18: Расшифровка подпсиси
H19: =NOW() -> 2019-08-24T15:19:23.810

Sheet Свод
A1: =Информационный!B26 -> Универсальный | J1: биология | O1: зачислении
A2: =Информационный!B27 -> Физико-математический | J2: география | O2: отказе в зачислении
A3: =Информационный!B28 -> Физико-математический | J3: иностранный язык
A4: =Информационный!B29 -> Физико-химический | J4: информатика
A5: =Информационный!B30 -> Химико-биологический | J5: история
A6: =Информационный!B31 -> Биолого-географический | J6: литература
A7: =Информационный!B32 -> Социально-экономический | J7: обществознание
A8: =Информационный!B33 -> Социально-гуманитарный | J8: физика
A9: =Информационный!B34 -> Филологический | J9: химия
A10: =Информационный!B35 -> Информационно-технологический
A11: =Информационный!B36 -> Агротехнологический
A12: =Информационный!B37 -> Индустриально-технологический
A13: =Информационный!B38 -> Художественно-эстетический
A14: =Информационный!B39 -> Педагогический (психолого-педагогический)
A15: =Информационный!B40 -> Математический
A16: СВОДНАЯ ВЕДОМОСТЬ ОБРАЗОВАТЕЛЬНОГО РЕЙТИНГА
A18: ='Личные данные'!$A$9 -> ЭЛЕКТРОННОЕ | D18: ='Личные данные'!$C$9 -> ПОРТФОЛИО | G18: =титульный!$D$57 -> Антонова Светлана Степановна | N18: =титульный!$D$58 -> МБОУ "СОШ№11"
A20: Фамилия Имя Отчество | G20: ='Личные данные'!D10 -> Антонова Светлана Степановна
A21: Класс | G21: ='Личные данные'!D17 -> 9"А"
A22: Профиль | G22: Математический
A24: 1. Образовательный рейтинг по годам обучения
A25: КРИТЕРИЙ | C25: средний балл учебного года | D25: Предметные конкурсы | E25: Публикации | F25: Благодарности и награды | G25: Социальные практики | H25: Роль в самоуправлении | I25: Творческие конкурсы | J25: Исследовательская деятельность | K25: Предметное доп образование | L25: Дополнительное образование | M25: За получение диплома о допобразовании | N25: ИТОГО | P25: Уровень образования | R25: Отсутствие пропусков без уважительной причины
A36: класс
A37: 1 | D37: =Предметные!$I138 -> 5.6 | E37: =Публикации!$I55 -> 1.5 | F37: =Награды!I85 -> 1 | G37: =СОЦпрактики!I58 -> 4 | H37: =Самоуправление!I42 -> 0 | I37: =Творческие!I138 -> 2.6 | J37: =НИД!I40 -> 5.6 | K37: ='Курсы по выбору'!F96 -> 0 | L37: =Допобразование!F96 -> 0 | M37: =Допобразование!I108 -> 0 | N37: =SUMIF(C37:M37,">0") -> 20.3 | P37: Уровень НОО | R37: =IF('Учебная деятельность'!$C$39='Учебная деятельность'!$C$40,Информационный!$F$20,0) -> 0
A38: 2 | C38: ='Учебная деятельность'!D41 -> 5 | D38: =Предметные!$I139 -> 19.2 | E38: =Публикации!$I56 -> 0 | F38: =Награды!I86 -> 0 | G38: =СОЦпрактики!I59 -> 0 | H38: =Самоуправление!I43 -> 5.2 | I38: =Творческие!I139 -> 0 | J38: =НИД!I41 -> 0 | K38: ='Курсы по выбору'!F97 -> 0 | L38: =Допобразование!F97 -> 6 | M38: =Допобразование!I109 -> 0 | N38: 35.4 | R38: =IF('Учебная деятельность'!$D$39='Учебная деятельность'!$D$40,Информационный!$F$20,0) -> 0
A39: 3 | C39: ='Учебная деятельность'!E41 -> 5 | D39: =Предметные!$I140 -> 15 | E39: =Публикации!$I57 -> 0 | F39: =Награды!I87 -> 1 | G39: =СОЦпрактики!I60 -> 0 | H39: =Самоуправление!I44 -> 5.2 | I39: =Творческие!I140 -> 7 | J39: =НИД!I42 -> 0 | K39: ='Курсы по выбору'!F98 -> 0 | L39: =Допобразование!F98 -> 6 | M39: =Допобразование!I110 -> 0 | N39: 39.2 | R39: =IF('Учебная деятельность'!$E$39='Учебная деятельность'!$E$40,Информационный!$F$20,0) -> 10
A40: 4 | C40: ='Учебная деятельность'!F41 -> 5 | D40: =Предметные!$I141 -> 38.4 | E40: =Публикации!$I58 -> 0 | F40: =Награды!I88 -> 1 | G40: =СОЦпрактики!I61 -> 0 | H40: =Самоуправление!I45 -> 5.4 | I40: =Творческие!I141 -> 8.4 | J40: =НИД!I43 -> 3.9 | K40: ='Курсы по выбору'!F99 -> 0 | L40: =Допобразование!F99 -> 6 | M40: =Допобразование!I111 -> 0 | N40: 68.1 | R40: =IF('Учебная деятельность'!$F$39='Учебная деятельность'!$F$40,Информационный!$F$20,0) -> 10
A41: 5 | C41: ='Учебная деятельность'!G41 -> 5 | D41: =Предметные!$I142 -> 33.2 | E41: =Публикации!$I59 -> 0 | F41: =Награды!I89 -> 1 | G41: =СОЦпрактики!I62 -> 0 | H41: =Самоуправление!I46 -> 5.4 | I41: =Творческие!I142 -> 8.6 | J41: =НИД!I44 -> 0 | K41: ='Курсы по выбору'!F100 -> 0 | L41: =Допобразование!F100 -> 6 | M41: =Допобразование!I112 -> 0 | N41: 59.2 | P41: Уровень ООО | R41: =IF('Учебная деятельность'!$G$39='Учебная деятельность'!$G$40,Информационный!$F$20,0) -> 10
A42: 6 | C42: ='Учебная деятельность'!H41 -> 5 | D42: =Предметные!$I143 -> 46.4 | E42: =Публикации!$I60 -> 0 | F42: =Награды!I90 -> 5 | G42: =СОЦпрактики!I63 -> 0 | H42: =Самоуправление!I47 -> 3.2 | I42: =Творческие!I143 -> 5.6 | J42: =НИД!I45 -> 0 | K42: ='Курсы по выбору'!F101 -> 3.164705882 | L42: =Допобразование!F101 -> 6 | M42: =Допобразование!I113 -> 0 | N42: 74.36470588 | R42: =IF('Учебная деятельность'!$H$39='Учебная деятельность'!$H$40,Информационный!$F$20,0) -> 10
A43: 7 | C43: ='Учебная деятельность'!I41 -> 5 | D43: =Предметные!$I144 -> 80.5 | E43: =Публикации!$I61 -> 0 | F43: =Награды!I91 -> 1 | G43: =СОЦпрактики!I64 -> 0 | H43: =Самоуправление!I48 -> 3.2 | I43: =Творческие!I144 -> 3 | J43: =НИД!I46 -> 0 | K43: ='Курсы по выбору'!F102 -> 1.935294118 | L43: =Допобразование!F102 -> 6 | M43: =Допобразование!I114 -> 5 | N43: 105.6352941 | R43: =IF('Учебная деятельность'!$I$39='Учебная деятельность'!$I$40,Информационный!$F$20,0) -> 0
A44: 8 | C44: ='Учебная деятельность'!J41 -> 5 | D44: =Предметные!$I145 -> 0 | E44: =Публикации!$I62 -> 0 | F44: =Награды!I92 -> 0 | G44: =СОЦпрактики!I65 -> 0 | H44: =Самоуправление!I49 -> 0 | I44: =Творческие!I145 -> 0 | J44: =НИД!I47 -> 0 | K44: ='Курсы по выбору'!F103 -> 0.2 | L44: =Допобразование!F103 -> 4.1 | M44: =Допобразование!I115 -> 0 | N44: 9.3 | R44: =IF('Учебная деятельность'!$J$39='Учебная деятельность'!$J$40,Информационный!$F$20,0) -> 10
A45: 9 | C45: ='Учебная деятельность'!K41 -> 5 | D45: =Предметные!$I146 -> 48.6 | E45: =Публикации!$I63 -> 0 | F45: =Награды!I93 -> 0 | G45: =СОЦпрактики!I66 -> 0 | H45: =Самоуправление!I50 -> 3.4 | I45: =Творческие!I146 -> 5.6 | J45: =НИД!I48 -> 0 | K45: ='Курсы по выбору'!F104 -> 11 | L45: =Допобразование!F104 -> 4.1 | M45: =Допобразование!I116 -> 5 | N45: 82.7 | R45: =IF('Учебная деятельность'!$K$39='Учебная деятельность'!$K$40,Информационный!$F$20,0) -> 10
A46: 10 | C46: ='Учебная деятельность'!L41 ->  | D46: =Предметные!$I147 -> 0 | E46: =Публикации!$I64 -> 0 | F46: =Награды!I94 -> 0 | G46: =СОЦпрактики!I67 -> 0 | H46: =Самоуправление!I51 -> 0 | I46: =Творческие!I147 -> 0 | J46: =НИД!I49 -> 0 | K46: ='Курсы по выбору'!F105 -> 0 | L46: =Допобразование!F105 -> 0 | M46: =Допобразование!I117 -> 0 | N46: 0 | P46: Уровень СОО | R46: =IF('Учебная деятельность'!$L$39='Учебная деятельность'!$L$40,Информационный!$F$20,0) -> 10
A47: 11 | C47: ='Учебная деятельность'!M41 ->  | D47: =Предметные!$I148 -> 0 | E47: =Публикации!$I65 -> 0 | F47: =Награды!I95 -> 0 | G47: =СОЦпрактики!I68 -> 0 | H47: =Самоуправление!I52 -> 0 | I47: =Творческие!I148 -> 0 | J47: =НИД!I50 -> 0 | K47: ='Курсы по выбору'!F106 -> 0 | L47: =Допобразование!F106 -> 0 | M47: =Допобразование!I118 -> 0 | N47: 0 | R47: =IF('Учебная деятельность'!$M$39='Учебная деятельность'!$M$40,Информационный!$F$20,0) -> 10
A48: ИТОГО | C48: =SUMIF(C37:C47,">0") -> 40 | D48: =SUM(D37:D47) -> 286.9 | E48: =SUM(E37:E47) -> 1.5 | F48: 10 | G48: 4 | H48: 31 | I48: 40.8 | J48: 9.5 | K48: 16.3 | L48: 44.2 | M48: 10 | N48: 494.2
A50: 2. Образовательный рейтинг по результатм ГИА
A51: Предмет | D51: Уровень НОО | G51: Уровень ООО | J51: Уровень СОО | M51: баллов
A53: Математика | G53: 32 | M53: =IF(A53<>0,"баллов",0) -> баллов
A54: Русский язык | G54: 28 | M54: =IF(A54<>0,"баллов",0) -> баллов
A55: По выбору
A56: информатика | G56: 28 | M56: баллов
A57: физика | G57: 40 | M57: баллов
M58: 0
M59: 0
M60: 0
M61: 0
A66: 3. Средний балл аттестата
A67: Средний балл аттестата | D67: Уровень ООО | G67: Уровень СОО | J67: баллов
D69: 5 | J69: =IF(A67<>0,"баллов",0) -> баллов
A72: 4. Общий бал за портфолио
A74: ОБЩИЙ БАЛЛ ЗА ПОРТФОЛИО | D74: Уровень НОО | G74: Уровень ООО | J74: Уровень СОО | M74: баллов | P74: ИТОГО БАЛЛОВ
D76: =N37+N38+N39+N40+D53+D54+R37+R38+R39+R40 -> 183 | G76: =N41+N42+N43+N44+N45+G53+G54+G56+G57+G58+G59+G60+G61+G62+G63+G69+R41+R42++R43+R44+R45 -> 499.2 | J76: =N46+N47+J53+J54+J56+J57+J58+J59+J60+J61+J62+J63+G69+R46+R47 -> 20 | M76: =IF(A74<>0,"баллов",0) -> баллов | P76: =D76+G76+J76 -> 702.2
A79: Подпись ученика | L79: =$G$20 -> Антонова Светлана Степановна
A81: Подпись классного руководителя | L81: ='Информация о школе'!$D$22 -> Главаля Ирина Геннадьевна
A83: Дата составления документа | G83: =NOW() -> 2019-08-24T15:19:23.810
A86: Итоговый рейтинг по классу | H86: 1 | J86: данные занесены в итоговый протокол рассмотре
J87: ния образовательных портфолио протокол
J88: № | N88: от
A90: На основании итогового рейтинга принято решение о | L90: зачислении
A91: оформленного приказом директора | H91: ='Информация о школе'!D9 -> МБОУ "СОШ№11" | M91: № | P91: от
A92: в | B92: 9 | D92: класс | F92: =G22 -> Математический | Q92: профиль
A97: Заместитель директора по УВР | L97: ='Информация о школе'!$D$21 -> Лобанов Алексей Александрович
A110: =титульный!A67 -> Автор: заместитель директора по УВР Лобанов Алексей Александрович
A111: =титульный!A68 -> МБОУ "СОШ№11"
A112: =титульный!A69 -> г. Ангарск
A113: =титульный!C70 -> aalobanov@mail.ru
A114: =титульный!C71 -> www.aalobanov.ucoz.ru
A115: Электронное портфолио учащегося

Sheet Приложения
A1: ПРИЛОЖЕНИЕ
A2: ='Личные данные'!$A$9 -> ЭЛЕКТРОННОЕ | F2: ='Личные данные'!$C$9 -> ПОРТФОЛИО | K2: =титульный!$D$57 -> Антонова Светлана Степановна | Q2: =титульный!$D$58 -> МБОУ "СОШ№11"
A3: Раздел приложения
A6: =НИД!A6 -> ИССЛЕДОВАТЕЛЬСКАЯ (ПРОЕКТНАЯ) ДЕЯТЕЛЬНОСТЬ | C6: =Предметные!A6 -> УЧАСТИЕ в ПРЕДМЕТНЫХ конкурсах, играх, олимпиадах | E6: =Публикации!A6 -> ПУБЛИКАЦИИ | G6: =Награды!A6 -> БЛАГОДАРНОСТИ, ГРАМОТЫ, НАГРАДЫ | I6: =СОЦпрактики!A6 -> СОЦИАЛЬНЫЕ ПРАКТИКИ | K6: =Самоуправление!A6 -> УЧЕНИЧЕСКОЕ САМОУПРАВЛЕНИЕ | M6: =Творческие!A6 -> УЧАСТИЕ в ТВОРЧЕСКИХ конкурсах | O6: =Допобразование!A66 -> ИНФОРМАЦИЯ ОБ ОКОНЧАНИИ УЧРЕЖДЕНИЯ ДОПОЛНИТЕЛЬНОГО ОБРАЗОВАНИЯ
A12: =НИД!J12 -> 6. | B12: =НИД!K12 -> 1 | C12: =Предметные!J12 -> 7. | D12: =Предметные!K12 -> 1 | E12: =Публикации!J12 -> 8. | F12: =Публикации!K12 -> 1 | G12: =Награды!J12 -> 9. | H12: =Награды!K12 -> 1 | I12: =СОЦпрактики!J12 -> 10. | J12: =СОЦпрактики!K12 -> 1 | K12: =Самоуправление!J12 -> 11. | L12: =Самоуправление!K12 -> 1 | M12: =Творческие!J12 -> 12. | N12: =Творческие!K12 -> 1 | O12: =Допобразование!H70 -> 14.1
A13: =НИД!J13 -> 6. | B13: =НИД!K13 -> 2 | C13: =Предметные!J13 -> 7. | D13: =Предметные!K13 -> 2 | E13: =Публикации!J13 -> 8. | F13: =Публикации!K13 ->  | G13: =Награды!J13 -> 9. | H13: =Награды!K13 -> 2 | I13: =СОЦпрактики!J13 -> 10. | J13: =СОЦпрактики!K13 ->  | K13: =Самоуправление!J13 -> 11. | L13: =Самоуправление!K13 -> 2 | M13: =Творческие!J13 -> 12. | N13: =Творческие!K13 -> 2 | O13: =Допобразование!H71 -> 14.2
A14: =НИД!J14 -> 6. | B14: =НИД!K14 ->  | C14: =Предметные!J14 -> 7. | D14: =Предметные!K14 -> 3 | E14: =Публикации!J14 -> 8. | F14: =Публикации!K14 ->  | G14: =Награды!J14 -> 9. | H14: =Награды!K14 -> 3 | I14: =СОЦпрактики!J14 -> 10. | J14: =СОЦпрактики!K14 ->  | K14: =Самоуправление!J14 -> 11. | L14: =Самоуправление!K14 -> 3 | M14: =Творческие!J14 -> 12. | N14: =Творческие!K14 -> 3 | O14: =Допобразование!H72 -> 0
A15: =НИД!J15 -> 6. | B15: =НИД!K15 ->  | C15: =Предметные!J15 -> 7. | D15: =Предметные!K15 -> 4 | E15: =Публикации!J15 -> 8. | F15: =Публикации!K15 ->  | G15: =Награды!J15 -> 9. | H15: =Награды!K15 -> 4 | I15: =СОЦпрактики!J15 -> 10. | J15: =СОЦпрактики!K15 ->  | K15: =Самоуправление!J15 -> 11. | L15: =Самоуправление!K15 -> 4 | M15: =Творческие!J15 -> 12. | N15: =Творческие!K15 -> 4 | O15: =Допобразование!H73 -> 0
A16: =НИД!J16 -> 6. | B16: =НИД!K16 ->  | C16: =Предметные!J16 -> 7. | D16: =Предметные!K16 -> 5 | E16: =Публикации!J16 -> 8. | F16: =Публикации!K16 ->  | G16: =Награды!J16 -> 9. | H16: =Награды!K16 -> 5 | I16: =СОЦпрактики!J16 -> 10. | J16: =СОЦпрактики!K16 ->  | K16: =Самоуправление!J16 -> 11. | L16: =Самоуправление!K16 -> 5 | M16: =Творческие!J16 -> 12. | N16: =Творческие!K16 -> 5 | O16: =Допобразование!H74 -> 0
A17: =НИД!J17 -> 6. | B17: =НИД!K17 ->  | C17: =Предметные!J17 -> 7. | D17: =Предметные!K17 -> 6 | E17: =Публикации!J17 -> 8. | F17: =Публикации!K17 ->  | G17: =Награды!J17 -> 9. | H17: =Награды!K17 -> 6 | I17: =СОЦпрактики!J17 -> 10. | J17: =СОЦпрактики!K17 ->  | K17: =Самоуправление!J17 -> 11. | L17: =Самоуправление!K17 -> 6 | M17: =Творческие!J17 -> 12. | N17: =Творческие!K17 -> 6
A18: =НИД!J18 -> 6. | B18: =НИД!K18 ->  | C18: =Предметные!J18 -> 7. | D18: =Предметные!K18 -> 7 | E18: =Публикации!J18 -> 8. | F18: =Публикации!K18 ->  | G18: =Награды!J18 -> 9. | H18: =Награды!K18 -> 0 | I18: =СОЦпрактики!J18 -> 10. | J18: =СОЦпрактики!K18 ->  | K18: =Самоуправление!J18 -> 11. | L18: =Самоуправление!K18 -> 7 | M18: =Творческие!J18 -> 12. | N18: =Творческие!K18 -> 7
A19: =НИД!J19 -> 6. | B19: =НИД!K19 ->  | C19: =Предметные!J19 -> 7. | D19: =Предметные!K19 -> 8 | E19: =Публикации!J19 -> 8. | F19: =Публикации!K19 ->  | G19: =Награды!J19 -> 9. | H19: =Награды!K19 -> 0 | I19: =СОЦпрактики!J19 -> 10. | J19: =СОЦпрактики!K19 ->  | K19: =Самоуправление!J19 -> 11. | L19: =Самоуправление!K19 -> 8 | M19: =Творческие!J19 -> 12. | N19: =Творческие!K19 -> 8
A20: =НИД!J20 -> 6. | B20: =НИД!K20 ->  | C20: =Предметные!J20 -> 7. | D20: =Предметные!K20 -> 9 | E20: =Публикации!J20 -> 8. | F20: =Публикации!K20 ->  | G20: =Награды!J20 -> 9. | H20: =Награды!K20 -> 0 | I20: =СОЦпрактики!J20 -> 10. | J20: =СОЦпрактики!K20 ->  | K20: =Самоуправление!J20 -> 11. | L20: =Самоуправление!K20 ->  | M20: =Творческие!J20 -> 12. | N20: =Творческие!K20 -> 9
A21: =НИД!J21 -> 6. | B21: =НИД!K21 ->  | C21: =Предметные!J21 -> 7. | D21: =Предметные!K21 -> 10 | E21: =Публикации!J21 -> 8. | F21: =Публикации!K21 ->  | G21: =Награды!J21 -> 9. | H21: =Награды!K21 -> 0 | I21: =СОЦпрактики!J21 -> 10. | J21: =СОЦпрактики!K21 ->  | K21: =Самоуправление!J21 -> 11. | L21: =Самоуправление!K21 ->  | M21: =Творческие!J21 -> 12. | N21: =Творческие!K21 -> 
A22: =НИД!J22 -> 6. | B22: =НИД!K22 ->  | C22: =Предметные!J22 -> 7. | D22: =Предметные!K22 -> 11 | E22: =Публикации!J22 -> 8. | F22: =Публикации!K22 ->  | G22: =Награды!J22 -> 9. | H22: =Награды!K22 -> 0 | I22: =СОЦпрактики!J22 -> 10. | J22: =СОЦпрактики!K22 ->  | K22: =Самоуправление!J22 -> 11. | L22: =Самоуправление!K22 ->  | M22: =Творческие!J22 -> 12. | N22: =Творческие!K22 -> 
A23: =НИД!J23 -> 6. | B23: =НИД!K23 ->  | C23: =Предметные!J23 -> 7. | D23: =Предметные!K23 -> 12 | E23: =Публикации!J23 -> 8. | F23: =Публикации!K23 ->  | G23: =Награды!J23 -> 9. | H23: =Награды!K23 -> 0 | I23: =СОЦпрактики!J23 -> 10. | J23: =СОЦпрактики!K23 ->  | M23: =Творческие!J23 -> 12. | N23: =Творческие!K23 -> 
A24: =НИД!J24 -> 6. | B24: =НИД!K24 ->  | C24: =Предметные!J24 -> 7. | D24: =Предметные!K24 -> 13 | E24: =Публикации!J24 -> 8. | F24: =Публикации!K24 ->  | G24: =Награды!J24 -> 9. | H24: =Награды!K24 -> 0 | I24: =СОЦпрактики!J24 -> 10. | J24: =СОЦпрактики!K24 ->  | M24: =Творческие!J24 -> 12. | N24: =Творческие!K24 -> 
A25: =НИД!J25 -> 6. | B25: =НИД!K25 ->  | C25: =Предметные!J25 -> 7. | D25: =Предметные!K25 -> 14 | E25: =Публикации!J25 -> 8. | F25: =Публикации!K25 ->  | G25: =Награды!J25 -> 9. | H25: =Награды!K25 -> 0 | I25: =СОЦпрактики!J25 -> 10. | J25: =СОЦпрактики!K25 ->  | M25: =Творческие!J25 -> 12. | N25: =Творческие!K25 -> 
A26: =НИД!J26 -> 6. | B26: =НИД!K26 ->  | C26: =Предметные!J26 -> 7. | D26: =Предметные!K26 -> 15 | E26: =Публикации!J26 -> 8. | F26: =Публикации!K26 ->  | G26: =Награды!J26 -> 9. | H26: =Награды!K26 -> 0 | I26: =СОЦпрактики!J26 -> 10. | J26: =СОЦпрактики!K26 ->  | M26: =Творческие!J26 -> 12. | N26: =Творческие!K26 -> 
A27: =НИД!J27 -> 6. | B27: =НИД!K27 ->  | C27: =Предметные!J27 -> 7. | D27: =Предметные!K27 -> 16 | E27: =Публикации!J27 -> 8. | F27: =Публикации!K27 ->  | G27: =Награды!J27 -> 9. | H27: =Награды!K27 -> 0 | I27: =СОЦпрактики!J27 -> 10. | J27: =СОЦпрактики!K27 ->  | M27: =Творческие!J27 -> 12. | N27: =Творческие!K27 -> 
C28: =Предметные!J28 -> 7. | D28: =Предметные!K28 -> 17 | E28: =Публикации!J28 -> 8. | F28: =Публикации!K28 ->  | G28: =Награды!J28 -> 9. | H28: =Награды!K28 -> 0 | I28: =СОЦпрактики!J28 -> 10. | J28: =СОЦпрактики!K28 ->  | M28: =Творческие!J28 -> 12. | N28: =Творческие!K28 -> 
C29: =Предметные!J29 -> 7. | D29: =Предметные!K29 -> 18 | E29: =Публикации!J29 -> 8. | F29: =Публикации!K29 ->  | G29: =Награды!J29 -> 9. | H29: =Награды!K29 -> 0 | I29: =СОЦпрактики!J29 -> 10. | J29: =СОЦпрактики!K29 ->  | M29: =Творческие!J29 -> 12. | N29: =Творческие!K29 -> 
C30: =Предметные!J30 -> 7. | D30: =Предметные!K30 -> 19 | E30: =Публикации!J30 -> 8. | F30: =Публикации!K30 ->  | G30: =Награды!J30 -> 9. | H30: =Награды!K30 -> 0 | I30: =СОЦпрактики!J30 -> 10. | J30: =СОЦпрактики!K30 ->  | M30: =Творческие!J30 -> 12. | N30: =Творческие!K30 -> 
C31: =Предметные!J31 -> 7. | D31: =Предметные!K31 -> 20 | E31: =Публикации!J31 -> 8. | F31: =Публикации!K31 ->  | G31: =Награды!J31 -> 9. | H31: =Награды!K31 -> 0 | I31: =СОЦпрактики!J31 -> 10. | J31: =СОЦпрактики!K31 ->  | M31: =Творческие!J31 -> 12. | N31: =Творческие!K31 -> 
C32: =Предметные!J32 -> 7. | D32: =Предметные!K32 -> 21 | G32: =Награды!J32 -> 9. | H32: =Награды!K32 -> 0 | M32: =Творческие!J32 -> 12. | N32: =Творческие!K32 -> 
C33: =Предметные!J33 -> 7. | D33: =Предметные!K33 -> 22 | G33: =Награды!J33 -> 9. | H33: =Награды!K33 -> 0 | M33: =Творческие!J33 -> 12. | N33: =Творческие!K33 -> 
C34: =Предметные!J34 -> 7. | D34: =Предметные!K34 -> 23 | G34: =Награды!J34 -> 9. | H34: =Награды!K34 -> 0 | M34: =Творческие!J34 -> 12. | N34: =Творческие!K34 -> 
C35: =Предметные!J35 -> 7. | D35: =Предметные!K35 -> 24 | G35: =Награды!J35 -> 9. | H35: =Награды!K35 -> 0 | M35: =Творческие!J35 -> 12. | N35: =Творческие!K35 -> 
C36: =Предметные!J36 -> 7. | D36: =Предметные!K36 -> 25 | G36: =Награды!J36 -> 9. | H36: =Награды!K36 ->  | M36: =Творческие!J36 -> 12. | N36: =Творческие!K36 -> 
C37: =Предметные!J37 -> 7. | D37: =Предметные!K37 -> 26 | G37: =Награды!J37 -> 9. | H37: =Награды!K37 ->  | M37: =Творческие!J37 -> 12. | N37: =Творческие!K37 -> 
C38: =Предметные!J38 -> 7. | D38: =Предметные!K38 -> 27 | G38: =Награды!J38 -> 9. | H38: =Награды!K38 ->  | M38: =Творческие!J38 -> 12. | N38: =Творческие!K38 -> 
C39: =Предметные!J39 -> 7. | D39: =Предметные!K39 -> 28 | G39: =Награды!J39 -> 9. | H39: =Награды!K39 ->  | M39: =Творческие!J39 -> 12. | N39: =Творческие!K39 -> 
C40: =Предметные!J40 -> 7. | D40: =Предметные!K40 -> 29 | G40: =Награды!J40 -> 9. | H40: =Награды!K40 ->  | M40: =Творческие!J40 -> 12. | N40: =Творческие!K40 -> 
C41: =Предметные!J41 -> 7. | D41: =Предметные!K41 -> 30 | G41: =Награды!J41 -> 9. | H41: =Награды!K41 -> 0 | M41: =Творческие!J41 -> 12. | N41: =Творческие!K41 -> 
C42: =Предметные!J42 -> 7. | D42: =Предметные!K42 -> 31 | G42: =Награды!J42 -> 9. | H42: =Награды!K42 -> 0 | M42: =Творческие!J42 -> 12. | N42: =Творческие!K42 -> 
C43: =Предметные!J43 -> 7. | D43: =Предметные!K43 -> 32 | G43: =Награды!J43 -> 9. | H43: =Награды!K43 -> 0 | M43: =Творческие!J43 -> 12. | N43: =Творческие!K43 -> 
C44: =Предметные!J44 -> 7. | D44: =Предметные!K44 -> 33 | G44: =Награды!J44 -> 9. | H44: =Награды!K44 -> 0 | M44: =Творческие!J44 -> 12. | N44: =Творческие!K44 -> 
C45: =Предметные!J45 -> 7. | D45: =Предметные!K45 -> 34 | G45: =Награды!J45 -> 9. | H45: =Награды!K45 -> 0 | M45: =Творческие!J45 -> 12. | N45: =Творческие!K45 -> 
C46: =Предметные!J46 -> 7. | D46: =Предметные!K46 -> 35 | G46: =Награды!J46 -> 9. | H46: =Награды!K46 -> 0 | M46: =Творческие!J46 -> 12. | N46: =Творческие!K46 ->  | O46: РАСПЕЧАТАЙТЕ И НАКЛЕЙТЕ НА КОПИЮ ДОКУМЕНТА
C47: =Предметные!J47 -> 7. | D47: =Предметные!K47 -> 36 | G47: =Награды!J47 -> 9. | H47: =Награды!K47 -> 0 | M47: =Творческие!J47 -> 12. | N47: =Творческие!K47 -> 
C48: =Предметные!J48 -> 7. | D48: =Предметные!K48 -> 37 | G48: =Награды!J48 -> 9. | H48: =Награды!K48 -> 0 | M48: =Творческие!J48 -> 12. | N48: =Творческие!K48 -> 
C49: =Предметные!J49 -> 7. | D49: =Предметные!K49 -> 38 | G49: =Награды!J49 -> 9. | H49: =Награды!K49 -> 0 | M49: =Творческие!J49 -> 12. | N49: =Творческие!K49 -> 
C50: =Предметные!J50 -> 7. | D50: =Предметные!K50 -> 39 | G50: =Награды!J50 -> 9. | H50: =Награды!K50 -> 0 | M50: =Творческие!J50 -> 12. | N50: =Творческие!K50 -> 
C51: =Предметные!J51 -> 7. | D51: =Предметные!K51 -> 40 | G51: =Награды!J51 -> 9. | H51: =Награды!K51 -> 0 | M51: =Творческие!J51 -> 12. | N51: =Творческие!K51 -> 
C52: =Предметные!J52 -> 7. | D52: =Предметные!K52 -> 41 | G52: =Награды!J52 -> 9. | H52: =Награды!K52 -> 0 | M52: =Творческие!J52 -> 12. | N52: =Творческие!K52 -> 
C53: =Предметные!J53 -> 7. | D53: =Предметные!K53 -> 42 | G53: =Награды!J53 -> 9. | H53: =Награды!K53 ->  | M53: =Творческие!J53 -> 12. | N53: =Творческие!K53 -> 
C54: =Предметные!J54 -> 7. | D54: =Предметные!K54 -> 43 | G54: =Награды!J54 -> 9. | H54: =Награды!K54 ->  | M54: =Творческие!J54 -> 12. | N54: =Творческие!K54 -> 
C55: =Предметные!J55 -> 7. | D55: =Предметные!K55 -> 44 | G55: =Награды!J55 -> 9. | H55: =Награды!K55 ->  | M55: =Творческие!J55 -> 12. | N55: =Творческие!K55 -> 
C56: =Предметные!J56 -> 7. | D56: =Предметные!K56 -> 45 | G56: =Награды!J56 -> 9. | H56: =Награды!K56 ->  | M56: =Творческие!J56 -> 12. | N56: =Творческие!K56 -> 
C57: =Предметные!J57 -> 7. | D57: =Предметные!K57 -> 46 | G57: =Награды!J57 -> 9. | H57: =Награды!K57 ->  | M57: =Творческие!J57 -> 12. | N57: =Творческие!K57 -> 
C58: =Предметные!J58 -> 7. | D58: =Предметные!K58 -> 47 | G58: =Награды!J58 -> 9. | H58: =Награды!K58 ->  | M58: =Творческие!J58 -> 12. | N58: =Творческие!K58 -> 
C59: =Предметные!J59 -> 7. | D59: =Предметные!K59 -> 48 | G59: =Награды!J59 -> 9. | H59: =Награды!K59 ->  | M59: =Творческие!J59 -> 12. | N59: =Творческие!K59 -> 
C60: =Предметные!J60 -> 7. | D60: =Предметные!K60 -> 49 | G60: =Награды!J60 -> 9. | H60: =Награды!K60 ->  | M60: =Творческие!J60 -> 12. | N60: =Творческие!K60 -> 
C61: =Предметные!J61 -> 7. | D61: =Предметные!K61 -> 50 | G61: =Награды!J61 -> 9. | H61: =Награды!K61 ->  | M61: =Творческие!J61 -> 12. | N61: =Творческие!K61 -> 
C62: =Предметные!J62 -> 7. | D62: =Предметные!K62 -> 51 | M62: =Творческие!J62 -> 12. | N62: =Творческие!K62 -> 
C63: =Предметные!J63 -> 7. | D63: =Предметные!K63 -> 52 | M63: =Творческие!J63 -> 12. | N63: =Творческие!K63 -> 
C64: =Предметные!J64 -> 7. | D64: =Предметные!K64 -> 53 | M64: =Творческие!J64 -> 12. | N64: =Творческие!K64 -> 
C65: =Предметные!J65 -> 7. | D65: =Предметные!K65 -> 54 | M65: =Творческие!J65 -> 12. | N65: =Творческие!K65 -> 
C66: =Предметные!J66 -> 7. | D66: =Предметные!K66 -> 55 | M66: =Творческие!J66 -> 12. | N66: =Творческие!K66 -> 
C67: =Предметные!J67 -> 7. | D67: =Предметные!K67 -> 56 | M67: =Творческие!J67 -> 12. | N67: =Творческие!K67 -> 
C68: =Предметные!J68 -> 7. | D68: =Предметные!K68 -> 57 | M68: =Творческие!J68 -> 12. | N68: =Творческие!K68 -> 
C69: =Предметные!J69 -> 7. | D69: =Предметные!K69 -> 58 | M69: =Творческие!J69 -> 12. | N69: =Творческие!K69 -> 
C70: =Предметные!J70 -> 7. | D70: =Предметные!K70 -> 59 | M70: =Творческие!J70 -> 12. | N70: =Творческие!K70 -> 
C71: =Предметные!J71 -> 7. | D71: =Предметные!K71 -> 60 | M71: =Творческие!J71 -> 12. | N71: =Творческие!K71 -> 
C72: =Предметные!J72 -> 7. | D72: =Предметные!K72 -> 61 | M72: =Творческие!J72 -> 12. | N72: =Творческие!K72 -> 
C73: =Предметные!J73 -> 7. | D73: =Предметные!K73 -> 62 | M73: =Творческие!J73 -> 12. | N73: =Творческие!K73 -> 
C74: =Предметные!J74 -> 7. | D74: =Предметные!K74 -> 63 | M74: =Творческие!J74 -> 12. | N74: =Творческие!K74 -> 
C75: =Предметные!J75 -> 7. | D75: =Предметные!K75 -> 64 | M75: =Творческие!J75 -> 12. | N75: =Творческие!K75 -> 
C76: =Предметные!J76 -> 7. | D76: =Предметные!K76 -> 65 | M76: =Творческие!J76 -> 12. | N76: =Творческие!K76 -> 
C77: =Предметные!J77 -> 7. | D77: =Предметные!K77 -> 66 | M77: =Творческие!J77 -> 12. | N77: =Творческие!K77 -> 
C78: =Предметные!J78 -> 7. | D78: =Предметные!K78 ->  | M78: =Творческие!J78 -> 12. | N78: =Творческие!K78 -> 
C79: =Предметные!J79 -> 7. | D79: =Предметные!K79 ->  | M79: =Творческие!J79 -> 12. | N79: =Творческие!K79 -> 
C80: =Предметные!J80 -> 7. | D80: =Предметные!K80 ->  | M80: =Творческие!J80 -> 12. | N80: =Творческие!K80 -> 
C81: =Предметные!J81 -> 7. | D81: =Предметные!K81 ->  | M81: =Творческие!J81 -> 12. | N81: =Творческие!K81 -> 
C82: =Предметные!J82 -> 7. | D82: =Предметные!K82 ->  | M82: =Творческие!J82 -> 12. | N82: =Творческие!K82 -> 
C83: =Предметные!J83 -> 7. | D83: =Предметные!K83 ->  | M83: =Творческие!J83 -> 12. | N83: =Творческие!K83 -> 
C84: =Предметные!J84 -> 7. | D84: =Предметные!K84 ->  | M84: =Творческие!J84 -> 12. | N84: =Творческие!K84 -> 
C85: =Предметные!J85 -> 7. | D85: =Предметные!K85 ->  | M85: =Творческие!J85 -> 12. | N85: =Творческие!K85 -> 
C86: =Предметные!J86 -> 7. | D86: =Предметные!K86 ->  | M86: =Творческие!J86 -> 12. | N86: =Творческие!K86 -> 
C87: =Предметные!J87 -> 7. | D87: =Предметные!K87 ->  | M87: =Творческие!J87 -> 12. | N87: =Творческие!K87 -> 
C88: =Предметные!J88 -> 7. | D88: =Предметные!K88 ->  | M88: =Творческие!J88 -> 12. | N88: =Творческие!K88 -> 
C89: =Предметные!J89 -> 7. | D89: =Предметные!K89 ->  | M89: =Творческие!J89 -> 12. | N89: =Творческие!K89 -> 
C90: =Предметные!J90 -> 7. | D90: =Предметные!K90 ->  | M90: =Творческие!J90 -> 12. | N90: =Творческие!K90 -> 
C91: =Предметные!J91 -> 7. | D91: =Предметные!K91 ->  | M91: =Творческие!J91 -> 12. | N91: =Творческие!K91 -> 
C92: =Предметные!J92 -> 7. | D92: =Предметные!K92 ->  | M92: =Творческие!J92 -> 12. | N92: =Творческие!K92 -> 
C93: =Предметные!J93 -> 7. | D93: =Предметные!K93 ->  | M93: =Творческие!J93 -> 12. | N93: =Творческие!K93 -> 
C94: =Предметные!J94 -> 7. | D94: =Предметные!K94 ->  | M94: =Творческие!J94 -> 12. | N94: =Творческие!K94 -> 
C95: =Предметные!J95 -> 7. | D95: =Предметные!K95 ->  | M95: =Творческие!J95 -> 12. | N95: =Творческие!K95 -> 
C96: =Предметные!J96 -> 7. | D96: =Предметные!K96 ->  | M96: =Творческие!J96 -> 12. | N96: =Творческие!K96 -> 
C97: =Предметные!J97 -> 7. | D97: =Предметные!K97 ->  | M97: =Творческие!J97 -> 12. | N97: =Творческие!K97 -> 
C98: =Предметные!J98 -> 7. | D98: =Предметные!K98 ->  | M98: =Творческие!J98 -> 12. | N98: =Творческие!K98 -> 
C99: =Предметные!J99 -> 7. | D99: =Предметные!K99 ->  | M99: =Творческие!J99 -> 12. | N99: =Творческие!K99 -> 
C100: =Предметные!J100 -> 7. | D100: =Предметные!K100 ->  | M100: =Творческие!J100 -> 12. | N100: =Творческие!K100 -> 
C101: =Предметные!J101 -> 7. | D101: =Предметные!K101 ->  | M101: =Творческие!J101 -> 12. | N101: =Творческие!K101 -> 
C102: =Предметные!J102 -> 7. | D102: =Предметные!K102 ->  | M102: =Творческие!J102 -> 12. | N102: =Творческие!K102 -> 
C103: =Предметные!J103 -> 7. | D103: =Предметные!K103 ->  | M103: =Творческие!J103 -> 12. | N103: =Творческие!K103 -> 
C104: =Предметные!J104 -> 7. | D104: =Предметные!K104 ->  | M104: =Творческие!J104 -> 12. | N104: =Творческие!K104 -> 
C105: =Предметные!J105 -> 7. | D105: =Предметные!K105 ->  | M105: =Творческие!J105 -> 12. | N105: =Творческие!K105 -> 
C106: =Предметные!J106 -> 7. | D106: =Предметные!K106 ->  | M106: =Творческие!J106 -> 12. | N106: =Творческие!K106 -> 
C107: =Предметные!J107 -> 7. | D107: =Предметные!K107 ->  | M107: =Творческие!J107 -> 12. | N107: =Творческие!K107 -> 
C108: =Предметные!J108 -> 7. | D108: =Предметные!K108 ->  | M108: =Творческие!J108 -> 12. | N108: =Творческие!K108 -> 
C109: =Предметные!J109 -> 7. | D109: =Предметные!K109 ->  | M109: =Творческие!J109 -> 12. | N109: =Творческие!K109 -> 
C110: =Предметные!J110 -> 7. | D110: =Предметные!K110 ->  | M110: =Творческие!J110 -> 12. | N110: =Творческие!K110 -> 
C111: =Предметные!J111 -> 7. | D111: =Предметные!K111 ->  | M111: =Творческие!J111 -> 12. | N111: =Творческие!K111 -> 
A156: Электронное портфолио учащегося

Sheet Копии_д-тов
A1: 6. | B1: =Приложения!B12 -> 1 | C1: 6. | D1: =B1+1 -> 2 | E1: 6. | F1: =D1+1 -> 3 | G1: 7. | H1: =Приложения!D12 -> 1 | I1: =G1 -> 7. | J1: =H1+1 -> 2 | K1: =G1 -> 7. | L1: =J1+1 -> 3 | M1: 8. | N1: =Приложения!F12 -> 1 | O1: =M1 -> 8. | P1: =N1+1 -> 2 | Q1: =M1 -> 8. | R1: =P1+1 -> 3 | S1: 9. | T1: =Приложения!H12 -> 1 | U1: =S1 -> 9. | V1: =T1+1 -> 2 | W1: =U1 -> 9. | X1: =V1+1 -> 3 | Y1: 10. | Z1: =Приложения!J12 -> 1 | AA1: =Y1 -> 10. | AB1: =Z1+1 -> 2 | AC1: =Y1 -> 10. | AD1: =AB1+1 -> 3 | AE1: 11. | AF1: =Приложения!L12 -> 1 | AG1: =AE1 -> 11. | AH1: =AF1+1 -> 2 | AI1: =AE1 -> 11. | AJ1: =AH1+1 -> 3 | AK1: 12. | AL1: =Приложения!N12 -> 1 | AM1: =AK1 -> 12. | AN1: =AL1+1 -> 2 | AO1: =AK1 -> 12. | AP1: =AN1+1 -> 3 | AQ1: =Приложения!O12 -> 14.1 | AS1: =Приложения!O13 -> 14.2 | AU1: =Приложения!O14 -> 0
A3: 6. | B3: =F1+1 -> 4 | C3: 6. | D3: =B3+1 -> 5 | E3: 6. | F3: =D3+1 -> 6 | G3: =G1 -> 7. | H3: =L1+1 -> 4 | I3: =I1 -> 7. | J3: =H3+1 -> 5 | K3: =K1 -> 7. | L3: =J3+1 -> 6 | M3: =M1 -> 8. | N3: =R1+1 -> 4 | O3: =O1 -> 8. | P3: =N3+1 -> 5 | Q3: =Q1 -> 8. | R3: =P3+1 -> 6 | S3: =S1 -> 9. | T3: =X1+1 -> 4 | U3: =U1 -> 9. | V3: =T3+1 -> 5 | W3: =W1 -> 9. | X3: =V3+1 -> 6 | Y3: =Y1 -> 10. | Z3: =AD1+1 -> 4 | AA3: =AA1 -> 10. | AB3: =Z3+1 -> 5 | AC3: =AC1 -> 10. | AD3: =AB3+1 -> 6 | AE3: =AE1 -> 11. | AF3: =AJ1+1 -> 4 | AG3: =AG1 -> 11. | AH3: =AF3+1 -> 5 | AI3: =AI1 -> 11. | AJ3: =AH3+1 -> 6 | AK3: =AK1 -> 12. | AL3: =AP1+1 -> 4 | AM3: =AM1 -> 12. | AN3: =AL3+1 -> 5 | AO3: =AO1 -> 12. | AP3: =AN3+1 -> 6 | AQ3: =Приложения!O15 -> 0 | AS3: =Приложения!O16 -> 0
A5: 6. | B5: =F3+1 -> 7 | C5: 6. | D5: =B5+1 -> 8 | E5: 6. | F5: =D5+1 -> 9 | G5: =G3 -> 7. | H5: =L3+1 -> 7 | I5: =I3 -> 7. | J5: =H5+1 -> 8 | K5: =K3 -> 7. | L5: =J5+1 -> 9 | M5: =M3 -> 8. | N5: =R3+1 -> 7 | O5: =O3 -> 8. | P5: =N5+1 -> 8 | Q5: =Q3 -> 8. | R5: =P5+1 -> 9 | S5: =S3 -> 9. | T5: =X3+1 -> 7 | U5: =U3 -> 9. | V5: =T5+1 -> 8 | W5: =W3 -> 9. | X5: =V5+1 -> 9 | Y5: =Y3 -> 10. | Z5: =AD3+1 -> 7 | AA5: =AA3 -> 10. | AB5: =Z5+1 -> 8 | AC5: =AC3 -> 10. | AD5: =AB5+1 -> 9 | AE5: =AE3 -> 11. | AF5: =AJ3+1 -> 7 | AG5: =AG3 -> 11. | AH5: =AF5+1 -> 8 | AI5: =AI3 -> 11. | AJ5: =AH5+1 -> 9 | AK5: =AK3 -> 12. | AL5: =AP3+1 -> 7 | AM5: =AM3 -> 12. | AN5: =AL5+1 -> 8 | AO5: =AO3 -> 12. | AP5: =AN5+1 -> 9
A7: 6. | B7: =F5+1 -> 10 | C7: 6. | D7: =B7+1 -> 11 | E7: 6. | F7: =D7+1 -> 12 | G7: =G5 -> 7. | H7: =L5+1 -> 10 | I7: =I5 -> 7. | J7: =H7+1 -> 11 | K7: =K5 -> 7. | L7: =J7+1 -> 12 | M7: =M5 -> 8. | N7: =R5+1 -> 10 | O7: =O5 -> 8. | P7: =N7+1 -> 11 | Q7: =Q5 -> 8. | R7: =P7+1 -> 12 | S7: =S5 -> 9. | T7: =X5+1 -> 10 | U7: =U5 -> 9. | V7: =T7+1 -> 11 | W7: =W5 -> 9. | X7: =V7+1 -> 12 | Y7: =Y5 -> 10. | Z7: =AD5+1 -> 10 | AA7: =AA5 -> 10. | AB7: =Z7+1 -> 11 | AC7: =AC5 -> 10. | AD7: =AB7+1 -> 12 | AE7: =AE5 -> 11. | AF7: =AJ5+1 -> 10 | AG7: =AG5 -> 11. | AH7: =AF7+1 -> 11 | AI7: =AI5 -> 11. | AJ7: =AH7+1 -> 12 | AK7: =AK5 -> 12. | AL7: =AP5+1 -> 10 | AM7: =AM5 -> 12. | AN7: =AL7+1 -> 11 | AO7: =AO5 -> 12. | AP7: =AN7+1 -> 12
A9: 6. | B9: =F7+1 -> 13 | C9: 6. | D9: =B9+1 -> 14 | E9: 6. | F9: =D9+1 -> 15 | G9: =G7 -> 7. | H9: =L7+1 -> 13 | I9: =I7 -> 7. | J9: =H9+1 -> 14 | K9: =K7 -> 7. | L9: =J9+1 -> 15 | M9: =M7 -> 8. | N9: =R7+1 -> 13 | O9: =O7 -> 8. | P9: =N9+1 -> 14 | Q9: =Q7 -> 8. | R9: =P9+1 -> 15 | S9: =S7 -> 9. | T9: =X7+1 -> 13 | U9: =U7 -> 9. | V9: =T9+1 -> 14 | W9: =W7 -> 9. | X9: =V9+1 -> 15 | Y9: =Y7 -> 10. | Z9: =AD7+1 -> 13 | AA9: =AA7 -> 10. | AB9: =Z9+1 -> 14 | AC9: =AC7 -> 10. | AD9: =AB9+1 -> 15 | AK9: =AK7 -> 12. | AL9: =AP7+1 -> 13 | AM9: =AM7 -> 12. | AN9: =AL9+1 -> 14 | AO9: =AO7 -> 12. | AP9: =AN9+1 -> 15
A11: 6. | B11: =F9+1 -> 16 | C11: 6. | D11: =B11+1 -> 17 | E11: 6. | F11: =D11+1 -> 18 | G11: =G9 -> 7. | H11: =L9+1 -> 16 | I11: =I9 -> 7. | J11: =H11+1 -> 17 | K11: =K9 -> 7. | L11: =J11+1 -> 18 | M11: =M9 -> 8. | N11: =R9+1 -> 16 | O11: =O9 -> 8. | P11: =N11+1 -> 17 | Q11: =Q9 -> 8. | R11: =P11+1 -> 18 | S11: =S9 -> 9. | T11: =X9+1 -> 16 | U11: =U9 -> 9. | V11: =T11+1 -> 17 | W11: =W9 -> 9. | X11: =V11+1 -> 18 | Y11: =Y9 -> 10. | Z11: =AD9+1 -> 16 | AA11: =AA9 -> 10. | AB11: =Z11+1 -> 17 | AC11: =AC9 -> 10. | AD11: =AB11+1 -> 18 | AK11: =AK9 -> 12. | AL11: =AP9+1 -> 16 | AM11: =AM9 -> 12. | AN11: =AL11+1 -> 17 | AO11: =AO9 -> 12. | AP11: =AN11+1 -> 18
G13: =G11 -> 7. | H13: =L11+1 -> 19 | I13: =I11 -> 7. | J13: =H13+1 -> 20 | K13: =K11 -> 7. | L13: =J13+1 -> 21 | M13: =M11 -> 8. | N13: =R11+1 -> 19 | O13: =O11 -> 8. | P13: =N13+1 -> 20 | Q13: =Q11 -> 8. | R13: =P13+1 -> 21 | S13: =S11 -> 9. | T13: =X11+1 -> 19 | U13: =U11 -> 9. | V13: =T13+1 -> 20 | W13: =W11 -> 9. | X13: =V13+1 -> 21 | Y13: =Y11 -> 10. | Z13: =AD11+1 -> 19 | AA13: =AA11 -> 10. | AB13: =Z13+1 -> 20 | AC13: =AC11 -> 10. | AD13: =AB13+1 -> 21 | AK13: =AK11 -> 12. | AL13: =AP11+1 -> 19 | AM13: =AM11 -> 12. | AN13: =AL13+1 -> 20 | AO13: =AO11 -> 12. | AP13: =AN13+1 -> 21
G15: =G13 -> 7. | H15: =L13+1 -> 22 | I15: =I13 -> 7. | J15: =H15+1 -> 23 | K15: =K13 -> 7. | L15: =J15+1 -> 24 | S15: =S13 -> 9. | T15: =X13+1 -> 22 | U15: =U13 -> 9. | V15: =T15+1 -> 23 | W15: =W13 -> 9. | X15: =V15+1 -> 24 | AK15: =AK13 -> 12. | AL15: =AP13+1 -> 22 | AM15: =AM13 -> 12. | AN15: =AL15+1 -> 23 | AO15: =AO13 -> 12. | AP15: =AN15+1 -> 24
G17: 7 | H17: =L15+1 -> 25 | I17: 7 | J17: =H17+1 -> 26 | K17: 7 | L17: =J17+1 -> 27 | S17: =S15 -> 9. | T17: =X15+1 -> 25 | U17: =U15 -> 9. | V17: =T17+1 -> 26 | W17: =W15 -> 9. | X17: =V17+1 -> 27 | AK17: =AK15 -> 12. | AL17: =AP15+1 -> 25 | AM17: =AM15 -> 12. | AN17: =AL17+1 -> 26 | AO17: =AO15 -> 12. | AP17: =AN17+1 -> 27
G19: =G17 -> 7 | H19: =L17+1 -> 28 | I19: =I17 -> 7 | J19: =H19+1 -> 29 | K19: =K17 -> 7 | L19: =J19+1 -> 30 | S19: =S17 -> 9. | T19: =X17+1 -> 28 | U19: =U17 -> 9. | V19: =T19+1 -> 29 | W19: =W17 -> 9. | X19: =V19+1 -> 30 | AK19: =AK17 -> 12. | AL19: =AP17+1 -> 28 | AM19: =AM17 -> 12. | AN19: =AL19+1 -> 29 | AO19: =AO17 -> 12. | AP19: =AN19+1 -> 30
G21: =G19 -> 7 | H21: =L19+1 -> 31 | I21: =I19 -> 7 | J21: =H21+1 -> 32 | K21: =K19 -> 7 | L21: =J21+1 -> 33 | S21: =S19 -> 9. | T21: =X19+1 -> 31 | U21: =U19 -> 9. | V21: =T21+1 -> 32 | W21: =W19 -> 9. | X21: =V21+1 -> 33 | AK21: =AK19 -> 12. | AL21: =AP19+1 -> 31 | AM21: =AM19 -> 12. | AN21: =AL21+1 -> 32 | AO21: =AO19 -> 12. | AP21: =AN21+1 -> 33
G23: =G21 -> 7 | H23: =L21+1 -> 34 | I23: =I21 -> 7 | J23: =H23+1 -> 35 | K23: =K21 -> 7 | L23: =J23+1 -> 36 | S23: =S21 -> 9. | T23: =X21+1 -> 34 | U23: =U21 -> 9. | V23: =T23+1 -> 35 | W23: =W21 -> 9. | X23: =V23+1 -> 36 | AK23: =AK21 -> 12. | AL23: =AP21+1 -> 34 | AM23: =AM21 -> 12. | AN23: =AL23+1 -> 35 | AO23: =AO21 -> 12. | AP23: =AN23+1 -> 36
G25: =G23 -> 7 | H25: =L23+1 -> 37 | I25: =I23 -> 7 | J25: =H25+1 -> 38 | K25: =K23 -> 7 | L25: =J25+1 -> 39 | S25: =S23 -> 9. | T25: =X23+1 -> 37 | U25: =U23 -> 9. | V25: =T25+1 -> 38 | W25: =W23 -> 9. | X25: =V25+1 -> 39 | AK25: =AK23 -> 12. | AL25: =AP23+1 -> 37 | AM25: =AM23 -> 12. | AN25: =AL25+1 -> 38 | AO25: =AO23 -> 12. | AP25: =AN25+1 -> 39
G27: =G25 -> 7 | H27: =L25+1 -> 40 | I27: =I25 -> 7 | J27: =H27+1 -> 41 | K27: =K25 -> 7 | L27: =J27+1 -> 42 | S27: =S25 -> 9. | T27: =X25+1 -> 40 | U27: =U25 -> 9. | V27: =T27+1 -> 41 | W27: =W25 -> 9. | X27: =V27+1 -> 42 | AK27: =AK25 -> 12. | AL27: =AP25+1 -> 40 | AM27: =AM25 -> 12. | AN27: =AL27+1 -> 41 | AO27: =AO25 -> 12. | AP27: =AN27+1 -> 42
G29: =G27 -> 7 | H29: =L27+1 -> 43 | I29: =I27 -> 7 | J29: =H29+1 -> 44 | K29: =K27 -> 7 | L29: =J29+1 -> 45 | S29: =S27 -> 9. | T29: =X27+1 -> 43 | U29: =U27 -> 9. | V29: =T29+1 -> 44 | W29: =W27 -> 9. | X29: =V29+1 -> 45 | AK29: =AK27 -> 12. | AL29: =AP27+1 -> 43 | AM29: =AM27 -> 12. | AN29: =AL29+1 -> 44 | AO29: =AO27 -> 12. | AP29: =AN29+1 -> 45
G31: =G29 -> 7 | H31: =L29+1 -> 46 | I31: =I29 -> 7 | J31: =H31+1 -> 47 | K31: =K29 -> 7 | L31: =J31+1 -> 48 | S31: =S29 -> 9. | T31: =X29+1 -> 46 | U31: =U29 -> 9. | V31: =T31+1 -> 47 | W31: =W29 -> 9. | X31: =V31+1 -> 48 | AK31: =AK29 -> 12. | AL31: =AP29+1 -> 46 | AM31: =AM29 -> 12. | AN31: =AL31+1 -> 47 | AO31: =AO29 -> 12. | AP31: =AN31+1 -> 48
G33: =G31 -> 7 | H33: =L31+1 -> 49 | I33: =I31 -> 7 | J33: =H33+1 -> 50 | K33: =K31 -> 7 | L33: =J33+1 -> 51 | S33: =S31 -> 9. | T33: =X31+1 -> 49 | U33: =U31 -> 9. | V33: =T33+1 -> 50 | W33: =W31 -> 9. | X33: =V33+1 -> 51 | AK33: =AK31 -> 12. | AL33: =AP31+1 -> 49 | AM33: =AM31 -> 12. | AN33: =AL33+1 -> 50 | AO33: =AO31 -> 12. | AP33: =AN33+1 -> 51
G35: =G33 -> 7 | H35: =L33+1 -> 52 | I35: =I33 -> 7 | J35: =H35+1 -> 53 | K35: =K33 -> 7 | L35: =J35+1 -> 54 | AK35: =AK33 -> 12. | AL35: =AP33+1 -> 52 | AM35: =AM33 -> 12. | AN35: =AL35+1 -> 53 | AO35: =AO33 -> 12. | AP35: =AN35+1 -> 54
G37: =G35 -> 7 | H37: =L35+1 -> 55 | I37: =I35 -> 7 | J37: =H37+1 -> 56 | K37: =K35 -> 7 | L37: =J37+1 -> 57 | AK37: =AK35 -> 12. | AL37: =AP35+1 -> 55 | AM37: =AM35 -> 12. | AN37: =AL37+1 -> 56 | AO37: =AO35 -> 12. | AP37: =AN37+1 -> 57
G39: =G37 -> 7 | H39: =L37+1 -> 58 | I39: =I37 -> 7 | J39: =H39+1 -> 59 | K39: =K37 -> 7 | L39: =J39+1 -> 60 | AK39: =AK37 -> 12. | AL39: =AP37+1 -> 58 | AM39: =AM37 -> 12. | AN39: =AL39+1 -> 59 | AO39: =AO37 -> 12. | AP39: =AN39+1 -> 60
G41: =G39 -> 7 | H41: =L39+1 -> 61 | I41: =I39 -> 7 | J41: =H41+1 -> 62 | K41: =K39 -> 7 | L41: =J41+1 -> 63 | AK41: =AK39 -> 12. | AL41: =AP39+1 -> 61 | AM41: =AM39 -> 12. | AN41: =AL41+1 -> 62 | AO41: =AO39 -> 12. | AP41: =AN41+1 -> 63
G43: 7 | H43: =L41+1 -> 64 | I43: 7 | J43: =H43+1 -> 65 | K43: 7 | L43: =J43+1 -> 66 | AK43: =AK41 -> 12. | AL43: =AP41+1 -> 64 | AM43: =AM41 -> 12. | AN43: =AL43+1 -> 65 | AO43: =AO41 -> 12. | AP43: =AN43+1 -> 66
G45: 7 | H45: =L43+1 -> 67 | I45: 7 | J45: =H45+1 -> 68 | K45: 7 | L45: =J45+1 -> 69 | AK45: =AK43 -> 12. | AL45: =AP43+1 -> 67 | AM45: =AM43 -> 12. | AN45: =AL45+1 -> 68 | AO45: =AO43 -> 12. | AP45: =AN45+1 -> 69
G47: 7 | H47: =L45+1 -> 70 | I47: 7 | J47: =H47+1 -> 71 | K47: 7 | L47: =J47+1 -> 72 | AK47: =AK45 -> 12. | AL47: =AP45+1 -> 70 | AM47: =AM45 -> 12. | AN47: =AL47+1 -> 71 | AO47: =AO45 -> 12. | AP47: =AN47+1 -> 72
G49: 7 | H49: =L47+1 -> 73 | I49: 7 | J49: =H49+1 -> 74 | K49: 7 | L49: =J49+1 -> 75 | AK49: =AK47 -> 12. | AL49: =AP47+1 -> 73 | AM49: =AM47 -> 12. | AN49: =AL49+1 -> 74 | AO49: =AO47 -> 12. | AP49: =AN49+1 -> 75
G51: 7 | H51: =L49+1 -> 76 | I51: 7 | J51: =H51+1 -> 77 | K51: 7 | L51: =J51+1 -> 78 | AK51: =AK49 -> 12. | AL51: =AP49+1 -> 76 | AM51: =AM49 -> 12. | AN51: =AL51+1 -> 77 | AO51: =AO49 -> 12. | AP51: =AN51+1 -> 78
G53: =G51 -> 7 | H53: =L51+1 -> 79 | I53: =I51 -> 7 | J53: =H53+1 -> 80 | K53: =K51 -> 7 | L53: =J53+1 -> 81 | AK53: =AK51 -> 12. | AL53: =AP51+1 -> 79 | AM53: =AM51 -> 12. | AN53: =AL53+1 -> 80 | AO53: =AO51 -> 12. | AP53: =AN53+1 -> 81
G55: =G53 -> 7 | H55: =L53+1 -> 82 | I55: =I53 -> 7 | J55: =H55+1 -> 83 | K55: =K53 -> 7 | L55: =J55+1 -> 84 | AK55: =AK53 -> 12. | AL55: =AP53+1 -> 82 | AM55: =AM53 -> 12. | AN55: =AL55+1 -> 83 | AO55: =AO53 -> 12. | AP55: =AN55+1 -> 84
G57: =G55 -> 7 | H57: =L55+1 -> 85 | I57: =I55 -> 7 | J57: =H57+1 -> 86 | K57: =K55 -> 7 | L57: =J57+1 -> 87 | AK57: =AK55 -> 12. | AL57: =AP55+1 -> 85 | AM57: =AM55 -> 12. | AN57: =AL57+1 -> 86 | AO57: =AO55 -> 12. | AP57: =AN57+1 -> 87
G59: =G57 -> 7 | H59: =L57+1 -> 88 | I59: =I57 -> 7 | J59: =H59+1 -> 89 | K59: =K57 -> 7 | L59: =J59+1 -> 90 | AK59: =AK57 -> 12. | AL59: =AP57+1 -> 88 | AM59: =AM57 -> 12. | AN59: =AL59+1 -> 89 | AO59: =AO57 -> 12. | AP59: =AN59+1 -> 90
G61: =G59 -> 7 | H61: =L59+1 -> 91 | I61: =I59 -> 7 | J61: =H61+1 -> 92 | K61: =K59 -> 7 | L61: =J61+1 -> 93 | AK61: =AK59 -> 12. | AL61: =AP59+1 -> 91 | AM61: =AM59 -> 12. | AN61: =AL61+1 -> 92 | AO61: =AO59 -> 12. | AP61: =AN61+1 -> 93
G63: =G61 -> 7 | H63: =L61+1 -> 94 | I63: =I61 -> 7 | J63: =H63+1 -> 95 | K63: =K61 -> 7 | L63: =J63+1 -> 96 | AK63: =AK61 -> 12. | AL63: =AP61+1 -> 94 | AM63: =AM61 -> 12. | AN63: =AL63+1 -> 95 | AO63: =AO61 -> 12. | AP63: =AN63+1 -> 96
G65: =G63 -> 7 | H65: =L63+1 -> 97 | I65: =I63 -> 7 | J65: =H65+1 -> 98 | K65: =K63 -> 7 | L65: =J65+1 -> 99 | AK65: =AK63 -> 12. | AL65: =AP63+1 -> 97 | AM65: =AM63 -> 12. | AN65: =AL65+1 -> 98 | AO65: =AO63 -> 12. | AP65: =AN65+1 -> 99
G67: =G65 -> 7 | H67: =L65+1 -> 100 | I67: =I65 -> 7 | J67: =H67+1 -> 101 | K67: =K65 -> 7 | L67: =J67+1 -> 102 | AK67: =AK65 -> 12. | AL67: =AP65+1 -> 100 | AM67: =AM65 -> 12. | AN67: =AL67+1 -> 101 | AO67: =AO65 -> 12. | AP67: =AN67+1 -> 102
